Workbook

Sheet MINIMES FILLES
D1: LISTING NATIONAL | G1: MINIMES FILLES | Q1: DATE : | S1: 2015-06-30
F2: 2014-2015 | L2: 3° TRIMESTRE
A4: SEXE | B4: ZONE | C4: REG. | D4: Place | E4: LICENCE | F4: NOMS | G4: Prénoms | H4: AN | I4: POIDS | J4: CLUB | K4: NAT | L4: 1 | M4: 2 | N4: 3 | O4: ARR | P4: 1 | Q4: 2 | R4: 3 | S4: EP-J | T4: TOTAL | U4: IWF | V4: Points | X4: Catég | Z4: DEP + | AA4: REG + | AB4: IRG + | AC4: FED + | AD4: NAT + | AE4: INTB + | AF4: INTA + | AG4: OLY + | AH4: NCL
AB5: =T5-HLOOKUP(X5,[1]Feuil1!$C$1:$BL$10,2,FALSE) ->  | AC5: =T5-HLOOKUP(X5,[1]Feuil1!$C$1:$BL$10,3,FALSE) ->  | AD5: =T5-HLOOKUP(X5,[1]Feuil1!$C$1:$BL$10,4,FALSE) ->  | AE5: =T5-HLOOKUP(X5,[1]Feuil1!$C$1:$BL$10,5,FALSE) ->  | AF5: =T5-HLOOKUP(X5,[1]Feuil1!$C$1:$BL$10,6,FALSE) ->  | AG5: =T5-HLOOKUP(X5,[1]Feuil1!$C$1:$BL$10,7,FALSE) ->  | AH5: =T5-HLOOKUP(X5,[1]Feuil1!$C$1:$BL$10,8,FALSE) ->  | AI5: =T5-HLOOKUP(X5,[1]Feuil1!$C$1:$BL$10,9,FALSE) ->  | AJ5: =T5-HLOOKUP(X5,[1]Feuil1!$C$1:$BL$10,10,FALSE) ->  | AQ5: =IF(AJ5>=0,$AJ$4,IF(AI5>=0,$AI$4,IF(AH5>=0,$AH$4,IF(AG5>=0,$AG$4,IF(AF5>=0,$AF$4,IF(AE5>=0,$AE$4,IF(AD5>=0,$AD$4,IF(AC5>=0,$AC$4,$AB$4)))))))) -> 
A6: F | B6: SEST | C6: RAL | D6: 1 | E6: 352111 | F6: PICOT | G6: Zianne | H6: 2003 | I6: 38 | J6: CH Saint Baldoph | K6: F | L6: 20 | M6: 22 | N6: -24 | O6: =IF(MAXA(L6+M6,M6+N6,L6+N6,L6,M6,N6)<=0,0,MAXA(L6+M6,M6+N6,L6+N6,L6,M6,N6)) -> 42 | P6: 29 | Q6: 31 | R6: 33 | S6: =IF(MAXA(P6+Q6,Q6+R6,P6+R6,P6,Q6,R6)<=0,0,MAXA(P6+Q6,Q6+R6,P6+R6,P6,Q6,R6)) -> 64 | T6: =IF(H6="","",IF(OR(O6=0,S6=0),0,O6+S6)) -> 106 | U6: =IF(I6="","",IF(A6="H",10^(0.794358141*LOG(I6/174.393)^2)*T6,IF(A6="F",10^(0.89726074 * LOG(I6/148.026)^2)*T6,""))) -> 217.8861339 | V6: =SUM(T6-I6) -> 68 | X6: =IF(A6="F",(IF(OR(H6>2001,H6<2004),VLOOKUP(I6,Feuil1!$G$11:$H$25,2))),IF(A6="H",(IF(OR(H6>2001,H6<2004),VLOOKUP(I6,Feuil1!$A$11:$F$29,2))))) -> FM40 | Z6: =T6-HLOOKUP(X6,#REF!,2,FALSE) ->  | AA6: =T6-HLOOKUP(X6,#REF!,3,FALSE) ->  | AB6: =T6-HLOOKUP(X6,#REF!,4,FALSE) ->  | AC6: =T6-HLOOKUP(X6,#REF!,5,FALSE) ->  | AD6: =T6-HLOOKUP(X6,#REF!,6,FALSE) ->  | AE6: =T6-HLOOKUP(X6,#REF!,7,FALSE) ->  | AF6: =T6-HLOOKUP(X6,#REF!,8,FALSE) ->  | AG6: =T6-HLOOKUP(X6,#REF!,9,FALSE) ->  | AO6: =IF(AG6>=0,$AG$4,IF(AF6>=0,$AF$4,IF(AE6>=0,$AE$4,IF(AD6>=0,$AD$4,IF(AC6>=0,$AC$4,IF(AB6>=0,$AB$4,IF(AA6>=0,$AA$4,IF(Z6>=0,$Z$4,$AH$4)))))))) -> 
A7: F | B7: CO | C7: PDL | D7: 2 | E7: 386516 | F7: ABRAHAM | G7: Ines-Sarah | H7: 2002 | I7: 39.8 | J7: CJF LAVAL - VOUTRÉ | K7: F | L7: 22 | M7: 24 | N7: 26 | O7: 50 | P7: -26 | Q7: 26 | R7: 27 | S7: 53 | T7: 103 | U7: 201.7542835 | V7: 63.2 | X7: =IF(A7="F",(IF(OR(H7>2001,H7<2004),VLOOKUP(I7,Feuil1!$G$11:$H$25,2))),IF(A7="H",(IF(OR(H7>2001,H7<2004),VLOOKUP(I7,Feuil1!$A$11:$F$29,2))))) -> FM40 | Z7: =T7-HLOOKUP(X7,#REF!,2,FALSE) ->  | AA7: =T7-HLOOKUP(X7,#REF!,3,FALSE) ->  | AB7: =T7-HLOOKUP(X7,#REF!,4,FALSE) ->  | AC7: =T7-HLOOKUP(X7,#REF!,5,FALSE) ->  | AD7: =T7-HLOOKUP(X7,#REF!,6,FALSE) ->  | AE7: =T7-HLOOKUP(X7,#REF!,7,FALSE) ->  | AF7: =T7-HLOOKUP(X7,#REF!,8,FALSE) ->  | AG7: =T7-HLOOKUP(X7,#REF!,9,FALSE) -> 
A8: F | B8: NE | C8: ALS | D8: 3 | E8: 354663 | F8: SCHULTZ | G8: LEANE | H8: 2003 | I8: 38.35 | J8: US Wittenheim | K8: F | L8: 17 | M8: 19 | N8: 21 | O8: 40 | P8: 25 | Q8: 27 | R8: 29 | S8: 56 | T8: 96 | U8: 195.4291998 | V8: 57.65 | X8: =IF(A8="F",(IF(OR(H8>2001,H8<2004),VLOOKUP(I8,Feuil1!$G$11:$H$25,2))),IF(A8="H",(IF(OR(H8>2001,H8<2004),VLOOKUP(I8,Feuil1!$A$11:$F$29,2))))) -> FM40 | Z8: =T8-HLOOKUP(X8,#REF!,2,FALSE) ->  | AA8: =T8-HLOOKUP(X8,#REF!,3,FALSE) ->  | AB8: =T8-HLOOKUP(X8,#REF!,4,FALSE) ->  | AC8: =T8-HLOOKUP(X8,#REF!,5,FALSE) ->  | AD8: =T8-HLOOKUP(X8,#REF!,6,FALSE) ->  | AE8: =T8-HLOOKUP(X8,#REF!,7,FALSE) ->  | AF8: =T8-HLOOKUP(X8,#REF!,8,FALSE) ->  | AG8: =T8-HLOOKUP(X8,#REF!,9,FALSE) -> 
A9: F | B9: NORD | C9: PIC | D9: 4 | E9: 386173 | F9: POTARD | G9: Cindy | H9: 2002 | I9: 32.4 | J9: Péronne AAEEP | K9: F | L9: 16 | M9: 18 | N9: 19 | O9: 37 | P9: 22 | Q9: 24 | R9: 26 | S9: 50 | T9: 87 | U9: 213.8557315 | V9: 54.6 | X9: =IF(A9="F",(IF(OR(H9>2001,H9<2004),VLOOKUP(I9,Feuil1!$G$11:$H$25,2))),IF(A9="H",(IF(OR(H9>2001,H9<2004),VLOOKUP(I9,Feuil1!$A$11:$F$29,2))))) -> FM36 | Z9: =T9-HLOOKUP(X9,#REF!,2,FALSE) ->  | AA9: =T9-HLOOKUP(X9,#REF!,3,FALSE) ->  | AB9: =T9-HLOOKUP(X9,#REF!,4,FALSE) ->  | AC9: =T9-HLOOKUP(X9,#REF!,5,FALSE) ->  | AD9: =T9-HLOOKUP(X9,#REF!,6,FALSE) ->  | AE9: =T9-HLOOKUP(X9,#REF!,7,FALSE) ->  | AF9: =T9-HLOOKUP(X9,#REF!,8,FALSE) ->  | AG9: =T9-HLOOKUP(X9,#REF!,9,FALSE) -> 
A10: F | B10: NORD | C10: PIC | D10: 5 | E10: 391502 | F10: QUIN-PLOYARD | G10: Ludivine | H10: 2002 | I10: 40 | J10: Saleux CHM | K10: F | L10: 13 | M10: 15 | N10: -17 | O10: 28 | P10: 15 | Q10: 17 | R10: 19 | S10: 36 | T10: 64 | U10: 124.7214832 | V10: 24 | X10: =IF(A10="F",(IF(OR(H10>2001,H10<2004),VLOOKUP(I10,Feuil1!$G$11:$H$25,2))),IF(A10="H",(IF(OR(H10>2001,H10<2004),VLOOKUP(I10,Feuil1!$A$11:$F$29,2))))) -> FM40 | Z10: =T10-HLOOKUP(X10,#REF!,2,FALSE) ->  | AA10: =T10-HLOOKUP(X10,#REF!,3,FALSE) ->  | AB10: =T10-HLOOKUP(X10,#REF!,4,FALSE) ->  | AC10: =T10-HLOOKUP(X10,#REF!,5,FALSE) ->  | AD10: =T10-HLOOKUP(X10,#REF!,6,FALSE) ->  | AE10: =T10-HLOOKUP(X10,#REF!,7,FALSE) ->  | AF10: =T10-HLOOKUP(X10,#REF!,8,FALSE) ->  | AG10: =T10-HLOOKUP(X10,#REF!,9,FALSE) -> 
A11: F | B11: NORD | C11: PIC | D11: 6 | E11: 377089 | F11: THIERRY | G11: Charlotte | H11: 2003 | I11: 25.12 | J11: La Ferté Milon CMHM | K11: F | L11: 10 | M11: 12 | N11: 14 | O11: 26 | P11: 15 | Q11: 17 | R11: 19 | S11: 36 | T11: 62 | U11: 211.2601525 | V11: 36.88 | X11: =IF(A11="F",(IF(OR(H11>2001,H11<2004),VLOOKUP(I11,Feuil1!$G$11:$H$25,2))),IF(A11="H",(IF(OR(H11>2001,H11<2004),VLOOKUP(I11,Feuil1!$A$11:$F$29,2))))) -> FM36 | Z11: =T11-HLOOKUP(X11,#REF!,2,FALSE) ->  | AA11: =T11-HLOOKUP(X11,#REF!,3,FALSE) ->  | AB11: =T11-HLOOKUP(X11,#REF!,4,FALSE) ->  | AC11: =T11-HLOOKUP(X11,#REF!,5,FALSE) ->  | AD11: =T11-HLOOKUP(X11,#REF!,6,FALSE) ->  | AE11: =T11-HLOOKUP(X11,#REF!,7,FALSE) ->  | AF11: =T11-HLOOKUP(X11,#REF!,8,FALSE) ->  | AG11: =T11-HLOOKUP(X11,#REF!,9,FALSE) -> 
A12: F | B12: NE | C12: LOR | D12: 7 | E12: 282113 | F12: LEYSER | G12: Aline | H12: 2003 | I12: 39.3 | J12: H.VALLEROY-AUBOUÉ | K12: F | L12: -13 | M12: 13 | N12: 14 | O12: 27 | P12: 16 | Q12: 17 | R12: 18 | S12: 35 | T12: 62 | U12: 123.033928 | V12: 22.7 | X12: =IF(A12="F",(IF(OR(H12>2001,H12<2004),VLOOKUP(I12,Feuil1!$G$11:$H$25,2))),IF(A12="H",(IF(OR(H12>2001,H12<2004),VLOOKUP(I12,Feuil1!$A$11:$F$29,2))))) -> FM40 | Z12: =T12-HLOOKUP(X12,#REF!,2,FALSE) ->  | AA12: =T12-HLOOKUP(X12,#REF!,3,FALSE) ->  | AB12: =T12-HLOOKUP(X12,#REF!,4,FALSE) ->  | AC12: =T12-HLOOKUP(X12,#REF!,5,FALSE) ->  | AD12: =T12-HLOOKUP(X12,#REF!,6,FALSE) ->  | AE12: =T12-HLOOKUP(X12,#REF!,7,FALSE) ->  | AF12: =T12-HLOOKUP(X12,#REF!,8,FALSE) ->  | AG12: =T12-HLOOKUP(X12,#REF!,9,FALSE) -> 
A13: F | B13: SEST | C13: CAZ | D13: 8 | E13: 395059 | F13: HELOU | G13: Sasha | H13: 2002 | I13: 35.9 | J13: ES VILLENEUVE LOUBET | K13: F | L13: 9 | M13: 10 | N13: 11 | O13: 21 | P13: 14 | Q13: 16 | R13: 18 | S13: 34 | T13: 55 | U13: 120.2258845 | V13: 19.1 | X13: =IF(A13="F",(IF(OR(H13>2001,H13<2004),VLOOKUP(I13,Feuil1!$G$11:$H$25,2))),IF(A13="H",(IF(OR(H13>2001,H13<2004),VLOOKUP(I13,Feuil1!$A$11:$F$29,2))))) -> FM36 | Z13: =T13-HLOOKUP(X13,#REF!,2,FALSE) ->  | AA13: =T13-HLOOKUP(X13,#REF!,3,FALSE) ->  | AB13: =T13-HLOOKUP(X13,#REF!,4,FALSE) ->  | AC13: =T13-HLOOKUP(X13,#REF!,5,FALSE) ->  | AD13: =T13-HLOOKUP(X13,#REF!,6,FALSE) ->  | AE13: =T13-HLOOKUP(X13,#REF!,7,FALSE) ->  | AF13: =T13-HLOOKUP(X13,#REF!,8,FALSE) ->  | AG13: =T13-HLOOKUP(X13,#REF!,9,FALSE) -> 
A14: F | B14: CO | C14: PDL | D14: 9 | E14: 388363 | F14: RENOIR | G14: Anaïs | H14: 2003 | I14: 39.6 | J14: CJF LAVAL - VOUTRÉ | K14: F | L14: 12 | M14: -14 | N14: 14 | O14: 26 | P14: 13 | Q14: 14 | R14: -15 | S14: 27 | T14: 53 | U14: 104.3531178 | V14: 13.4 | X14: =IF(A14="F",(IF(OR(H14>2001,H14<2004),VLOOKUP(I14,Feuil1!$G$11:$H$25,2))),IF(A14="H",(IF(OR(H14>2001,H14<2004),VLOOKUP(I14,Feuil1!$A$11:$F$29,2))))) -> FM40 | Z14: =T14-HLOOKUP(X14,#REF!,2,FALSE) ->  | AA14: =T14-HLOOKUP(X14,#REF!,3,FALSE) ->  | AB14: =T14-HLOOKUP(X14,#REF!,4,FALSE) ->  | AC14: =T14-HLOOKUP(X14,#REF!,5,FALSE) ->  | AD14: =T14-HLOOKUP(X14,#REF!,6,FALSE) ->  | AE14: =T14-HLOOKUP(X14,#REF!,7,FALSE) ->  | AF14: =T14-HLOOKUP(X14,#REF!,8,FALSE) ->  | AG14: =T14-HLOOKUP(X14,#REF!,9,FALSE) -> 
AB15: =T15-HLOOKUP(X15,[1]Feuil1!$C$1:$BL$10,2,FALSE) ->  | AC15: =T15-HLOOKUP(X15,[1]Feuil1!$C$1:$BL$10,3,FALSE) ->  | AD15: =T15-HLOOKUP(X15,[1]Feuil1!$C$1:$BL$10,4,FALSE) ->  | AE15: =T15-HLOOKUP(X15,[1]Feuil1!$C$1:$BL$10,5,FALSE) ->  | AF15: =T15-HLOOKUP(X15,[1]Feuil1!$C$1:$BL$10,6,FALSE) ->  | AG15: =T15-HLOOKUP(X15,[1]Feuil1!$C$1:$BL$10,7,FALSE) ->  | AH15: =T15-HLOOKUP(X15,[1]Feuil1!$C$1:$BL$10,8,FALSE) ->  | AI15: =T15-HLOOKUP(X15,[1]Feuil1!$C$1:$BL$10,9,FALSE) ->  | AJ15: =T15-HLOOKUP(X15,[1]Feuil1!$C$1:$BL$10,10,FALSE) ->  | AQ15: =IF(AJ15>=0,$AJ$4,IF(AI15>=0,$AI$4,IF(AH15>=0,$AH$4,IF(AG15>=0,$AG$4,IF(AF15>=0,$AF$4,IF(AE15>=0,$AE$4,IF(AD15>=0,$AD$4,IF(AC15>=0,$AC$4,$AB$4)))))))) -> 
A16: F | B16: SEST | C16: CAZ | D16: 1 | E16: 384345 | F16: LEBORGNE DE KAOUEL | G16: Marie | H16: 2002 | I16: 43.5 | J16: ES VILLENEUVE LOUBET | K16: F | L16: 22 | M16: 24 | N16: 26 | O16: =IF(MAXA(L16+M16,M16+N16,L16+N16,L16,M16,N16)<=0,0,MAXA(L16+M16,M16+N16,L16+N16,L16,M16,N16)) -> 50 | P16: 33 | Q16: 35 | R16: -37 | S16: =IF(MAXA(P16+Q16,Q16+R16,P16+R16,P16,Q16,R16)<=0,0,MAXA(P16+Q16,Q16+R16,P16+R16,P16,Q16,R16)) -> 68 | T16: =IF(H16="","",IF(OR(O16=0,S16=0),0,O16+S16)) -> 118 | U16: =IF(I16="","",IF(A16="H",10^(0.794358141*LOG(I16/174.393)^2)*T16,IF(A16="F",10^(0.89726074 * LOG(I16/148.026)^2)*T16,""))) -> 211.6820108 | V16: =SUM(T16-I16) -> 74.5 | X16: =IF(A16="F",(IF(OR(H16>2001,H16<2004),VLOOKUP(I16,Feuil1!$G$11:$H$25,2))),IF(A16="H",(IF(OR(H16>2001,H16<2004),VLOOKUP(I16,Feuil1!$A$11:$F$29,2))))) -> FM44 | Z16: =T16-HLOOKUP(X16,#REF!,2,FALSE) ->  | AA16: =T16-HLOOKUP(X16,#REF!,3,FALSE) ->  | AB16: =T16-HLOOKUP(X16,#REF!,4,FALSE) ->  | AC16: =T16-HLOOKUP(X16,#REF!,5,FALSE) ->  | AD16: =T16-HLOOKUP(X16,#REF!,6,FALSE) ->  | AE16: =T16-HLOOKUP(X16,#REF!,7,FALSE) ->  | AF16: =T16-HLOOKUP(X16,#REF!,8,FALSE) ->  | AG16: =T16-HLOOKUP(X16,#REF!,9,FALSE) ->  | AO16: =IF(AG16>=0,$AG$4,IF(AF16>=0,$AF$4,IF(AE16>=0,$AE$4,IF(AD16>=0,$AD$4,IF(AC16>=0,$AC$4,IF(AB16>=0,$AB$4,IF(AA16>=0,$AA$4,IF(Z16>=0,$Z$4,$AH$4)))))))) -> 
A17: F | B17: NE | C17: ALS | D17: 2 | E17: 354663 | F17: SCHULTZ | G17: LEANE | H17: 2003 | I17: 41 | J17: US Wittenheim | K17: F | L17: 16 | M17: 18 | N17: 20 | O17: 38 | P17: 26 | Q17: 28 | R17: 30 | S17: 58 | T17: 96 | U17: 182.4734371 | V17: 55 | X17: =IF(A17="F",(IF(OR(H17>2001,H17<2004),VLOOKUP(I17,Feuil1!$G$11:$H$25,2))),IF(A17="H",(IF(OR(H17>2001,H17<2004),VLOOKUP(I17,Feuil1!$A$11:$F$29,2))))) -> FM44 | Z17: =T17-HLOOKUP(X17,#REF!,2,FALSE) ->  | AA17: =T17-HLOOKUP(X17,#REF!,3,FALSE) ->  | AB17: =T17-HLOOKUP(X17,#REF!,4,FALSE) ->  | AC17: =T17-HLOOKUP(X17,#REF!,5,FALSE) ->  | AD17: =T17-HLOOKUP(X17,#REF!,6,FALSE) ->  | AE17: =T17-HLOOKUP(X17,#REF!,7,FALSE) ->  | AF17: =T17-HLOOKUP(X17,#REF!,8,FALSE) ->  | AG17: =T17-HLOOKUP(X17,#REF!,9,FALSE) -> 
A18: F | B18: NORD | C18: NPC | D18: 3 | E18: 349247 | F18: RIQUIER | G18: Cassandra | H18: 2003 | I18: 44 | J18: CHCD COMINES | K18: F | L18: 16 | M18: 18 | N18: 20 | O18: 38 | P18: 26 | Q18: 28 | R18: -30 | S18: 54 | T18: 92 | U18: 163.2580932 | V18: 48 | X18: =IF(A18="F",(IF(OR(H18>2001,H18<2004),VLOOKUP(I18,Feuil1!$G$11:$H$25,2))),IF(A18="H",(IF(OR(H18>2001,H18<2004),VLOOKUP(I18,Feuil1!$A$11:$F$29,2))))) -> FM44 | Z18: =T18-HLOOKUP(X18,#REF!,2,FALSE) ->  | AA18: =T18-HLOOKUP(X18,#REF!,3,FALSE) ->  | AB18: =T18-HLOOKUP(X18,#REF!,4,FALSE) ->  | AC18: =T18-HLOOKUP(X18,#REF!,5,FALSE) ->  | AD18: =T18-HLOOKUP(X18,#REF!,6,FALSE) ->  | AE18: =T18-HLOOKUP(X18,#REF!,7,FALSE) ->  | AF18: =T18-HLOOKUP(X18,#REF!,8,FALSE) ->  | AG18: =T18-HLOOKUP(X18,#REF!,9,FALSE) -> 
A19: F | B19: SEST | C19: CAZ | D19: 4 | E19: 360579 | F19: GEFFROY | G19: Lisa | H19: 2003 | I19: 41.32 | J19: ASPTT DRAGUIGNAN | K19: F | L19: 16 | M19: 18 | N19: 19 | O19: 37 | P19: 24 | Q19: 25 | S19: 49 | T19: 86 | U19: 162.2029733 | V19: 44.68 | X19: =IF(A19="F",(IF(OR(H19>2001,H19<2004),VLOOKUP(I19,Feuil1!$G$11:$H$25,2))),IF(A19="H",(IF(OR(H19>2001,H19<2004),VLOOKUP(I19,Feuil1!$A$11:$F$29,2))))) -> FM44 | Z19: =T19-HLOOKUP(X19,#REF!,2,FALSE) ->  | AA19: =T19-HLOOKUP(X19,#REF!,3,FALSE) ->  | AB19: =T19-HLOOKUP(X19,#REF!,4,FALSE) ->  | AC19: =T19-HLOOKUP(X19,#REF!,5,FALSE) ->  | AD19: =T19-HLOOKUP(X19,#REF!,6,FALSE) ->  | AE19: =T19-HLOOKUP(X19,#REF!,7,FALSE) ->  | AF19: =T19-HLOOKUP(X19,#REF!,8,FALSE) ->  | AG19: =T19-HLOOKUP(X19,#REF!,9,FALSE) -> 
A20: F | B20: NORD | C20: PIC | D20: 5 | E20: 391502 | F20: QUIN-PLOYARD | G20: Ludivine | H20: 2002 | I20: 41.32 | J20: Saleux CHM | K20: F | L20: 15 | M20: 17 | N20: -19 | O20: 32 | P20: 19 | Q20: 21 | R20: 23 | S20: 44 | T20: 76 | U20: 143.3421624 | V20: 34.68 | X20: =IF(A20="F",(IF(OR(H20>2001,H20<2004),VLOOKUP(I20,Feuil1!$G$11:$H$25,2))),IF(A20="H",(IF(OR(H20>2001,H20<2004),VLOOKUP(I20,Feuil1!$A$11:$F$29,2))))) -> FM44 | Z20: =T20-HLOOKUP(X20,#REF!,2,FALSE) ->  | AA20: =T20-HLOOKUP(X20,#REF!,3,FALSE) ->  | AB20: =T20-HLOOKUP(X20,#REF!,4,FALSE) ->  | AC20: =T20-HLOOKUP(X20,#REF!,5,FALSE) ->  | AD20: =T20-HLOOKUP(X20,#REF!,6,FALSE) ->  | AE20: =T20-HLOOKUP(X20,#REF!,7,FALSE) ->  | AF20: =T20-HLOOKUP(X20,#REF!,8,FALSE) ->  | AG20: =T20-HLOOKUP(X20,#REF!,9,FALSE) -> 
A21: F | B21: SEST | C21: CAZ | D21: 6 | E21: 360581 | F21: MONTILLET | G21: Anais | H21: 2003 | I21: 43.2 | J21: ASPTT DRAGUIGNAN | K21: F | L21: 13 | M21: 15 | N21: 17 | O21: 32 | P21: 20 | Q21: 22 | R21: -24 | S21: 42 | T21: 74 | U21: 133.6319392 | V21: 30.8 | X21: =IF(A21="F",(IF(OR(H21>2001,H21<2004),VLOOKUP(I21,Feuil1!$G$11:$H$25,2))),IF(A21="H",(IF(OR(H21>2001,H21<2004),VLOOKUP(I21,Feuil1!$A$11:$F$29,2))))) -> FM44 | Z21: =T21-HLOOKUP(X21,#REF!,2,FALSE) ->  | AA21: =T21-HLOOKUP(X21,#REF!,3,FALSE) ->  | AB21: =T21-HLOOKUP(X21,#REF!,4,FALSE) ->  | AC21: =T21-HLOOKUP(X21,#REF!,5,FALSE) ->  | AD21: =T21-HLOOKUP(X21,#REF!,6,FALSE) ->  | AE21: =T21-HLOOKUP(X21,#REF!,7,FALSE) ->  | AF21: =T21-HLOOKUP(X21,#REF!,8,FALSE) ->  | AG21: =T21-HLOOKUP(X21,#REF!,9,FALSE) -> 
A22: F | B22: NE | C22: ALS | D22: 7 | E22: 373892 | F22: MANNY | G22: ELODIE | H22: 2003 | I22: 43.6 | J22: MJC Ungersheim | K22: F | L22: 12 | M22: 14 | N22: 16 | O22: 30 | P22: 18 | Q22: 20 | R22: 22 | S22: 42 | T22: 72 | U22: 128.8794165 | V22: 28.4 | X22: =IF(A22="F",(IF(OR(H22>2001,H22<2004),VLOOKUP(I22,Feuil1!$G$11:$H$25,2))),IF(A22="H",(IF(OR(H22>2001,H22<2004),VLOOKUP(I22,Feuil1!$A$11:$F$29,2))))) -> FM44 | Z22: =T22-HLOOKUP(X22,#REF!,2,FALSE) ->  | AA22: =T22-HLOOKUP(X22,#REF!,3,FALSE) ->  | AB22: =T22-HLOOKUP(X22,#REF!,4,FALSE) ->  | AC22: =T22-HLOOKUP(X22,#REF!,5,FALSE) ->  | AD22: =T22-HLOOKUP(X22,#REF!,6,FALSE) ->  | AE22: =T22-HLOOKUP(X22,#REF!,7,FALSE) ->  | AF22: =T22-HLOOKUP(X22,#REF!,8,FALSE) ->  | AG22: =T22-HLOOKUP(X22,#REF!,9,FALSE) -> 
A23: F | B23: NE | C23: CHA | D23: 8 | E23: 396855 | F23: FERNANDES DA SILVA | G23: Mélinda | H23: 2002 | I23: 40.8 | J23: Langres HM | K23: F | L23: 10 | M23: 12 | N23: -14 | O23: 22 | P23: 16 | Q23: 18 | R23: 20 | S23: 38 | T23: 60 | U23: 114.6063189 | V23: 19.2 | X23: =IF(A23="F",(IF(OR(H23>2001,H23<2004),VLOOKUP(I23,Feuil1!$G$11:$H$25,2))),IF(A23="H",(IF(OR(H23>2001,H23<2004),VLOOKUP(I23,Feuil1!$A$11:$F$29,2))))) -> FM44 | Z23: =T23-HLOOKUP(X23,#REF!,2,FALSE) ->  | AA23: =T23-HLOOKUP(X23,#REF!,3,FALSE) ->  | AB23: =T23-HLOOKUP(X23,#REF!,4,FALSE) ->  | AC23: =T23-HLOOKUP(X23,#REF!,5,FALSE) ->  | AD23: =T23-HLOOKUP(X23,#REF!,6,FALSE) ->  | AE23: =T23-HLOOKUP(X23,#REF!,7,FALSE) ->  | AF23: =T23-HLOOKUP(X23,#REF!,8,FALSE) ->  | AG23: =T23-HLOOKUP(X23,#REF!,9,FALSE) -> 
AB24: =T24-HLOOKUP(X24,[1]Feuil1!$C$1:$BL$10,2,FALSE) ->  | AC24: =T24-HLOOKUP(X24,[1]Feuil1!$C$1:$BL$10,3,FALSE) ->  | AD24: =T24-HLOOKUP(X24,[1]Feuil1!$C$1:$BL$10,4,FALSE) ->  | AE24: =T24-HLOOKUP(X24,[1]Feuil1!$C$1:$BL$10,5,FALSE) ->  | AF24: =T24-HLOOKUP(X24,[1]Feuil1!$C$1:$BL$10,6,FALSE) ->  | AG24: =T24-HLOOKUP(X24,[1]Feuil1!$C$1:$BL$10,7,FALSE) ->  | AH24: =T24-HLOOKUP(X24,[1]Feuil1!$C$1:$BL$10,8,FALSE) ->  | AI24: =T24-HLOOKUP(X24,[1]Feuil1!$C$1:$BL$10,9,FALSE) ->  | AJ24: =T24-HLOOKUP(X24,[1]Feuil1!$C$1:$BL$10,10,FALSE) ->  | AQ24: =IF(AJ24>=0,$AJ$4,IF(AI24>=0,$AI$4,IF(AH24>=0,$AH$4,IF(AG24>=0,$AG$4,IF(AF24>=0,$AF$4,IF(AE24>=0,$AE$4,IF(AD24>=0,$AD$4,IF(AC24>=0,$AC$4,$AB$4)))))))) -> 
A25: F | B25: SEST | C25: CAZ | D25: 1 | E25: 384345 | F25: LEBORGNE DE KAOUEL | G25: Marie | H25: 2002 | I25: 44.94 | J25: ES VILLENEUVE LOUBET | K25: F | L25: 28 | M25: 30 | N25: 32 | O25: =IF(MAXA(L25+M25,M25+N25,L25+N25,L25,M25,N25)<=0,0,MAXA(L25+M25,M25+N25,L25+N25,L25,M25,N25)) -> 62 | P25: 38 | Q25: 40 | R25: 42 | S25: =IF(MAXA(P25+Q25,Q25+R25,P25+R25,P25,Q25,R25)<=0,0,MAXA(P25+Q25,Q25+R25,P25+R25,P25,Q25,R25)) -> 82 | T25: =IF(H25="","",IF(OR(O25=0,S25=0),0,O25+S25)) -> 144 | U25: =IF(I25="","",IF(A25="H",10^(0.794358141*LOG(I25/174.393)^2)*T25,IF(A25="F",10^(0.89726074 * LOG(I25/148.026)^2)*T25,""))) -> 250.521429 | V25: =SUM(T25-I25) -> 99.06 | X25: =IF(A25="F",(IF(OR(H25>2001,H25<2004),VLOOKUP(I25,Feuil1!$G$11:$H$25,2))),IF(A25="H",(IF(OR(H25>2001,H25<2004),VLOOKUP(I25,Feuil1!$A$11:$F$29,2))))) -> FM48 | Z25: =T25-HLOOKUP(X25,#REF!,2,FALSE) ->  | AA25: =T25-HLOOKUP(X25,#REF!,3,FALSE) ->  | AB25: =T25-HLOOKUP(X25,#REF!,4,FALSE) ->  | AC25: =T25-HLOOKUP(X25,#REF!,5,FALSE) ->  | AD25: =T25-HLOOKUP(X25,#REF!,6,FALSE) ->  | AE25: =T25-HLOOKUP(X25,#REF!,7,FALSE) ->  | AF25: =T25-HLOOKUP(X25,#REF!,8,FALSE) ->  | AG25: =T25-HLOOKUP(X25,#REF!,9,FALSE) ->  | AO25: =IF(AG25>=0,$AG$4,IF(AF25>=0,$AF$4,IF(AE25>=0,$AE$4,IF(AD25>=0,$AD$4,IF(AC25>=0,$AC$4,IF(AB25>=0,$AB$4,IF(AA25>=0,$AA$4,IF(Z25>=0,$Z$4,$AH$4)))))))) -> 
A26: F | B26: NORD | C26: NPC | D26: 2 | E26: 340969 | F26: DESMAREST | G26: Lucie | H26: 2002 | I26: 46.75 | J26: CHCD COMINES | K26: F | L26: 26 | M26: 28 | N26: 30 | O26: 58 | P26: 40 | Q26: 42 | R26: -44 | S26: 82 | T26: 140 | U26: 234.9322965 | V26: 93.25 | X26: =IF(A26="F",(IF(OR(H26>2001,H26<2004),VLOOKUP(I26,Feuil1!$G$11:$H$25,2))),IF(A26="H",(IF(OR(H26>2001,H26<2004),VLOOKUP(I26,Feuil1!$A$11:$F$29,2))))) -> FM48 | Z26: =T26-HLOOKUP(X26,#REF!,2,FALSE) ->  | AA26: =T26-HLOOKUP(X26,#REF!,3,FALSE) ->  | AB26: =T26-HLOOKUP(X26,#REF!,4,FALSE) ->  | AC26: =T26-HLOOKUP(X26,#REF!,5,FALSE) ->  | AD26: =T26-HLOOKUP(X26,#REF!,6,FALSE) ->  | AE26: =T26-HLOOKUP(X26,#REF!,7,FALSE) ->  | AF26: =T26-HLOOKUP(X26,#REF!,8,FALSE) ->  | AG26: =T26-HLOOKUP(X26,#REF!,9,FALSE) -> 
A27: F | B27: NE | C27: ALS | D27: 3 | E27: 350199 | F27: BAJARD | G27: PERINE | H27: 2002 | I27: 46.5 | J27: Dorlisheim FH | K27: F | L27: 22 | M27: 24 | N27: 26 | O27: 50 | P27: 30 | Q27: 32 | R27: -34 | S27: 62 | T27: 112 | U27: 188.8553615 | V27: 65.5 | X27: =IF(A27="F",(IF(OR(H27>2001,H27<2004),VLOOKUP(I27,Feuil1!$G$11:$H$25,2))),IF(A27="H",(IF(OR(H27>2001,H27<2004),VLOOKUP(I27,Feuil1!$A$11:$F$29,2))))) -> FM48 | Z27: =T27-HLOOKUP(X27,#REF!,2,FALSE) ->  | AA27: =T27-HLOOKUP(X27,#REF!,3,FALSE) ->  | AB27: =T27-HLOOKUP(X27,#REF!,4,FALSE) ->  | AC27: =T27-HLOOKUP(X27,#REF!,5,FALSE) ->  | AD27: =T27-HLOOKUP(X27,#REF!,6,FALSE) ->  | AE27: =T27-HLOOKUP(X27,#REF!,7,FALSE) ->  | AF27: =T27-HLOOKUP(X27,#REF!,8,FALSE) ->  | AG27: =T27-HLOOKUP(X27,#REF!,9,FALSE) -> 
A28: F | B28: NE | C28: ALS | D28: 4 | E28: 394879 | F28: SCHAEFFER | G28: CHARLIE | H28: 2002 | I28: 47.6 | J28: Dorlisheim FH | K28: F | L28: 17 | M28: 19 | N28: 21 | O28: 40 | P28: 23 | Q28: 25 | R28: 27 | S28: 52 | T28: 92 | U28: 151.924662 | V28: 44.4 | X28: =IF(A28="F",(IF(OR(H28>2001,H28<2004),VLOOKUP(I28,Feuil1!$G$11:$H$25,2))),IF(A28="H",(IF(OR(H28>2001,H28<2004),VLOOKUP(I28,Feuil1!$A$11:$F$29,2))))) -> FM48 | Z28: =T28-HLOOKUP(X28,#REF!,2,FALSE) ->  | AA28: =T28-HLOOKUP(X28,#REF!,3,FALSE) ->  | AB28: =T28-HLOOKUP(X28,#REF!,4,FALSE) ->  | AC28: =T28-HLOOKUP(X28,#REF!,5,FALSE) ->  | AD28: =T28-HLOOKUP(X28,#REF!,6,FALSE) ->  | AE28: =T28-HLOOKUP(X28,#REF!,7,FALSE) ->  | AF28: =T28-HLOOKUP(X28,#REF!,8,FALSE) ->  | AG28: =T28-HLOOKUP(X28,#REF!,9,FALSE) -> 
A29: F | B29: SEST | C29: PRO | D29: 5 | E29: 391162 | F29: MASTROMAURO | G29: Madison | H29: 2002 | I29: 45.8 | J29: EEAR MONTEUX | K29: F | L29: 17 | M29: 18 | N29: 19 | O29: 37 | P29: 24 | Q29: 25 | R29: 26 | S29: 51 | T29: 88 | U29: 150.4449771 | V29: 42.2 | X29: =IF(A29="F",(IF(OR(H29>2001,H29<2004),VLOOKUP(I29,Feuil1!$G$11:$H$25,2))),IF(A29="H",(IF(OR(H29>2001,H29<2004),VLOOKUP(I29,Feuil1!$A$11:$F$29,2))))) -> FM48 | Z29: =T29-HLOOKUP(X29,#REF!,2,FALSE) ->  | AA29: =T29-HLOOKUP(X29,#REF!,3,FALSE) ->  | AB29: =T29-HLOOKUP(X29,#REF!,4,FALSE) ->  | AC29: =T29-HLOOKUP(X29,#REF!,5,FALSE) ->  | AD29: =T29-HLOOKUP(X29,#REF!,6,FALSE) ->  | AE29: =T29-HLOOKUP(X29,#REF!,7,FALSE) ->  | AF29: =T29-HLOOKUP(X29,#REF!,8,FALSE) ->  | AG29: =T29-HLOOKUP(X29,#REF!,9,FALSE) -> 
A30: F | B30: NORD | C30: PIC | D30: 6 | E30: 378352 | F30: BÉDOT | G30: Manon | H30: 2002 | I30: 46.8 | J30: Villers-Bretonneux KC | K30: F | L30: 18 | M30: 20 | N30: -22 | O30: 38 | P30: 23 | Q30: 25 | R30: -27 | S30: 48 | T30: 86 | U30: 144.1771137 | V30: 39.2 | X30: =IF(A30="F",(IF(OR(H30>2001,H30<2004),VLOOKUP(I30,Feuil1!$G$11:$H$25,2))),IF(A30="H",(IF(OR(H30>2001,H30<2004),VLOOKUP(I30,Feuil1!$A$11:$F$29,2))))) -> FM48 | Z30: =T30-HLOOKUP(X30,#REF!,2,FALSE) ->  | AA30: =T30-HLOOKUP(X30,#REF!,3,FALSE) ->  | AB30: =T30-HLOOKUP(X30,#REF!,4,FALSE) ->  | AC30: =T30-HLOOKUP(X30,#REF!,5,FALSE) ->  | AD30: =T30-HLOOKUP(X30,#REF!,6,FALSE) ->  | AE30: =T30-HLOOKUP(X30,#REF!,7,FALSE) ->  | AF30: =T30-HLOOKUP(X30,#REF!,8,FALSE) ->  | AG30: =T30-HLOOKUP(X30,#REF!,9,FALSE) -> 
A31: F | B31: NE | C31: ALS | D31: 7 | E31: 373892 | F31: MANNY | G31: ELODIE | H31: 2003 | I31: 44.05 | J31: MJC Ungersheim | K31: F | L31: 15 | M31: 17 | N31: 19 | O31: 36 | P31: 22 | Q31: 24 | R31: -26 | S31: 46 | T31: 82 | U31: 145.3565494 | V31: 37.95 | X31: =IF(A31="F",(IF(OR(H31>2001,H31<2004),VLOOKUP(I31,Feuil1!$G$11:$H$25,2))),IF(A31="H",(IF(OR(H31>2001,H31<2004),VLOOKUP(I31,Feuil1!$A$11:$F$29,2))))) -> FM48 | Z31: =T31-HLOOKUP(X31,#REF!,2,FALSE) ->  | AA31: =T31-HLOOKUP(X31,#REF!,3,FALSE) ->  | AB31: =T31-HLOOKUP(X31,#REF!,4,FALSE) ->  | AC31: =T31-HLOOKUP(X31,#REF!,5,FALSE) ->  | AD31: =T31-HLOOKUP(X31,#REF!,6,FALSE) ->  | AE31: =T31-HLOOKUP(X31,#REF!,7,FALSE) ->  | AF31: =T31-HLOOKUP(X31,#REF!,8,FALSE) ->  | AG31: =T31-HLOOKUP(X31,#REF!,9,FALSE) -> 
A32: F | B32: NORD | C32: PIC | D32: 8 | E32: 386143 | F32: ETÉVÉ | G32: Axelle | H32: 2003 | I32: 46.41 | J32: Péronne AAEEP | K32: F | L32: 16 | M32: 17 | N32: 18 | O32: 35 | P32: 22 | Q32: 24 | R32: -26 | S32: 46 | T32: 81 | U32: 136.8220987 | V32: 34.59 | X32: =IF(A32="F",(IF(OR(H32>2001,H32<2004),VLOOKUP(I32,Feuil1!$G$11:$H$25,2))),IF(A32="H",(IF(OR(H32>2001,H32<2004),VLOOKUP(I32,Feuil1!$A$11:$F$29,2))))) -> FM48 | Z32: =T32-HLOOKUP(X32,#REF!,2,FALSE) ->  | AA32: =T32-HLOOKUP(X32,#REF!,3,FALSE) ->  | AB32: =T32-HLOOKUP(X32,#REF!,4,FALSE) ->  | AC32: =T32-HLOOKUP(X32,#REF!,5,FALSE) ->  | AD32: =T32-HLOOKUP(X32,#REF!,6,FALSE) ->  | AE32: =T32-HLOOKUP(X32,#REF!,7,FALSE) ->  | AF32: =T32-HLOOKUP(X32,#REF!,8,FALSE) ->  | AG32: =T32-HLOOKUP(X32,#REF!,9,FALSE) -> 
A33: F | B33: NORD | C33: PIC | D33: 9 | E33: 386138 | F33: ETÉVÉ | G33: Solène | H33: 2003 | I33: 47.42 | J33: Péronne AAEEP | K33: F | L33: 16 | M33: 17 | N33: 18 | O33: 35 | P33: 22 | Q33: 24 | R33: -26 | S33: 46 | T33: 81 | U33: 134.2093559 | V33: 33.58 | X33: =IF(A33="F",(IF(OR(H33>2001,H33<2004),VLOOKUP(I33,Feuil1!$G$11:$H$25,2))),IF(A33="H",(IF(OR(H33>2001,H33<2004),VLOOKUP(I33,Feuil1!$A$11:$F$29,2))))) -> FM48 | Z33: =T33-HLOOKUP(X33,#REF!,2,FALSE) ->  | AA33: =T33-HLOOKUP(X33,#REF!,3,FALSE) ->  | AB33: =T33-HLOOKUP(X33,#REF!,4,FALSE) ->  | AC33: =T33-HLOOKUP(X33,#REF!,5,FALSE) ->  | AD33: =T33-HLOOKUP(X33,#REF!,6,FALSE) ->  | AE33: =T33-HLOOKUP(X33,#REF!,7,FALSE) ->  | AF33: =T33-HLOOKUP(X33,#REF!,8,FALSE) ->  | AG33: =T33-HLOOKUP(X33,#REF!,9,FALSE) -> 
AB34: =T34-HLOOKUP(X34,[1]Feuil1!$C$1:$BL$10,2,FALSE) ->  | AC34: =T34-HLOOKUP(X34,[1]Feuil1!$C$1:$BL$10,3,FALSE) ->  | AD34: =T34-HLOOKUP(X34,[1]Feuil1!$C$1:$BL$10,4,FALSE) ->  | AE34: =T34-HLOOKUP(X34,[1]Feuil1!$C$1:$BL$10,5,FALSE) ->  | AF34: =T34-HLOOKUP(X34,[1]Feuil1!$C$1:$BL$10,6,FALSE) ->  | AG34: =T34-HLOOKUP(X34,[1]Feuil1!$C$1:$BL$10,7,FALSE) ->  | AH34: =T34-HLOOKUP(X34,[1]Feuil1!$C$1:$BL$10,8,FALSE) ->  | AI34: =T34-HLOOKUP(X34,[1]Feuil1!$C$1:$BL$10,9,FALSE) ->  | AJ34: =T34-HLOOKUP(X34,[1]Feuil1!$C$1:$BL$10,10,FALSE) ->  | AQ34: =IF(AJ34>=0,$AJ$4,IF(AI34>=0,$AI$4,IF(AH34>=0,$AH$4,IF(AG34>=0,$AG$4,IF(AF34>=0,$AF$4,IF(AE34>=0,$AE$4,IF(AD34>=0,$AD$4,IF(AC34>=0,$AC$4,$AB$4)))))))) -> 
A35: F | B35: SEST | C35: RAL | D35: 1 | E35: 352110 | F35: PICOT | G35: Zéline | H35: 2003 | I35: 53 | J35: CH Saint Baldoph | K35: F | L35: 36 | M35: 38 | N35: 40 | O35: =IF(MAXA(L35+M35,M35+N35,L35+N35,L35,M35,N35)<=0,0,MAXA(L35+M35,M35+N35,L35+N35,L35,M35,N35)) -> 78 | P35: 46 | Q35: -48 | R35: 48 | S35: =IF(MAXA(P35+Q35,Q35+R35,P35+R35,P35,Q35,R35)<=0,0,MAXA(P35+Q35,Q35+R35,P35+R35,P35,Q35,R35)) -> 94 | T35: =IF(H35="","",IF(OR(O35=0,S35=0),0,O35+S35)) -> 172 | U35: =IF(I35="","",IF(A35="H",10^(0.794358141*LOG(I35/174.393)^2)*T35,IF(A35="F",10^(0.89726074 * LOG(I35/148.026)^2)*T35,""))) -> 259.4524028 | V35: =SUM(T35-I35) -> 119 | X35: =IF(A35="F",(IF(OR(H35>2001,H35<2004),VLOOKUP(I35,Feuil1!$G$11:$H$25,2))),IF(A35="H",(IF(OR(H35>2001,H35<2004),VLOOKUP(I35,Feuil1!$A$11:$F$29,2))))) -> FM53 | Z35: =T35-HLOOKUP(X35,#REF!,2,FALSE) ->  | AA35: =T35-HLOOKUP(X35,#REF!,3,FALSE) ->  | AB35: =T35-HLOOKUP(X35,#REF!,4,FALSE) ->  | AC35: =T35-HLOOKUP(X35,#REF!,5,FALSE) ->  | AD35: =T35-HLOOKUP(X35,#REF!,6,FALSE) ->  | AE35: =T35-HLOOKUP(X35,#REF!,7,FALSE) ->  | AF35: =T35-HLOOKUP(X35,#REF!,8,FALSE) ->  | AG35: =T35-HLOOKUP(X35,#REF!,9,FALSE) ->  | AO35: =IF(AG35>=0,$AG$4,IF(AF35>=0,$AF$4,IF(AE35>=0,$AE$4,IF(AD35>=0,$AD$4,IF(AC35>=0,$AC$4,IF(AB35>=0,$AB$4,IF(AA35>=0,$AA$4,IF(Z35>=0,$Z$4,$AH$4)))))))) -> 
A36: F | B36: NE | C36: BOU | D36: 2 | E36: 344068 | F36: COMTE | G36: Coralie | H36: 2002 | I36: 52.09 | J36: HC Avallon | K36: F | L36: 32 | M36: 34 | N36: 36 | O36: 70 | P36: 42 | Q36: 44 | R36: 46 | S36: 90 | T36: 160 | U36: 244.7488862 | V36: 107.91 | X36: =IF(A36="F",(IF(OR(H36>2001,H36<2004),VLOOKUP(I36,Feuil1!$G$11:$H$25,2))),IF(A36="H",(IF(OR(H36>2001,H36<2004),VLOOKUP(I36,Feuil1!$A$11:$F$29,2))))) -> FM53 | Z36: =T36-HLOOKUP(X36,#REF!,2,FALSE) ->  | AA36: =T36-HLOOKUP(X36,#REF!,3,FALSE) ->  | AB36: =T36-HLOOKUP(X36,#REF!,4,FALSE) ->  | AC36: =T36-HLOOKUP(X36,#REF!,5,FALSE) ->  | AD36: =T36-HLOOKUP(X36,#REF!,6,FALSE) ->  | AE36: =T36-HLOOKUP(X36,#REF!,7,FALSE) ->  | AF36: =T36-HLOOKUP(X36,#REF!,8,FALSE) ->  | AG36: =T36-HLOOKUP(X36,#REF!,9,FALSE) -> 
A37: F | B37: NE | C37: ALS | D37: 3 | E37: 350199 | F37: BAJARD | G37: PERINE | H37: 2002 | I37: 49.3 | J37: Dorlisheim FH | K37: F | L37: 25 | M37: 27 | N37: 29 | O37: 56 | P37: 36 | Q37: 38 | R37: 40 | S37: 78 | T37: 134 | U37: 214.6239658 | V37: 84.7 | X37: =IF(A37="F",(IF(OR(H37>2001,H37<2004),VLOOKUP(I37,Feuil1!$G$11:$H$25,2))),IF(A37="H",(IF(OR(H37>2001,H37<2004),VLOOKUP(I37,Feuil1!$A$11:$F$29,2))))) -> FM53 | Z37: =T37-HLOOKUP(X37,#REF!,2,FALSE) ->  | AA37: =T37-HLOOKUP(X37,#REF!,3,FALSE) ->  | AB37: =T37-HLOOKUP(X37,#REF!,4,FALSE) ->  | AC37: =T37-HLOOKUP(X37,#REF!,5,FALSE) ->  | AD37: =T37-HLOOKUP(X37,#REF!,6,FALSE) ->  | AE37: =T37-HLOOKUP(X37,#REF!,7,FALSE) ->  | AF37: =T37-HLOOKUP(X37,#REF!,8,FALSE) ->  | AG37: =T37-HLOOKUP(X37,#REF!,9,FALSE) -> 
A38: F | B38: NE | C38: ALS | D38: 4 | E38: 394879 | F38: SCHAEFFER | G38: CHARLIE | H38: 2002 | I38: 48.45 | J38: Dorlisheim FH | K38: F | L38: 21 | M38: 23 | N38: 25 | O38: 48 | P38: 27 | Q38: 29 | R38: 31 | S38: 60 | T38: 108 | U38: 175.5983389 | V38: 59.55 | X38: =IF(A38="F",(IF(OR(H38>2001,H38<2004),VLOOKUP(I38,Feuil1!$G$11:$H$25,2))),IF(A38="H",(IF(OR(H38>2001,H38<2004),VLOOKUP(I38,Feuil1!$A$11:$F$29,2))))) -> FM53 | Z38: =T38-HLOOKUP(X38,#REF!,2,FALSE) ->  | AA38: =T38-HLOOKUP(X38,#REF!,3,FALSE) ->  | AB38: =T38-HLOOKUP(X38,#REF!,4,FALSE) ->  | AC38: =T38-HLOOKUP(X38,#REF!,5,FALSE) ->  | AD38: =T38-HLOOKUP(X38,#REF!,6,FALSE) ->  | AE38: =T38-HLOOKUP(X38,#REF!,7,FALSE) ->  | AF38: =T38-HLOOKUP(X38,#REF!,8,FALSE) ->  | AG38: =T38-HLOOKUP(X38,#REF!,9,FALSE) -> 
A39: F | B39: NORD | C39: PIC | D39: 5 | E39: 378352 | F39: BÉDOT | G39: Manon | H39: 2002 | I39: 49.41 | J39: Villers-Bretonneux KC | K39: F | L39: 22 | M39: 24 | N39: 26 | O39: 50 | P39: 26 | Q39: 28 | R39: 30 | S39: 58 | T39: 108 | U39: 172.6508103 | V39: 58.59 | X39: =IF(A39="F",(IF(OR(H39>2001,H39<2004),VLOOKUP(I39,Feuil1!$G$11:$H$25,2))),IF(A39="H",(IF(OR(H39>2001,H39<2004),VLOOKUP(I39,Feuil1!$A$11:$F$29,2))))) -> FM53 | Z39: =T39-HLOOKUP(X39,#REF!,2,FALSE) ->  | AA39: =T39-HLOOKUP(X39,#REF!,3,FALSE) ->  | AB39: =T39-HLOOKUP(X39,#REF!,4,FALSE) ->  | AC39: =T39-HLOOKUP(X39,#REF!,5,FALSE) ->  | AD39: =T39-HLOOKUP(X39,#REF!,6,FALSE) ->  | AE39: =T39-HLOOKUP(X39,#REF!,7,FALSE) ->  | AF39: =T39-HLOOKUP(X39,#REF!,8,FALSE) ->  | AG39: =T39-HLOOKUP(X39,#REF!,9,FALSE) -> 
A40: F | B40: NORD | C40: PIC | D40: 6 | E40: 380663 | F40: VAN MALLEGHEM | G40: Charlotte | H40: 2002 | I40: 52.72 | J40: Roisel CHFM | K40: F | L40: 18 | M40: 20 | N40: 22 | O40: 42 | P40: 28 | Q40: 30 | R40: 32 | S40: 62 | T40: 104 | U40: 157.5465108 | V40: 51.28 | X40: =IF(A40="F",(IF(OR(H40>2001,H40<2004),VLOOKUP(I40,Feuil1!$G$11:$H$25,2))),IF(A40="H",(IF(OR(H40>2001,H40<2004),VLOOKUP(I40,Feuil1!$A$11:$F$29,2))))) -> FM53 | Z40: =T40-HLOOKUP(X40,#REF!,2,FALSE) ->  | AA40: =T40-HLOOKUP(X40,#REF!,3,FALSE) ->  | AB40: =T40-HLOOKUP(X40,#REF!,4,FALSE) ->  | AC40: =T40-HLOOKUP(X40,#REF!,5,FALSE) ->  | AD40: =T40-HLOOKUP(X40,#REF!,6,FALSE) ->  | AE40: =T40-HLOOKUP(X40,#REF!,7,FALSE) ->  | AF40: =T40-HLOOKUP(X40,#REF!,8,FALSE) ->  | AG40: =T40-HLOOKUP(X40,#REF!,9,FALSE) -> 
A41: F | B41: NORD | C41: PIC | D41: 7 | E41: 386138 | F41: ETÉVÉ | G41: Solène | H41: 2003 | I41: 48.04 | J41: Péronne AAEEP | K41: F | L41: 14 | M41: 16 | N41: -18 | O41: 30 | P41: 20 | Q41: 22 | R41: 24 | S41: 46 | T41: 76 | U41: 124.4901534 | V41: 27.96 | X41: =IF(A41="F",(IF(OR(H41>2001,H41<2004),VLOOKUP(I41,Feuil1!$G$11:$H$25,2))),IF(A41="H",(IF(OR(H41>2001,H41<2004),VLOOKUP(I41,Feuil1!$A$11:$F$29,2))))) -> FM53 | Z41: =T41-HLOOKUP(X41,#REF!,2,FALSE) ->  | AA41: =T41-HLOOKUP(X41,#REF!,3,FALSE) ->  | AB41: =T41-HLOOKUP(X41,#REF!,4,FALSE) ->  | AC41: =T41-HLOOKUP(X41,#REF!,5,FALSE) ->  | AD41: =T41-HLOOKUP(X41,#REF!,6,FALSE) ->  | AE41: =T41-HLOOKUP(X41,#REF!,7,FALSE) ->  | AF41: =T41-HLOOKUP(X41,#REF!,8,FALSE) ->  | AG41: =T41-HLOOKUP(X41,#REF!,9,FALSE) -> 
A42: F | B42: SO | C42: MPY | D42: 8 | E42: 378621 | F42: HOUZE | G42: Mandy | H42: 2002 | I42: 51.7 | J42: FIGEAC HC | K42: F | L42: 7 | M42: 8 | N42: 9 | O42: 17 | P42: 12 | Q42: 14 | R42: 16 | S42: 30 | T42: 47 | U42: 72.33771565 | V42: -4.7 | X42: =IF(A42="F",(IF(OR(H42>2001,H42<2004),VLOOKUP(I42,Feuil1!$G$11:$H$25,2))),IF(A42="H",(IF(OR(H42>2001,H42<2004),VLOOKUP(I42,Feuil1!$A$11:$F$29,2))))) -> FM53 | Z42: =T42-HLOOKUP(X42,#REF!,2,FALSE) ->  | AA42: =T42-HLOOKUP(X42,#REF!,3,FALSE) ->  | AB42: =T42-HLOOKUP(X42,#REF!,4,FALSE) ->  | AC42: =T42-HLOOKUP(X42,#REF!,5,FALSE) ->  | AD42: =T42-HLOOKUP(X42,#REF!,6,FALSE) ->  | AE42: =T42-HLOOKUP(X42,#REF!,7,FALSE) ->  | AF42: =T42-HLOOKUP(X42,#REF!,8,FALSE) ->  | AG42: =T42-HLOOKUP(X42,#REF!,9,FALSE) -> 
AB43: =T43-HLOOKUP(X43,[1]Feuil1!$C$1:$BL$10,2,FALSE) ->  | AC43: =T43-HLOOKUP(X43,[1]Feuil1!$C$1:$BL$10,3,FALSE) ->  | AD43: =T43-HLOOKUP(X43,[1]Feuil1!$C$1:$BL$10,4,FALSE) ->  | AE43: =T43-HLOOKUP(X43,[1]Feuil1!$C$1:$BL$10,5,FALSE) ->  | AF43: =T43-HLOOKUP(X43,[1]Feuil1!$C$1:$BL$10,6,FALSE) ->  | AG43: =T43-HLOOKUP(X43,[1]Feuil1!$C$1:$BL$10,7,FALSE) ->  | AH43: =T43-HLOOKUP(X43,[1]Feuil1!$C$1:$BL$10,8,FALSE) ->  | AI43: =T43-HLOOKUP(X43,[1]Feuil1!$C$1:$BL$10,9,FALSE) ->  | AJ43: =T43-HLOOKUP(X43,[1]Feuil1!$C$1:$BL$10,10,FALSE) ->  | AQ43: =IF(AJ43>=0,$AJ$4,IF(AI43>=0,$AI$4,IF(AH43>=0,$AH$4,IF(AG43>=0,$AG$4,IF(AF43>=0,$AF$4,IF(AE43>=0,$AE$4,IF(AD43>=0,$AD$4,IF(AC43>=0,$AC$4,$AB$4)))))))) -> 
A44: F | B44: SEST | C44: RAL | D44: 1 | E44: 352110 | F44: PICOT | G44: Zéline | H44: 2003 | I44: 53.1 | J44: CH Saint Baldoph | K44: F | L44: 32 | M44: 34 | N44: 36 | O44: =IF(MAXA(L44+M44,M44+N44,L44+N44,L44,M44,N44)<=0,0,MAXA(L44+M44,M44+N44,L44+N44,L44,M44,N44)) -> 70 | P44: 46 | Q44: 48 | R44: 50 | S44: =IF(MAXA(P44+Q44,Q44+R44,P44+R44,P44,Q44,R44)<=0,0,MAXA(P44+Q44,Q44+R44,P44+R44,P44,Q44,R44)) -> 98 | T44: =IF(H44="","",IF(OR(O44=0,S44=0),0,O44+S44)) -> 168 | U44: =IF(I44="","",IF(A44="H",10^(0.794358141*LOG(I44/174.393)^2)*T44,IF(A44="F",10^(0.89726074 * LOG(I44/148.026)^2)*T44,""))) -> 253.0368829 | V44: =SUM(T44-I44) -> 114.9 | X44: =IF(A44="F",(IF(OR(H44>2001,H44<2004),VLOOKUP(I44,Feuil1!$G$11:$H$25,2))),IF(A44="H",(IF(OR(H44>2001,H44<2004),VLOOKUP(I44,Feuil1!$A$11:$F$29,2))))) -> FM58 | Z44: =T44-HLOOKUP(X44,#REF!,2,FALSE) ->  | AA44: =T44-HLOOKUP(X44,#REF!,3,FALSE) ->  | AB44: =T44-HLOOKUP(X44,#REF!,4,FALSE) ->  | AC44: =T44-HLOOKUP(X44,#REF!,5,FALSE) ->  | AD44: =T44-HLOOKUP(X44,#REF!,6,FALSE) ->  | AE44: =T44-HLOOKUP(X44,#REF!,7,FALSE) ->  | AF44: =T44-HLOOKUP(X44,#REF!,8,FALSE) ->  | AG44: =T44-HLOOKUP(X44,#REF!,9,FALSE) ->  | AO44: =IF(AG44>=0,$AG$4,IF(AF44>=0,$AF$4,IF(AE44>=0,$AE$4,IF(AD44>=0,$AD$4,IF(AC44>=0,$AC$4,IF(AB44>=0,$AB$4,IF(AA44>=0,$AA$4,IF(Z44>=0,$Z$4,$AH$4)))))))) -> 
A45: F | B45: ZCO | C45: BRE | D45: 2 | E45: 357283 | F45: BEGHAIN | G45: Mayliss | H45: 2002 | I45: 54.32 | J45: AL QUIMPER | K45: F | L45: 31 | M45: 32 | N45: 34 | O45: 66 | P45: 41 | Q45: 42 | R45: 44 | S45: 86 | T45: 152 | U45: 224.8656622 | V45: 97.68 | X45: =IF(A45="F",(IF(OR(H45>2001,H45<2004),VLOOKUP(I45,Feuil1!$G$11:$H$25,2))),IF(A45="H",(IF(OR(H45>2001,H45<2004),VLOOKUP(I45,Feuil1!$A$11:$F$29,2))))) -> FM58 | Z45: =T45-HLOOKUP(X45,#REF!,2,FALSE) ->  | AA45: =T45-HLOOKUP(X45,#REF!,3,FALSE) ->  | AB45: =T45-HLOOKUP(X45,#REF!,4,FALSE) ->  | AC45: =T45-HLOOKUP(X45,#REF!,5,FALSE) ->  | AD45: =T45-HLOOKUP(X45,#REF!,6,FALSE) ->  | AE45: =T45-HLOOKUP(X45,#REF!,7,FALSE) ->  | AF45: =T45-HLOOKUP(X45,#REF!,8,FALSE) ->  | AG45: =T45-HLOOKUP(X45,#REF!,9,FALSE) -> 
A46: F | B46: NORD | C46: NPC | D46: 3 | E46: 390782 | F46: BAUQUEL | G46: Aurélia | H46: 2003 | I46: 58 | J46: C.A.ROSENDAEL | K46: F | L46: 22 | M46: 24 | N46: 26 | O46: =IF(MAXA(L46+M46,M46+N46,L46+N46,L46,M46,N46)<=0,0,MAXA(L46+M46,M46+N46,L46+N46,L46,M46,N46)) -> 50 | P46: 31 | Q46: 33 | R46: 35 | S46: =IF(MAXA(P46+Q46,Q46+R46,P46+R46,P46,Q46,R46)<=0,0,MAXA(P46+Q46,Q46+R46,P46+R46,P46,Q46,R46)) -> 68 | T46: =IF(H46="","",IF(OR(O46=0,S46=0),0,O46+S46)) -> 118 | U46: =IF(I46="","",IF(A46="H",10^(0.794358141*LOG(I46/174.393)^2)*T46,IF(A46="F",10^(0.89726074 * LOG(I46/148.026)^2)*T46,""))) -> 166.1294522 | V46: =SUM(T46-I46) -> 60 | X46: =IF(A46="F",(IF(OR(H46>2001,H46<2004),VLOOKUP(I46,Feuil1!$G$11:$H$25,2))),IF(A46="H",(IF(OR(H46>2001,H46<2004),VLOOKUP(I46,Feuil1!$A$11:$F$29,2))))) -> FM58 | Z46: =T46-HLOOKUP(X46,#REF!,2,FALSE) ->  | AA46: =T46-HLOOKUP(X46,#REF!,3,FALSE) ->  | AB46: =T46-HLOOKUP(X46,#REF!,4,FALSE) ->  | AC46: =T46-HLOOKUP(X46,#REF!,5,FALSE) ->  | AD46: =T46-HLOOKUP(X46,#REF!,6,FALSE) ->  | AE46: =T46-HLOOKUP(X46,#REF!,7,FALSE) ->  | AF46: =T46-HLOOKUP(X46,#REF!,8,FALSE) ->  | AG46: =T46-HLOOKUP(X46,#REF!,9,FALSE) ->  | AO46: =IF(AG46>=0,$AG$4,IF(AF46>=0,$AF$4,IF(AE46>=0,$AE$4,IF(AD46>=0,$AD$4,IF(AC46>=0,$AC$4,IF(AB46>=0,$AB$4,IF(AA46>=0,$AA$4,IF(Z46>=0,$Z$4,$AH$4)))))))) -> 
A47: F | B47: SEST | C47: LAN | D47: 4 | E47: 375101 | F47: TORRAYSI | G47: Souhaid | H47: 2003 | I47: 54.6 | J47: Narbonne Haltéro | K47: F | L47: 18 | M47: 20 | N47: 22 | O47: 42 | P47: 28 | Q47: 30 | R47: 32 | S47: 62 | T47: 104 | U47: 153.2402411 | V47: 49.4 | X47: =IF(A47="F",(IF(OR(H47>2001,H47<2004),VLOOKUP(I47,Feuil1!$G$11:$H$25,2))),IF(A47="H",(IF(OR(H47>2001,H47<2004),VLOOKUP(I47,Feuil1!$A$11:$F$29,2))))) -> FM58 | Z47: =T47-HLOOKUP(X47,#REF!,2,FALSE) ->  | AA47: =T47-HLOOKUP(X47,#REF!,3,FALSE) ->  | AB47: =T47-HLOOKUP(X47,#REF!,4,FALSE) ->  | AC47: =T47-HLOOKUP(X47,#REF!,5,FALSE) ->  | AD47: =T47-HLOOKUP(X47,#REF!,6,FALSE) ->  | AE47: =T47-HLOOKUP(X47,#REF!,7,FALSE) ->  | AF47: =T47-HLOOKUP(X47,#REF!,8,FALSE) ->  | AG47: =T47-HLOOKUP(X47,#REF!,9,FALSE) -> 
AB48: =T48-HLOOKUP(X48,[1]Feuil1!$C$1:$BL$10,2,FALSE) ->  | AC48: =T48-HLOOKUP(X48,[1]Feuil1!$C$1:$BL$10,3,FALSE) ->  | AD48: =T48-HLOOKUP(X48,[1]Feuil1!$C$1:$BL$10,4,FALSE) ->  | AE48: =T48-HLOOKUP(X48,[1]Feuil1!$C$1:$BL$10,5,FALSE) ->  | AF48: =T48-HLOOKUP(X48,[1]Feuil1!$C$1:$BL$10,6,FALSE) ->  | AG48: =T48-HLOOKUP(X48,[1]Feuil1!$C$1:$BL$10,7,FALSE) ->  | AH48: =T48-HLOOKUP(X48,[1]Feuil1!$C$1:$BL$10,8,FALSE) ->  | AI48: =T48-HLOOKUP(X48,[1]Feuil1!$C$1:$BL$10,9,FALSE) ->  | AJ48: =T48-HLOOKUP(X48,[1]Feuil1!$C$1:$BL$10,10,FALSE) ->  | AQ48: =IF(AJ48>=0,$AJ$4,IF(AI48>=0,$AI$4,IF(AH48>=0,$AH$4,IF(AG48>=0,$AG$4,IF(AF48>=0,$AF$4,IF(AE48>=0,$AE$4,IF(AD48>=0,$AD$4,IF(AC48>=0,$AC$4,$AB$4)))))))) -> 
A49: F | B49: N | C49: IDF | D49: 1 | E49: 378747 | F49: REZZAK | G49: AMELLE | H49: 2002 | I49: 62.41 | J49: FRANCONVILLE | K49: F | L49: 34 | M49: 36 | N49: 37 | O49: =IF(MAXA(L49+M49,M49+N49,L49+N49,L49,M49,N49)<=0,0,MAXA(L49+M49,M49+N49,L49+N49,L49,M49,N49)) -> 73 | P49: 42 | Q49: 44 | R49: 46 | S49: =IF(MAXA(P49+Q49,Q49+R49,P49+R49,P49,Q49,R49)<=0,0,MAXA(P49+Q49,Q49+R49,P49+R49,P49,Q49,R49)) -> 90 | T49: =IF(H49="","",IF(OR(O49=0,S49=0),0,O49+S49)) -> 163 | U49: =IF(I49="","",IF(A49="H",10^(0.794358141*LOG(I49/174.393)^2)*T49,IF(A49="F",10^(0.89726074 * LOG(I49/148.026)^2)*T49,""))) -> 217.9823395 | V49: =SUM(T49-I49) -> 100.59 | X49: =IF(A49="F",(IF(OR(H49>2001,H49<2004),VLOOKUP(I49,Feuil1!$G$11:$H$25,2))),IF(A49="H",(IF(OR(H49>2001,H49<2004),VLOOKUP(I49,Feuil1!$A$11:$F$29,2))))) -> FM+58 | Z49: =T49-HLOOKUP(X49,#REF!,2,FALSE) ->  | AA49: =T49-HLOOKUP(X49,#REF!,3,FALSE) ->  | AB49: =T49-HLOOKUP(X49,#REF!,4,FALSE) ->  | AC49: =T49-HLOOKUP(X49,#REF!,5,FALSE) ->  | AD49: =T49-HLOOKUP(X49,#REF!,6,FALSE) ->  | AE49: =T49-HLOOKUP(X49,#REF!,7,FALSE) ->  | AF49: =T49-HLOOKUP(X49,#REF!,8,FALSE) ->  | AG49: =T49-HLOOKUP(X49,#REF!,9,FALSE) ->  | AO49: =IF(AG49>=0,$AG$4,IF(AF49>=0,$AF$4,IF(AE49>=0,$AE$4,IF(AD49>=0,$AD$4,IF(AC49>=0,$AC$4,IF(AB49>=0,$AB$4,IF(AA49>=0,$AA$4,IF(Z49>=0,$Z$4,$AH$4)))))))) -> 
A50: F | B50: SEST | C50: PRO | D50: 2 | E50: 361672 | F50: BOURGOIS | G50: Clara | H50: 2002 | I50: 63.61 | J50: ISTRES SPORTS | K50: F | L50: 32 | M50: 33 | N50: 34 | O50: =IF(MAXA(L50+M50,M50+N50,L50+N50,L50,M50,N50)<=0,0,MAXA(L50+M50,M50+N50,L50+N50,L50,M50,N50)) -> 67 | P50: 41 | Q50: 43 | R50: 45 | S50: =IF(MAXA(P50+Q50,Q50+R50,P50+R50,P50,Q50,R50)<=0,0,MAXA(P50+Q50,Q50+R50,P50+R50,P50,Q50,R50)) -> 88 | T50: =IF(H50="","",IF(OR(O50=0,S50=0),0,O50+S50)) -> 155 | U50: =IF(I50="","",IF(A50="H",10^(0.794358141*LOG(I50/174.393)^2)*T50,IF(A50="F",10^(0.89726074 * LOG(I50/148.026)^2)*T50,""))) -> 204.6724872 | V50: =SUM(T50-I50) -> 91.39 | X50: =IF(A50="F",(IF(OR(H50>2001,H50<2004),VLOOKUP(I50,Feuil1!$G$11:$H$25,2))),IF(A50="H",(IF(OR(H50>2001,H50<2004),VLOOKUP(I50,Feuil1!$A$11:$F$29,2))))) -> FM+58 | Z50: =T50-HLOOKUP(X50,#REF!,2,FALSE) ->  | AA50: =T50-HLOOKUP(X50,#REF!,3,FALSE) ->  | AB50: =T50-HLOOKUP(X50,#REF!,4,FALSE) ->  | AC50: =T50-HLOOKUP(X50,#REF!,5,FALSE) ->  | AD50: =T50-HLOOKUP(X50,#REF!,6,FALSE) ->  | AE50: =T50-HLOOKUP(X50,#REF!,7,FALSE) ->  | AF50: =T50-HLOOKUP(X50,#REF!,8,FALSE) ->  | AG50: =T50-HLOOKUP(X50,#REF!,9,FALSE) ->  | AO50: =IF(AG50>=0,$AG$4,IF(AF50>=0,$AF$4,IF(AE50>=0,$AE$4,IF(AD50>=0,$AD$4,IF(AC50>=0,$AC$4,IF(AB50>=0,$AB$4,IF(AA50>=0,$AA$4,IF(Z50>=0,$Z$4,$AH$4)))))))) -> 
A51: F | B51: ZCO | C51: BRE | D51: 3 | E51: 387354 | F51: ABREUVEUX | G51: Méline | H51: 2002 | I51: 58.3 | J51: ES Saint-Avé | K51: F | L51: 17 | M51: -18 | N51: 18 | O51: =IF(MAXA(L51+M51,M51+N51,L51+N51,L51,M51,N51)<=0,0,MAXA(L51+M51,M51+N51,L51+N51,L51,M51,N51)) -> 35 | P51: 24 | Q51: 25 | R51: 27 | S51: =IF(MAXA(P51+Q51,Q51+R51,P51+R51,P51,Q51,R51)<=0,0,MAXA(P51+Q51,Q51+R51,P51+R51,P51,Q51,R51)) -> 52 | T51: =IF(H51="","",IF(OR(O51=0,S51=0),0,O51+S51)) -> 87 | U51: =IF(I51="","",IF(A51="H",10^(0.794358141*LOG(I51/174.393)^2)*T51,IF(A51="F",10^(0.89726074 * LOG(I51/148.026)^2)*T51,""))) -> 122.0259803 | V51: =SUM(T51-I51) -> 28.7 | X51: =IF(A51="F",(IF(OR(H51>2001,H51<2004),VLOOKUP(I51,Feuil1!$G$11:$H$25,2))),IF(A51="H",(IF(OR(H51>2001,H51<2004),VLOOKUP(I51,Feuil1!$A$11:$F$29,2))))) -> FM+58 | Z51: =T51-HLOOKUP(X51,#REF!,2,FALSE) ->  | AA51: =T51-HLOOKUP(X51,#REF!,3,FALSE) ->  | AB51: =T51-HLOOKUP(X51,#REF!,4,FALSE) ->  | AC51: =T51-HLOOKUP(X51,#REF!,5,FALSE) ->  | AD51: =T51-HLOOKUP(X51,#REF!,6,FALSE) ->  | AE51: =T51-HLOOKUP(X51,#REF!,7,FALSE) ->  | AF51: =T51-HLOOKUP(X51,#REF!,8,FALSE) ->  | AG51: =T51-HLOOKUP(X51,#REF!,9,FALSE) ->  | AO51: =IF(AG51>=0,$AG$4,IF(AF51>=0,$AF$4,IF(AE51>=0,$AE$4,IF(AD51>=0,$AD$4,IF(AC51>=0,$AC$4,IF(AB51>=0,$AB$4,IF(AA51>=0,$AA$4,IF(Z51>=0,$Z$4,$AH$4)))))))) -> 
A52: F | B52: CO | C52: HNO | D52: 4 | E52: 361094 | F52: GALHAUT | G52: Lucie | H52: 2003 | I52: 73.1 | J52: CHM Le Trait | K52: F | L52: 12 | M52: 14 | N52: 16 | O52: =IF(MAXA(L52+M52,M52+N52,L52+N52,L52,M52,N52)<=0,0,MAXA(L52+M52,M52+N52,L52+N52,L52,M52,N52)) -> 30 | P52: 20 | Q52: 22 | R52: 24 | S52: =IF(MAXA(P52+Q52,Q52+R52,P52+R52,P52,Q52,R52)<=0,0,MAXA(P52+Q52,Q52+R52,P52+R52,P52,Q52,R52)) -> 46 | T52: =IF(H52="","",IF(OR(O52=0,S52=0),0,O52+S52)) -> 76 | U52: =IF(I52="","",IF(A52="H",10^(0.794358141*LOG(I52/174.393)^2)*T52,IF(A52="F",10^(0.89726074 * LOG(I52/148.026)^2)*T52,""))) -> 92.27002403 | V52: =SUM(T52-I52) -> 2.9 | X52: =IF(A52="F",(IF(OR(H52>2001,H52<2004),VLOOKUP(I52,Feuil1!$G$11:$H$25,2))),IF(A52="H",(IF(OR(H52>2001,H52<2004),VLOOKUP(I52,Feuil1!$A$11:$F$29,2))))) -> FM+58 | Z52: =T52-HLOOKUP(X52,#REF!,2,FALSE) ->  | AA52: =T52-HLOOKUP(X52,#REF!,3,FALSE) ->  | AB52: =T52-HLOOKUP(X52,#REF!,4,FALSE) ->  | AC52: =T52-HLOOKUP(X52,#REF!,5,FALSE) ->  | AD52: =T52-HLOOKUP(X52,#REF!,6,FALSE) ->  | AE52: =T52-HLOOKUP(X52,#REF!,7,FALSE) ->  | AF52: =T52-HLOOKUP(X52,#REF!,8,FALSE) ->  | AG52: =T52-HLOOKUP(X52,#REF!,9,FALSE) ->  | AO52: =IF(AG52>=0,$AG$4,IF(AF52>=0,$AF$4,IF(AE52>=0,$AE$4,IF(AD52>=0,$AD$4,IF(AC52>=0,$AC$4,IF(AB52>=0,$AB$4,IF(AA52>=0,$AA$4,IF(Z52>=0,$Z$4,$AH$4)))))))) -> 
A53: F | B53: SEST | C53: LAN | D53: 5 | E53: 397798 | F53: HAOUZI | G53: Leila | H53: 2002 | I53: 69.2 | J53: Narbonne Haltéro | K53: F | L53: 15 | M53: 17 | N53: 19 | O53: =IF(MAXA(L53+M53,M53+N53,L53+N53,L53,M53,N53)<=0,0,MAXA(L53+M53,M53+N53,L53+N53,L53,M53,N53)) -> 36 | P53: -27 | Q53: -29 | R53: 29 | S53: =IF(MAXA(P53+Q53,Q53+R53,P53+R53,P53,Q53,R53)<=0,0,MAXA(P53+Q53,Q53+R53,P53+R53,P53,Q53,R53)) -> 29 | T53: =IF(H53="","",IF(OR(O53=0,S53=0),0,O53+S53)) -> 65 | U53: =IF(I53="","",IF(A53="H",10^(0.794358141*LOG(I53/174.393)^2)*T53,IF(A53="F",10^(0.89726074 * LOG(I53/148.026)^2)*T53,""))) -> 81.42587502 | V53: =SUM(T53-I53) -> -4.2 | X53: =IF(A53="F",(IF(OR(H53>2001,H53<2004),VLOOKUP(I53,Feuil1!$G$11:$H$25,2))),IF(A53="H",(IF(OR(H53>2001,H53<2004),VLOOKUP(I53,Feuil1!$A$11:$F$29,2))))) -> FM+58 | Z53: =T53-HLOOKUP(X53,#REF!,2,FALSE) ->  | AA53: =T53-HLOOKUP(X53,#REF!,3,FALSE) ->  | AB53: =T53-HLOOKUP(X53,#REF!,4,FALSE) ->  | AC53: =T53-HLOOKUP(X53,#REF!,5,FALSE) ->  | AD53: =T53-HLOOKUP(X53,#REF!,6,FALSE) ->  | AE53: =T53-HLOOKUP(X53,#REF!,7,FALSE) ->  | AF53: =T53-HLOOKUP(X53,#REF!,8,FALSE) ->  | AG53: =T53-HLOOKUP(X53,#REF!,9,FALSE) ->  | AO53: =IF(AG53>=0,$AG$4,IF(AF53>=0,$AF$4,IF(AE53>=0,$AE$4,IF(AD53>=0,$AD$4,IF(AC53>=0,$AC$4,IF(AB53>=0,$AB$4,IF(AA53>=0,$AA$4,IF(Z53>=0,$Z$4,$AH$4)))))))) -> 
AB54: =T54-HLOOKUP(X54,[1]Feuil1!$C$1:$BL$10,2,FALSE) ->  | AC54: =T54-HLOOKUP(X54,[1]Feuil1!$C$1:$BL$10,3,FALSE) ->  | AD54: =T54-HLOOKUP(X54,[1]Feuil1!$C$1:$BL$10,4,FALSE) ->  | AE54: =T54-HLOOKUP(X54,[1]Feuil1!$C$1:$BL$10,5,FALSE) ->  | AF54: =T54-HLOOKUP(X54,[1]Feuil1!$C$1:$BL$10,6,FALSE) ->  | AG54: =T54-HLOOKUP(X54,[1]Feuil1!$C$1:$BL$10,7,FALSE) ->  | AH54: =T54-HLOOKUP(X54,[1]Feuil1!$C$1:$BL$10,8,FALSE) ->  | AI54: =T54-HLOOKUP(X54,[1]Feuil1!$C$1:$BL$10,9,FALSE) ->  | AJ54: =T54-HLOOKUP(X54,[1]Feuil1!$C$1:$BL$10,10,FALSE) ->  | AQ54: =IF(AJ54>=0,$AJ$4,IF(AI54>=0,$AI$4,IF(AH54>=0,$AH$4,IF(AG54>=0,$AG$4,IF(AF54>=0,$AF$4,IF(AE54>=0,$AE$4,IF(AD54>=0,$AD$4,IF(AC54>=0,$AC$4,$AB$4)))))))) -> 
Y554: J69 | Z554: J77 | AA554: J85 | AB554: J94 | AC554: J105 | AD554: J+105 | AF554: J56 | AG554: J62 | AH554: J69 | AI554: J77 | AJ554: J85 | AK554: J94 | AL554: J105 | AM554: J+105 | AO554: S56 | AP554: S62 | AQ554: S69 | AR554: S77 | AS554: S85 | AT554: S94 | AU554: S105 | AV554: S+105
Y555: 130 | Z555: 145 | AA555: 160 | AB555: 170 | AC555: 180 | AD555: 190 | AF555: 100 | AG555: 115 | AH555: 130 | AI555: 145 | AJ555: 160 | AK555: 170 | AL555: 180 | AM555: 190 | AO555: 115 | AP555: 135 | AQ555: 150 | AR555: 165 | AS555: 180 | AT555: 190 | AU555: 200 | AV555: 210
Y556: 150 | Z556: 165 | AA556: 180 | AB556: 190 | AC556: 200 | AD556: 210 | AF556: 115 | AG556: 135 | AH556: 150 | AI556: 165 | AJ556: 180 | AK556: 190 | AL556: 200 | AM556: 210 | AO556: 130 | AP556: 150 | AQ556: 165 | AR556: 185 | AS556: 200 | AT556: 210 | AU556: 220 | AV556: 230
Y557: 165 | Z557: 185 | AA557: 200 | AB557: 210 | AC557: 220 | AD557: 230 | AF557: 130 | AG557: 150 | AH557: 165 | AI557: 185 | AJ557: 200 | AK557: 210 | AL557: 220 | AM557: 230 | AO557: 145 | AP557: 165 | AQ557: 180 | AR557: 200 | AS557: 220 | AT557: 230 | AU557: 240 | AV557: 250
Y558: 180 | Z558: 200 | AA558: 220 | AB558: 230 | AC558: 240 | AD558: 250 | AF558: 145 | AG558: 165 | AH558: 180 | AI558: 200 | AJ558: 220 | AK558: 230 | AL558: 240 | AM558: 250 | AO558: 175 | AP558: 195 | AQ558: 215 | AR558: 235 | AS558: 250 | AT558: 260 | AU558: 275 | AV558: 280
Y559: 215 | Z559: 235 | AA559: 250 | AB559: 260 | AC559: 275 | AD559: 280 | AF559: 175 | AG559: 195 | AH559: 215 | AI559: 235 | AJ559: 250 | AK559: 260 | AL559: 275 | AM559: 280 | AO559: 210 | AP559: 230 | AQ559: 250 | AR559: 270 | AS559: 290 | AT559: 300 | AU559: 310 | AV559: 325
Y560: 250 | Z560: 270 | AA560: 290 | AB560: 300 | AC560: 310 | AD560: 325 | AF560: 210 | AG560: 230 | AH560: 250 | AI560: 270 | AJ560: 290 | AK560: 300 | AL560: 310 | AM560: 325 | AO560: 230 | AP560: 255 | AQ560: 275 | AR560: 300 | AS560: 315 | AT560: 335 | AU560: 345 | AV560: 355
Y561: 295 | Z561: 320 | AA561: 335 | AB561: 355 | AC561: 370 | AD561: 380 | AF561: 245 | AG561: 270 | AH561: 295 | AI561: 320 | AJ561: 335 | AK561: 355 | AL561: 370 | AM561: 380 | AO561: 245 | AP561: 270 | AQ561: 295 | AR561: 320 | AS561: 335 | AT561: 355 | AU561: 370 | AV561: 380

Sheet MINIMES GARCONS
D1: LISTING NATIONAL | G1: MINIMES GARCONS | Q1: DATE : | S1: 2015-06-30
F2: 2014-2015 | L2: 3° TRIMESTRE
A4: SEXE | B4: ZONE | C4: REG. | D4: Place | E4: LICENCE | F4: NOMS | G4: Prénoms | H4: AN | I4: POIDS | J4: CLUB | K4: NAT | L4: 1 | M4: 2 | N4: 3 | O4: ARR | P4: 1 | Q4: 2 | R4: 3 | S4: EP-J | T4: TOTAL | U4: IWF | V4: Points | X4: Catég | Z4: DEP + | AA4: REG + | AB4: IRG + | AC4: FED + | AD4: NAT + | AE4: INTB + | AF4: INTA + | AG4: OLY + | AH4: NCL
AB5: =T5-HLOOKUP(X5,[1]Feuil1!$C$1:$BL$10,2,FALSE) ->  | AC5: =T5-HLOOKUP(X5,[1]Feuil1!$C$1:$BL$10,3,FALSE) ->  | AD5: =T5-HLOOKUP(X5,[1]Feuil1!$C$1:$BL$10,4,FALSE) ->  | AE5: =T5-HLOOKUP(X5,[1]Feuil1!$C$1:$BL$10,5,FALSE) ->  | AF5: =T5-HLOOKUP(X5,[1]Feuil1!$C$1:$BL$10,6,FALSE) ->  | AG5: =T5-HLOOKUP(X5,[1]Feuil1!$C$1:$BL$10,7,FALSE) ->  | AH5: =T5-HLOOKUP(X5,[1]Feuil1!$C$1:$BL$10,8,FALSE) ->  | AI5: =T5-HLOOKUP(X5,[1]Feuil1!$C$1:$BL$10,9,FALSE) ->  | AJ5: =T5-HLOOKUP(X5,[1]Feuil1!$C$1:$BL$10,10,FALSE) ->  | AQ5: =IF(AJ5>=0,$AJ$4,IF(AI5>=0,$AI$4,IF(AH5>=0,$AH$4,IF(AG5>=0,$AG$4,IF(AF5>=0,$AF$4,IF(AE5>=0,$AE$4,IF(AD5>=0,$AD$4,IF(AC5>=0,$AC$4,$AB$4)))))))) -> 
A6: H | B6: CO | C6: PDL | D6: 1 | E6: 355921 | F6: COGNON | G6: Théo | H6: 2002 | I6: 39.4 | J6: CJF LAVAL - VOUTRÉ | K6: F | L6: 38 | M6: 40 | N6: 42 | O6: =IF(MAXA(L6+M6,M6+N6,L6+N6,L6,M6,N6)<=0,0,MAXA(L6+M6,M6+N6,L6+N6,L6,M6,N6)) -> 82 | P6: 48 | Q6: 50 | R6: 52 | S6: =IF(MAXA(P6+Q6,Q6+R6,P6+R6,P6,Q6,R6)<=0,0,MAXA(P6+Q6,Q6+R6,P6+R6,P6,Q6,R6)) -> 102 | T6: =IF(H6="","",IF(OR(O6=0,S6=0),0,O6+S6)) -> 184 | U6: =IF(I6="","",IF(A6="H",10^(0.794358141*LOG(I6/174.393)^2)*T6,IF(A6="F",10^(0.89726074 * LOG(I6/148.026)^2)*T6,""))) -> 394.7752129 | V6: =SUM(T6-I6) -> 144.6 | X6: =IF(A6="F",(IF(OR(H6>2001,H6<2004),VLOOKUP(I6,Feuil1!$G$11:$H$25,2))),IF(A6="H",(IF(OR(H6>2001,H6<2004),VLOOKUP(I6,Feuil1!$A$11:$F$29,2))))) -> M40 | Z6: =T6-HLOOKUP(X6,#REF!,2,FALSE) ->  | AA6: =T6-HLOOKUP(X6,#REF!,3,FALSE) ->  | AB6: =T6-HLOOKUP(X6,#REF!,4,FALSE) ->  | AC6: =T6-HLOOKUP(X6,#REF!,5,FALSE) ->  | AD6: =T6-HLOOKUP(X6,#REF!,6,FALSE) ->  | AE6: =T6-HLOOKUP(X6,#REF!,7,FALSE) ->  | AF6: =T6-HLOOKUP(X6,#REF!,8,FALSE) ->  | AG6: =T6-HLOOKUP(X6,#REF!,9,FALSE) ->  | AO6: =IF(AG6>=0,$AG$4,IF(AF6>=0,$AF$4,IF(AE6>=0,$AE$4,IF(AD6>=0,$AD$4,IF(AC6>=0,$AC$4,IF(AB6>=0,$AB$4,IF(AA6>=0,$AA$4,IF(Z6>=0,$Z$4,$AH$4)))))))) -> 
A7: H | B7: NORD | C7: NPC | D7: 2 | E7: 248952 | F7: BUYSSCHAERT | G7: Tristan | H7: 2003 | I7: 36.3 | J7: CHCD COMINES | K7: F | L7: 29 | M7: 31 | N7: 33 | O7: 64 | P7: 40 | Q7: 42 | R7: 44 | S7: 86 | T7: 150 | U7: 350.8789402 | V7: 113.7 | X7: =IF(A7="F",(IF(OR(H7>2001,H7<2004),VLOOKUP(I7,Feuil1!$G$11:$H$25,2))),IF(A7="H",(IF(OR(H7>2001,H7<2004),VLOOKUP(I7,Feuil1!$A$11:$F$29,2))))) -> M40 | Z7: =T7-HLOOKUP(X7,#REF!,2,FALSE) ->  | AA7: =T7-HLOOKUP(X7,#REF!,3,FALSE) ->  | AB7: =T7-HLOOKUP(X7,#REF!,4,FALSE) ->  | AC7: =T7-HLOOKUP(X7,#REF!,5,FALSE) ->  | AD7: =T7-HLOOKUP(X7,#REF!,6,FALSE) ->  | AE7: =T7-HLOOKUP(X7,#REF!,7,FALSE) ->  | AF7: =T7-HLOOKUP(X7,#REF!,8,FALSE) ->  | AG7: =T7-HLOOKUP(X7,#REF!,9,FALSE) -> 
A8: H | B8: ZCO | C8: BRE | D8: 3 | E8: 355330 | F8: OLLIVIER | G8: Leny | H8: 2003 | I8: 36.27 | J8: AL QUIMPER | K8: F | L8: 27 | M8: 28 | N8: 29 | O8: 57 | P8: 39 | Q8: 40 | R8: 42 | S8: 82 | T8: 139 | U8: 325.4391405 | V8: 102.73 | X8: =IF(A8="F",(IF(OR(H8>2001,H8<2004),VLOOKUP(I8,Feuil1!$G$11:$H$25,2))),IF(A8="H",(IF(OR(H8>2001,H8<2004),VLOOKUP(I8,Feuil1!$A$11:$F$29,2))))) -> M40 | Z8: =T8-HLOOKUP(X8,#REF!,2,FALSE) ->  | AA8: =T8-HLOOKUP(X8,#REF!,3,FALSE) ->  | AB8: =T8-HLOOKUP(X8,#REF!,4,FALSE) ->  | AC8: =T8-HLOOKUP(X8,#REF!,5,FALSE) ->  | AD8: =T8-HLOOKUP(X8,#REF!,6,FALSE) ->  | AE8: =T8-HLOOKUP(X8,#REF!,7,FALSE) ->  | AF8: =T8-HLOOKUP(X8,#REF!,8,FALSE) ->  | AG8: =T8-HLOOKUP(X8,#REF!,9,FALSE) -> 
A9: H | B9: SEST | C9: RAL | D9: 4 | E9: 359944 | F9: CHABERT | G9: Lucas | H9: 2003 | I9: 39.33 | J9: La Ricamarie | K9: F | L9: 25 | M9: 26 | N9: 28 | O9: 54 | P9: 32 | Q9: 34 | R9: 36 | S9: 70 | T9: 124 | U9: 266.530459 | V9: 84.67 | X9: =IF(A9="F",(IF(OR(H9>2001,H9<2004),VLOOKUP(I9,Feuil1!$G$11:$H$25,2))),IF(A9="H",(IF(OR(H9>2001,H9<2004),VLOOKUP(I9,Feuil1!$A$11:$F$29,2))))) -> M40 | Z9: =T9-HLOOKUP(X9,#REF!,2,FALSE) ->  | AA9: =T9-HLOOKUP(X9,#REF!,3,FALSE) ->  | AB9: =T9-HLOOKUP(X9,#REF!,4,FALSE) ->  | AC9: =T9-HLOOKUP(X9,#REF!,5,FALSE) ->  | AD9: =T9-HLOOKUP(X9,#REF!,6,FALSE) ->  | AE9: =T9-HLOOKUP(X9,#REF!,7,FALSE) ->  | AF9: =T9-HLOOKUP(X9,#REF!,8,FALSE) ->  | AG9: =T9-HLOOKUP(X9,#REF!,9,FALSE) -> 
A10: H | B10: SO | C10: MPY | D10: 5 | E10: 378627 | F10: VALEAN | G10: Andrei | H10: 2003 | I10: 39.9 | J10: FIGEAC HC | K10: R | L10: 23 | M10: 25 | N10: 27 | O10: 52 | P10: 31 | Q10: 33 | R10: 35 | S10: 68 | T10: 120 | U10: 254.1651903 | V10: 80.1 | X10: =IF(A10="F",(IF(OR(H10>2001,H10<2004),VLOOKUP(I10,Feuil1!$G$11:$H$25,2))),IF(A10="H",(IF(OR(H10>2001,H10<2004),VLOOKUP(I10,Feuil1!$A$11:$F$29,2))))) -> M40 | Z10: =T10-HLOOKUP(X10,#REF!,2,FALSE) ->  | AA10: =T10-HLOOKUP(X10,#REF!,3,FALSE) ->  | AB10: =T10-HLOOKUP(X10,#REF!,4,FALSE) ->  | AC10: =T10-HLOOKUP(X10,#REF!,5,FALSE) ->  | AD10: =T10-HLOOKUP(X10,#REF!,6,FALSE) ->  | AE10: =T10-HLOOKUP(X10,#REF!,7,FALSE) ->  | AF10: =T10-HLOOKUP(X10,#REF!,8,FALSE) ->  | AG10: =T10-HLOOKUP(X10,#REF!,9,FALSE) -> 
A11: H | B11: SEST | C11: RAL | D11: 6 | E11: 373869 | F11: MATHUREL | G11: Lucas | H11: 2002 | I11: 38.71 | J11: CH Saint Baldoph | K11: F | L11: 22 | M11: 24 | N11: -26 | O11: 46 | P11: 32 | Q11: 34 | R11: 36 | S11: 70 | T11: 116 | U11: 253.4615843 | V11: 77.29 | X11: =IF(A11="F",(IF(OR(H11>2001,H11<2004),VLOOKUP(I11,Feuil1!$G$11:$H$25,2))),IF(A11="H",(IF(OR(H11>2001,H11<2004),VLOOKUP(I11,Feuil1!$A$11:$F$29,2))))) -> M40 | Z11: =T11-HLOOKUP(X11,#REF!,2,FALSE) ->  | AA11: =T11-HLOOKUP(X11,#REF!,3,FALSE) ->  | AB11: =T11-HLOOKUP(X11,#REF!,4,FALSE) ->  | AC11: =T11-HLOOKUP(X11,#REF!,5,FALSE) ->  | AD11: =T11-HLOOKUP(X11,#REF!,6,FALSE) ->  | AE11: =T11-HLOOKUP(X11,#REF!,7,FALSE) ->  | AF11: =T11-HLOOKUP(X11,#REF!,8,FALSE) ->  | AG11: =T11-HLOOKUP(X11,#REF!,9,FALSE) -> 
A12: H | B12: SEST | C12: PRO | D12: 7 | E12: 320573 | F12: POUBLAN | G12: Thomas | H12: 2002 | I12: 33.17 | J12: EEAR. MONTEUX | K12: F | L12: 20 | M12: 22 | N12: 24 | O12: 46 | P12: 30 | Q12: 32 | R12: 34 | S12: 66 | T12: 112 | U12: 289.6743797 | V12: 78.83 | X12: =IF(A12="F",(IF(OR(H12>2001,H12<2004),VLOOKUP(I12,Feuil1!$G$11:$H$25,2))),IF(A12="H",(IF(OR(H12>2001,H12<2004),VLOOKUP(I12,Feuil1!$A$11:$F$29,2))))) -> M40 | Z12: =T12-HLOOKUP(X12,#REF!,2,FALSE) ->  | AA12: =T12-HLOOKUP(X12,#REF!,3,FALSE) ->  | AB12: =T12-HLOOKUP(X12,#REF!,4,FALSE) ->  | AC12: =T12-HLOOKUP(X12,#REF!,5,FALSE) ->  | AD12: =T12-HLOOKUP(X12,#REF!,6,FALSE) ->  | AE12: =T12-HLOOKUP(X12,#REF!,7,FALSE) ->  | AF12: =T12-HLOOKUP(X12,#REF!,8,FALSE) ->  | AG12: =T12-HLOOKUP(X12,#REF!,9,FALSE) -> 
A13: H | B13: NORD | C13: PIC | D13: 8 | E13: 323797 | F13: MARTIN | G13: Thomas | H13: 2002 | I13: 31.57 | J13: Saleux CHM | K13: F | L13: 23 | M13: 25 | N13: 26 | O13: 51 | P13: 29 | Q13: 30 | R13: -32 | S13: 59 | T13: 110 | U13: 301.3267619 | V13: 78.43 | X13: =IF(A13="F",(IF(OR(H13>2001,H13<2004),VLOOKUP(I13,Feuil1!$G$11:$H$25,2))),IF(A13="H",(IF(OR(H13>2001,H13<2004),VLOOKUP(I13,Feuil1!$A$11:$F$29,2))))) -> M40 | Z13: =T13-HLOOKUP(X13,#REF!,2,FALSE) ->  | AA13: =T13-HLOOKUP(X13,#REF!,3,FALSE) ->  | AB13: =T13-HLOOKUP(X13,#REF!,4,FALSE) ->  | AC13: =T13-HLOOKUP(X13,#REF!,5,FALSE) ->  | AD13: =T13-HLOOKUP(X13,#REF!,6,FALSE) ->  | AE13: =T13-HLOOKUP(X13,#REF!,7,FALSE) ->  | AF13: =T13-HLOOKUP(X13,#REF!,8,FALSE) ->  | AG13: =T13-HLOOKUP(X13,#REF!,9,FALSE) -> 
A14: H | B14: SEST | C14: CAZ | D14: 9 | E14: 391434 | F14: MERIAUX | G14: Tom | H14: 2002 | I14: 38.9 | J14: ES VILLENEUVE LOUBET | K14: F | L14: -20 | M14: 20 | N14: 22 | O14: 42 | P14: 32 | Q14: 34 | R14: -36 | S14: 66 | T14: 108 | U14: 234.7864843 | V14: 69.1 | X14: =IF(A14="F",(IF(OR(H14>2001,H14<2004),VLOOKUP(I14,Feuil1!$G$11:$H$25,2))),IF(A14="H",(IF(OR(H14>2001,H14<2004),VLOOKUP(I14,Feuil1!$A$11:$F$29,2))))) -> M40 | Z14: =T14-HLOOKUP(X14,#REF!,2,FALSE) ->  | AA14: =T14-HLOOKUP(X14,#REF!,3,FALSE) ->  | AB14: =T14-HLOOKUP(X14,#REF!,4,FALSE) ->  | AC14: =T14-HLOOKUP(X14,#REF!,5,FALSE) ->  | AD14: =T14-HLOOKUP(X14,#REF!,6,FALSE) ->  | AE14: =T14-HLOOKUP(X14,#REF!,7,FALSE) ->  | AF14: =T14-HLOOKUP(X14,#REF!,8,FALSE) ->  | AG14: =T14-HLOOKUP(X14,#REF!,9,FALSE) -> 
A15: H | B15: NE | C15: LOR | D15: 10 | E15: 251046 | F15: DUCHAUFFOUR | G15: Lucas | H15: 2003 | I15: 28.26 | J15: H.VALLEROY-AUBOUÉ | K15: F | L15: 20 | M15: 21 | N15: 22 | O15: 43 | P15: 30 | Q15: 31 | R15: 32 | S15: 63 | T15: 106 | U15: 332.2865872 | V15: 77.74 | X15: =IF(A15="F",(IF(OR(H15>2001,H15<2004),VLOOKUP(I15,Feuil1!$G$11:$H$25,2))),IF(A15="H",(IF(OR(H15>2001,H15<2004),VLOOKUP(I15,Feuil1!$A$11:$F$29,2))))) -> M40 | Z15: =T15-HLOOKUP(X15,#REF!,2,FALSE) ->  | AA15: =T15-HLOOKUP(X15,#REF!,3,FALSE) ->  | AB15: =T15-HLOOKUP(X15,#REF!,4,FALSE) ->  | AC15: =T15-HLOOKUP(X15,#REF!,5,FALSE) ->  | AD15: =T15-HLOOKUP(X15,#REF!,6,FALSE) ->  | AE15: =T15-HLOOKUP(X15,#REF!,7,FALSE) ->  | AF15: =T15-HLOOKUP(X15,#REF!,8,FALSE) ->  | AG15: =T15-HLOOKUP(X15,#REF!,9,FALSE) -> 
A16: H | B16: NORD | C16: NPC | D16: 11 | E16: 392615 | F16: LECOINTRE | G16: Charles | H16: 2003 | I16: 39.7 | J16: CHCD COMINES | K16: F | L16: 20 | M16: 22 | N16: 24 | O16: 46 | P16: 29 | Q16: -31 | R16: 31 | S16: 60 | T16: 106 | U16: 225.6656241 | V16: 66.3 | X16: =IF(A16="F",(IF(OR(H16>2001,H16<2004),VLOOKUP(I16,Feuil1!$G$11:$H$25,2))),IF(A16="H",(IF(OR(H16>2001,H16<2004),VLOOKUP(I16,Feuil1!$A$11:$F$29,2))))) -> M40 | Z16: =T16-HLOOKUP(X16,#REF!,2,FALSE) ->  | AA16: =T16-HLOOKUP(X16,#REF!,3,FALSE) ->  | AB16: =T16-HLOOKUP(X16,#REF!,4,FALSE) ->  | AC16: =T16-HLOOKUP(X16,#REF!,5,FALSE) ->  | AD16: =T16-HLOOKUP(X16,#REF!,6,FALSE) ->  | AE16: =T16-HLOOKUP(X16,#REF!,7,FALSE) ->  | AF16: =T16-HLOOKUP(X16,#REF!,8,FALSE) ->  | AG16: =T16-HLOOKUP(X16,#REF!,9,FALSE) -> 
A17: H | B17: N | C17: IDF | D17: 12 | E17: 335649 | F17: LEDEAN | G17: LOUAN | H17: 2002 | I17: 38.57 | J17: PONTOISE | K17: F | L17: 19 | M17: 21 | N17: 23 | O17: 44 | P17: 27 | Q17: 29 | R17: 31 | S17: 60 | T17: 104 | U17: 228.099146 | V17: 65.43 | X17: =IF(A17="F",(IF(OR(H17>2001,H17<2004),VLOOKUP(I17,Feuil1!$G$11:$H$25,2))),IF(A17="H",(IF(OR(H17>2001,H17<2004),VLOOKUP(I17,Feuil1!$A$11:$F$29,2))))) -> M40 | Z17: =T17-HLOOKUP(X17,#REF!,2,FALSE) ->  | AA17: =T17-HLOOKUP(X17,#REF!,3,FALSE) ->  | AB17: =T17-HLOOKUP(X17,#REF!,4,FALSE) ->  | AC17: =T17-HLOOKUP(X17,#REF!,5,FALSE) ->  | AD17: =T17-HLOOKUP(X17,#REF!,6,FALSE) ->  | AE17: =T17-HLOOKUP(X17,#REF!,7,FALSE) ->  | AF17: =T17-HLOOKUP(X17,#REF!,8,FALSE) ->  | AG17: =T17-HLOOKUP(X17,#REF!,9,FALSE) -> 
A18: H | B18: NORD | C18: NPC | D18: 13 | E18: 369340 | F18: FOURNIER | G18: Romain | H18: 2002 | I18: 37.7 | J18: ST POL/MER | K18: F | L18: 18 | M18: 20 | N18: 22 | O18: 42 | P18: 26 | Q18: 28 | R18: 30 | S18: 58 | T18: 100 | U18: 224.6380702 | V18: 62.3 | X18: =IF(A18="F",(IF(OR(H18>2001,H18<2004),VLOOKUP(I18,Feuil1!$G$11:$H$25,2))),IF(A18="H",(IF(OR(H18>2001,H18<2004),VLOOKUP(I18,Feuil1!$A$11:$F$29,2))))) -> M40 | Z18: =T18-HLOOKUP(X18,#REF!,2,FALSE) ->  | AA18: =T18-HLOOKUP(X18,#REF!,3,FALSE) ->  | AB18: =T18-HLOOKUP(X18,#REF!,4,FALSE) ->  | AC18: =T18-HLOOKUP(X18,#REF!,5,FALSE) ->  | AD18: =T18-HLOOKUP(X18,#REF!,6,FALSE) ->  | AE18: =T18-HLOOKUP(X18,#REF!,7,FALSE) ->  | AF18: =T18-HLOOKUP(X18,#REF!,8,FALSE) ->  | AG18: =T18-HLOOKUP(X18,#REF!,9,FALSE) -> 
A19: H | B19: ZCO | C19: BRE | D19: 14 | E19: 377882 | F19: ENARD | G19: Thibaut | H19: 2002 | I19: 38.6 | J19: AL QUIMPER | K19: F | L19: 20 | M19: 21 | N19: 23 | O19: 44 | P19: 26 | Q19: 27 | R19: 29 | S19: 56 | T19: 100 | U19: 219.1486918 | V19: 61.4 | X19: =IF(A19="F",(IF(OR(H19>2001,H19<2004),VLOOKUP(I19,Feuil1!$G$11:$H$25,2))),IF(A19="H",(IF(OR(H19>2001,H19<2004),VLOOKUP(I19,Feuil1!$A$11:$F$29,2))))) -> M40 | Z19: =T19-HLOOKUP(X19,#REF!,2,FALSE) ->  | AA19: =T19-HLOOKUP(X19,#REF!,3,FALSE) ->  | AB19: =T19-HLOOKUP(X19,#REF!,4,FALSE) ->  | AC19: =T19-HLOOKUP(X19,#REF!,5,FALSE) ->  | AD19: =T19-HLOOKUP(X19,#REF!,6,FALSE) ->  | AE19: =T19-HLOOKUP(X19,#REF!,7,FALSE) ->  | AF19: =T19-HLOOKUP(X19,#REF!,8,FALSE) ->  | AG19: =T19-HLOOKUP(X19,#REF!,9,FALSE) -> 
A20: H | B20: ZCO | C20: CEN | D20: 15 | E20: 378393 | F20: BAH | G20: Idriss | H20: 2002 | I20: 35.05 | J20: AAJ BLOIS | K20: F | L20: 19 | M20: 20 | N20: 21 | O20: 41 | P20: 26 | Q20: 28 | R20: 29 | S20: 57 | T20: 98 | U20: 238.2080274 | V20: 62.95 | X20: =IF(A20="F",(IF(OR(H20>2001,H20<2004),VLOOKUP(I20,Feuil1!$G$11:$H$25,2))),IF(A20="H",(IF(OR(H20>2001,H20<2004),VLOOKUP(I20,Feuil1!$A$11:$F$29,2))))) -> M40 | Z20: =T20-HLOOKUP(X20,#REF!,2,FALSE) ->  | AA20: =T20-HLOOKUP(X20,#REF!,3,FALSE) ->  | AB20: =T20-HLOOKUP(X20,#REF!,4,FALSE) ->  | AC20: =T20-HLOOKUP(X20,#REF!,5,FALSE) ->  | AD20: =T20-HLOOKUP(X20,#REF!,6,FALSE) ->  | AE20: =T20-HLOOKUP(X20,#REF!,7,FALSE) ->  | AF20: =T20-HLOOKUP(X20,#REF!,8,FALSE) ->  | AG20: =T20-HLOOKUP(X20,#REF!,9,FALSE) -> 
A21: H | B21: NE | C21: ALS | D21: 16 | E21: 375712 | F21: VOLTZ | G21: ANTOINE | H21: 2003 | I21: 40 | J21: SHC Haguenau | K21: F | L21: 18 | M21: 20 | N21: 22 | O21: 42 | P21: 23 | Q21: 25 | R21: 27 | S21: 52 | T21: 94 | U21: 198.589975 | V21: 54 | X21: =IF(A21="F",(IF(OR(H21>2001,H21<2004),VLOOKUP(I21,Feuil1!$G$11:$H$25,2))),IF(A21="H",(IF(OR(H21>2001,H21<2004),VLOOKUP(I21,Feuil1!$A$11:$F$29,2))))) -> M40 | Z21: =T21-HLOOKUP(X21,#REF!,2,FALSE) ->  | AA21: =T21-HLOOKUP(X21,#REF!,3,FALSE) ->  | AB21: =T21-HLOOKUP(X21,#REF!,4,FALSE) ->  | AC21: =T21-HLOOKUP(X21,#REF!,5,FALSE) ->  | AD21: =T21-HLOOKUP(X21,#REF!,6,FALSE) ->  | AE21: =T21-HLOOKUP(X21,#REF!,7,FALSE) ->  | AF21: =T21-HLOOKUP(X21,#REF!,8,FALSE) ->  | AG21: =T21-HLOOKUP(X21,#REF!,9,FALSE) -> 
A22: H | B22: ZCO | C22: BRE | D22: 17 | E22: 378678 | F22: VANLOQUEREN | G22: Jolan | H22: 2003 | I22: 35.7 | J22: CHM Plouhinec | K22: F | L22: 18 | M22: 20 | N22: 22 | O22: 42 | P22: 24 | Q22: -26 | R22: 26 | S22: 50 | T22: 92 | U22: 219.1462268 | V22: 56.3 | X22: =IF(A22="F",(IF(OR(H22>2001,H22<2004),VLOOKUP(I22,Feuil1!$G$11:$H$25,2))),IF(A22="H",(IF(OR(H22>2001,H22<2004),VLOOKUP(I22,Feuil1!$A$11:$F$29,2))))) -> M40 | Z22: =T22-HLOOKUP(X22,#REF!,2,FALSE) ->  | AA22: =T22-HLOOKUP(X22,#REF!,3,FALSE) ->  | AB22: =T22-HLOOKUP(X22,#REF!,4,FALSE) ->  | AC22: =T22-HLOOKUP(X22,#REF!,5,FALSE) ->  | AD22: =T22-HLOOKUP(X22,#REF!,6,FALSE) ->  | AE22: =T22-HLOOKUP(X22,#REF!,7,FALSE) ->  | AF22: =T22-HLOOKUP(X22,#REF!,8,FALSE) ->  | AG22: =T22-HLOOKUP(X22,#REF!,9,FALSE) -> 
A23: H | B23: NE | C23: ALS | D23: 18 | E23: 377282 | F23: ALLAIN | G23: ARSENE | H23: 2003 | I23: 31.62 | J23: ASPTT Strasbourg | K23: F | L23: 17 | M23: 19 | N23: 20 | O23: 39 | P23: 23 | Q23: 25 | R23: 26 | S23: 51 | T23: 90 | U23: 246.0806342 | V23: 58.38 | X23: =IF(A23="F",(IF(OR(H23>2001,H23<2004),VLOOKUP(I23,Feuil1!$G$11:$H$25,2))),IF(A23="H",(IF(OR(H23>2001,H23<2004),VLOOKUP(I23,Feuil1!$A$11:$F$29,2))))) -> M40 | Z23: =T23-HLOOKUP(X23,#REF!,2,FALSE) ->  | AA23: =T23-HLOOKUP(X23,#REF!,3,FALSE) ->  | AB23: =T23-HLOOKUP(X23,#REF!,4,FALSE) ->  | AC23: =T23-HLOOKUP(X23,#REF!,5,FALSE) ->  | AD23: =T23-HLOOKUP(X23,#REF!,6,FALSE) ->  | AE23: =T23-HLOOKUP(X23,#REF!,7,FALSE) ->  | AF23: =T23-HLOOKUP(X23,#REF!,8,FALSE) ->  | AG23: =T23-HLOOKUP(X23,#REF!,9,FALSE) -> 
A24: H | B24: NORD | C24: NPC | D24: 19 | E24: 386699 | F24: ROEGIERS | G24: Jérôme | H24: 2003 | I24: 35.4 | J24: CHCD COMINES | K24: F | L24: 15 | M24: 17 | N24: 19 | O24: 36 | P24: 22 | Q24: 24 | R24: 26 | S24: 50 | T24: 86 | U24: 206.7598618 | V24: 50.6 | X24: =IF(A24="F",(IF(OR(H24>2001,H24<2004),VLOOKUP(I24,Feuil1!$G$11:$H$25,2))),IF(A24="H",(IF(OR(H24>2001,H24<2004),VLOOKUP(I24,Feuil1!$A$11:$F$29,2))))) -> M40 | Z24: =T24-HLOOKUP(X24,#REF!,2,FALSE) ->  | AA24: =T24-HLOOKUP(X24,#REF!,3,FALSE) ->  | AB24: =T24-HLOOKUP(X24,#REF!,4,FALSE) ->  | AC24: =T24-HLOOKUP(X24,#REF!,5,FALSE) ->  | AD24: =T24-HLOOKUP(X24,#REF!,6,FALSE) ->  | AE24: =T24-HLOOKUP(X24,#REF!,7,FALSE) ->  | AF24: =T24-HLOOKUP(X24,#REF!,8,FALSE) ->  | AG24: =T24-HLOOKUP(X24,#REF!,9,FALSE) -> 
A25: H | B25: NE | C25: FCO | D25: 20 | E25: 370381 | F25: AYDOGDU | G25: Yilmaz | H25: 2003 | I25: 30.2 | J25: LF Besançon | K25: F | L25: 17 | M25: 19 | N25: -20 | O25: 36 | P25: 22 | Q25: 24 | R25: -26 | S25: 46 | T25: 82 | U25: 236.85076 | V25: 51.8 | X25: =IF(A25="F",(IF(OR(H25>2001,H25<2004),VLOOKUP(I25,Feuil1!$G$11:$H$25,2))),IF(A25="H",(IF(OR(H25>2001,H25<2004),VLOOKUP(I25,Feuil1!$A$11:$F$29,2))))) -> M40 | Z25: =T25-HLOOKUP(X25,#REF!,2,FALSE) ->  | AA25: =T25-HLOOKUP(X25,#REF!,3,FALSE) ->  | AB25: =T25-HLOOKUP(X25,#REF!,4,FALSE) ->  | AC25: =T25-HLOOKUP(X25,#REF!,5,FALSE) ->  | AD25: =T25-HLOOKUP(X25,#REF!,6,FALSE) ->  | AE25: =T25-HLOOKUP(X25,#REF!,7,FALSE) ->  | AF25: =T25-HLOOKUP(X25,#REF!,8,FALSE) ->  | AG25: =T25-HLOOKUP(X25,#REF!,9,FALSE) -> 
A26: H | B26: SEST | C26: RAL | D26: 21 | E26: 357869 | F26: BARBIER | G26: Jocelyn | H26: 2003 | I26: 39.5 | J26: Vaulx en Velin | K26: F | L26: 15 | M26: 17 | N26: 19 | O26: 36 | P26: 20 | Q26: 22 | R26: 24 | S26: 46 | T26: 82 | U26: 175.4756955 | V26: 42.5 | X26: =IF(A26="F",(IF(OR(H26>2001,H26<2004),VLOOKUP(I26,Feuil1!$G$11:$H$25,2))),IF(A26="H",(IF(OR(H26>2001,H26<2004),VLOOKUP(I26,Feuil1!$A$11:$F$29,2))))) -> M40 | Z26: =T26-HLOOKUP(X26,#REF!,2,FALSE) ->  | AA26: =T26-HLOOKUP(X26,#REF!,3,FALSE) ->  | AB26: =T26-HLOOKUP(X26,#REF!,4,FALSE) ->  | AC26: =T26-HLOOKUP(X26,#REF!,5,FALSE) ->  | AD26: =T26-HLOOKUP(X26,#REF!,6,FALSE) ->  | AE26: =T26-HLOOKUP(X26,#REF!,7,FALSE) ->  | AF26: =T26-HLOOKUP(X26,#REF!,8,FALSE) ->  | AG26: =T26-HLOOKUP(X26,#REF!,9,FALSE) -> 
A27: H | B27: ZCO | C27: CEN | D27: 22 | E27: 375839 | F27: DALLIER | G27: Dévy | H27: 2002 | I27: 35.4 | J27: CHM CHATEAUROUX | K27: F | L27: 15 | M27: 16 | N27: 18 | O27: 34 | P27: 21 | Q27: 22 | R27: 22 | S27: 44 | T27: 78 | U27: 187.5263863 | V27: 42.6 | X27: =IF(A27="F",(IF(OR(H27>2001,H27<2004),VLOOKUP(I27,Feuil1!$G$11:$H$25,2))),IF(A27="H",(IF(OR(H27>2001,H27<2004),VLOOKUP(I27,Feuil1!$A$11:$F$29,2))))) -> M40 | Z27: =T27-HLOOKUP(X27,#REF!,2,FALSE) ->  | AA27: =T27-HLOOKUP(X27,#REF!,3,FALSE) ->  | AB27: =T27-HLOOKUP(X27,#REF!,4,FALSE) ->  | AC27: =T27-HLOOKUP(X27,#REF!,5,FALSE) ->  | AD27: =T27-HLOOKUP(X27,#REF!,6,FALSE) ->  | AE27: =T27-HLOOKUP(X27,#REF!,7,FALSE) ->  | AF27: =T27-HLOOKUP(X27,#REF!,8,FALSE) ->  | AG27: =T27-HLOOKUP(X27,#REF!,9,FALSE) -> 
A28: H | B28: SO | C28: POI | D28: 23 | E28: 384574 | F28: FERNANDES | G28: Hugo | H28: 2003 | I28: 39 | J28: ST-JEAN D'ANGÉLY | K28: F | L28: 16 | M28: 18 | N28: 20 | O28: 38 | P28: 18 | Q28: -20 | R28: 20 | S28: 38 | T28: 76 | U28: 164.7819702 | V28: 37 | X28: =IF(A28="F",(IF(OR(H28>2001,H28<2004),VLOOKUP(I28,Feuil1!$G$11:$H$25,2))),IF(A28="H",(IF(OR(H28>2001,H28<2004),VLOOKUP(I28,Feuil1!$A$11:$F$29,2))))) -> M40 | Z28: =T28-HLOOKUP(X28,#REF!,2,FALSE) ->  | AA28: =T28-HLOOKUP(X28,#REF!,3,FALSE) ->  | AB28: =T28-HLOOKUP(X28,#REF!,4,FALSE) ->  | AC28: =T28-HLOOKUP(X28,#REF!,5,FALSE) ->  | AD28: =T28-HLOOKUP(X28,#REF!,6,FALSE) ->  | AE28: =T28-HLOOKUP(X28,#REF!,7,FALSE) ->  | AF28: =T28-HLOOKUP(X28,#REF!,8,FALSE) ->  | AG28: =T28-HLOOKUP(X28,#REF!,9,FALSE) -> 
A29: H | B29: NORD | C29: NPC | D29: 24 | E29: 359629 | F29: ETCHEVERRY | G29: Antoine | H29: 2003 | I29: 26 | J29: C.A.ROSENDAEL | K29: F | L29: 14 | M29: -16 | N29: 16 | O29: 30 | P29: 19 | Q29: 21 | R29: 23 | S29: 44 | T29: 74 | U29: 258.1860033 | V29: 48 | X29: =IF(A29="F",(IF(OR(H29>2001,H29<2004),VLOOKUP(I29,Feuil1!$G$11:$H$25,2))),IF(A29="H",(IF(OR(H29>2001,H29<2004),VLOOKUP(I29,Feuil1!$A$11:$F$29,2))))) -> M40 | Z29: =T29-HLOOKUP(X29,#REF!,2,FALSE) ->  | AA29: =T29-HLOOKUP(X29,#REF!,3,FALSE) ->  | AB29: =T29-HLOOKUP(X29,#REF!,4,FALSE) ->  | AC29: =T29-HLOOKUP(X29,#REF!,5,FALSE) ->  | AD29: =T29-HLOOKUP(X29,#REF!,6,FALSE) ->  | AE29: =T29-HLOOKUP(X29,#REF!,7,FALSE) ->  | AF29: =T29-HLOOKUP(X29,#REF!,8,FALSE) ->  | AG29: =T29-HLOOKUP(X29,#REF!,9,FALSE) -> 
A30: H | B30: NE | C30: BOU | D30: 25 | E30: 365945 | F30: MAZON | G30: Alexis | H30: 2002 | I30: 27.48 | J30: HC saint honoré les bains | K30: F | L30: 15 | M30: 17 | N30: -19 | O30: 32 | P30: 17 | Q30: 19 | R30: 21 | S30: 40 | T30: 72 | U30: 233.8405435 | V30: 44.52 | X30: =IF(A30="F",(IF(OR(H30>2001,H30<2004),VLOOKUP(I30,Feuil1!$G$11:$H$25,2))),IF(A30="H",(IF(OR(H30>2001,H30<2004),VLOOKUP(I30,Feuil1!$A$11:$F$29,2))))) -> M40 | Z30: =T30-HLOOKUP(X30,#REF!,2,FALSE) ->  | AA30: =T30-HLOOKUP(X30,#REF!,3,FALSE) ->  | AB30: =T30-HLOOKUP(X30,#REF!,4,FALSE) ->  | AC30: =T30-HLOOKUP(X30,#REF!,5,FALSE) ->  | AD30: =T30-HLOOKUP(X30,#REF!,6,FALSE) ->  | AE30: =T30-HLOOKUP(X30,#REF!,7,FALSE) ->  | AF30: =T30-HLOOKUP(X30,#REF!,8,FALSE) ->  | AG30: =T30-HLOOKUP(X30,#REF!,9,FALSE) -> 
A31: H | B31: NE | C31: CHA | D31: 26 | E31: 376655 | F31: GUSTIN | G31: Isario | H31: 2003 | I31: 34.6 | J31: Reims HM | K31: F | L31: 10 | M31: 12 | N31: 14 | O31: 26 | P31: 16 | Q31: 18 | R31: 20 | S31: 38 | T31: 64 | U31: 157.8149608 | V31: 29.4 | X31: =IF(A31="F",(IF(OR(H31>2001,H31<2004),VLOOKUP(I31,Feuil1!$G$11:$H$25,2))),IF(A31="H",(IF(OR(H31>2001,H31<2004),VLOOKUP(I31,Feuil1!$A$11:$F$29,2))))) -> M40 | Z31: =T31-HLOOKUP(X31,#REF!,2,FALSE) ->  | AA31: =T31-HLOOKUP(X31,#REF!,3,FALSE) ->  | AB31: =T31-HLOOKUP(X31,#REF!,4,FALSE) ->  | AC31: =T31-HLOOKUP(X31,#REF!,5,FALSE) ->  | AD31: =T31-HLOOKUP(X31,#REF!,6,FALSE) ->  | AE31: =T31-HLOOKUP(X31,#REF!,7,FALSE) ->  | AF31: =T31-HLOOKUP(X31,#REF!,8,FALSE) ->  | AG31: =T31-HLOOKUP(X31,#REF!,9,FALSE) -> 
A32: H | B32: SO | C32: MPY | D32: 27 | E32: 378624 | F32: MELIA | G32: Maxence | H32: 2002 | I32: 39.8 | J32: FIGEAC HC | K32: F | L32: 10 | M32: 12 | N32: 13 | O32: 25 | P32: 16 | Q32: 18 | R32: 20 | S32: 38 | T32: 63 | U32: 133.7782128 | V32: 23.2 | X32: =IF(A32="F",(IF(OR(H32>2001,H32<2004),VLOOKUP(I32,Feuil1!$G$11:$H$25,2))),IF(A32="H",(IF(OR(H32>2001,H32<2004),VLOOKUP(I32,Feuil1!$A$11:$F$29,2))))) -> M40 | Z32: =T32-HLOOKUP(X32,#REF!,2,FALSE) ->  | AA32: =T32-HLOOKUP(X32,#REF!,3,FALSE) ->  | AB32: =T32-HLOOKUP(X32,#REF!,4,FALSE) ->  | AC32: =T32-HLOOKUP(X32,#REF!,5,FALSE) ->  | AD32: =T32-HLOOKUP(X32,#REF!,6,FALSE) ->  | AE32: =T32-HLOOKUP(X32,#REF!,7,FALSE) ->  | AF32: =T32-HLOOKUP(X32,#REF!,8,FALSE) ->  | AG32: =T32-HLOOKUP(X32,#REF!,9,FALSE) -> 
A33: H | B33: SEST | C33: LAN | D33: 28 | E33: 378498 | F33: CAYROL | G33: Jimmy | H33: 2003 | I33: 35.2 | J33: Frontignan AC | K33: F | L33: 10 | M33: 12 | N33: 14 | O33: 26 | P33: 15 | Q33: 17 | R33: 19 | S33: 36 | T33: 62 | U33: 149.9931749 | V33: 26.8 | X33: =IF(A33="F",(IF(OR(H33>2001,H33<2004),VLOOKUP(I33,Feuil1!$G$11:$H$25,2))),IF(A33="H",(IF(OR(H33>2001,H33<2004),VLOOKUP(I33,Feuil1!$A$11:$F$29,2))))) -> M40 | Z33: =T33-HLOOKUP(X33,#REF!,2,FALSE) ->  | AA33: =T33-HLOOKUP(X33,#REF!,3,FALSE) ->  | AB33: =T33-HLOOKUP(X33,#REF!,4,FALSE) ->  | AC33: =T33-HLOOKUP(X33,#REF!,5,FALSE) ->  | AD33: =T33-HLOOKUP(X33,#REF!,6,FALSE) ->  | AE33: =T33-HLOOKUP(X33,#REF!,7,FALSE) ->  | AF33: =T33-HLOOKUP(X33,#REF!,8,FALSE) ->  | AG33: =T33-HLOOKUP(X33,#REF!,9,FALSE) -> 
A34: H | B34: NE | C34: CHA | D34: 29 | E34: 376654 | F34: GUSTIN | G34: Ophelio | H34: 2002 | I34: 32.2 | J34: Reims HM | K34: F | L34: 10 | M34: 12 | N34: -14 | O34: 22 | P34: 16 | Q34: 18 | R34: 20 | S34: 38 | T34: 60 | U34: 160.5962632 | V34: 27.8 | X34: =IF(A34="F",(IF(OR(H34>2001,H34<2004),VLOOKUP(I34,Feuil1!$G$11:$H$25,2))),IF(A34="H",(IF(OR(H34>2001,H34<2004),VLOOKUP(I34,Feuil1!$A$11:$F$29,2))))) -> M40 | Z34: =T34-HLOOKUP(X34,#REF!,2,FALSE) ->  | AA34: =T34-HLOOKUP(X34,#REF!,3,FALSE) ->  | AB34: =T34-HLOOKUP(X34,#REF!,4,FALSE) ->  | AC34: =T34-HLOOKUP(X34,#REF!,5,FALSE) ->  | AD34: =T34-HLOOKUP(X34,#REF!,6,FALSE) ->  | AE34: =T34-HLOOKUP(X34,#REF!,7,FALSE) ->  | AF34: =T34-HLOOKUP(X34,#REF!,8,FALSE) ->  | AG34: =T34-HLOOKUP(X34,#REF!,9,FALSE) -> 
A35: H | B35: SO | C35: AQU | D35: 30 | E35: 396104 | F35: FERRUA | G35: PAUL | H35: 2003 | I35: 32.85 | J35: SAINT MEDARD | K35: F | L35: 11 | M35: 12 | N35: 13 | O35: 25 | P35: 16 | Q35: 17 | R35: 18 | S35: 35 | T35: 60 | U35: 156.920059 | V35: 27.15 | X35: =IF(A35="F",(IF(OR(H35>2001,H35<2004),VLOOKUP(I35,Feuil1!$G$11:$H$25,2))),IF(A35="H",(IF(OR(H35>2001,H35<2004),VLOOKUP(I35,Feuil1!$A$11:$F$29,2))))) -> M40 | Z35: =T35-HLOOKUP(X35,#REF!,2,FALSE) ->  | AA35: =T35-HLOOKUP(X35,#REF!,3,FALSE) ->  | AB35: =T35-HLOOKUP(X35,#REF!,4,FALSE) ->  | AC35: =T35-HLOOKUP(X35,#REF!,5,FALSE) ->  | AD35: =T35-HLOOKUP(X35,#REF!,6,FALSE) ->  | AE35: =T35-HLOOKUP(X35,#REF!,7,FALSE) ->  | AF35: =T35-HLOOKUP(X35,#REF!,8,FALSE) ->  | AG35: =T35-HLOOKUP(X35,#REF!,9,FALSE) -> 
A36: H | B36: SEST | C36: CAZ | D36: 31 | E36: 391440 | F36: BATHILY | G36: Léo | H36: 2002 | I36: 35.8 | J36: ES VILLENEUVE LOUBET | K36: F | L36: 12 | M36: 14 | N36: 16 | O36: 30 | P36: 12 | Q36: 14 | R36: 16 | S36: 30 | T36: 60 | U36: 142.4849843 | V36: 24.2 | X36: =IF(A36="F",(IF(OR(H36>2001,H36<2004),VLOOKUP(I36,Feuil1!$G$11:$H$25,2))),IF(A36="H",(IF(OR(H36>2001,H36<2004),VLOOKUP(I36,Feuil1!$A$11:$F$29,2))))) -> M40 | Z36: =T36-HLOOKUP(X36,#REF!,2,FALSE) ->  | AA36: =T36-HLOOKUP(X36,#REF!,3,FALSE) ->  | AB36: =T36-HLOOKUP(X36,#REF!,4,FALSE) ->  | AC36: =T36-HLOOKUP(X36,#REF!,5,FALSE) ->  | AD36: =T36-HLOOKUP(X36,#REF!,6,FALSE) ->  | AE36: =T36-HLOOKUP(X36,#REF!,7,FALSE) ->  | AF36: =T36-HLOOKUP(X36,#REF!,8,FALSE) ->  | AG36: =T36-HLOOKUP(X36,#REF!,9,FALSE) -> 
A37: H | B37: NE | C37: CHA | D37: 32 | E37: 387908 | F37: CHAMARANDE | G37: Johanny | H37: 2002 | I37: 39.4 | J37: Langres HM | K37: F | L37: 10 | M37: 12 | N37: 14 | O37: 26 | P37: 14 | Q37: 16 | R37: 18 | S37: 34 | T37: 60 | U37: 128.7310477 | V37: 20.6 | X37: =IF(A37="F",(IF(OR(H37>2001,H37<2004),VLOOKUP(I37,Feuil1!$G$11:$H$25,2))),IF(A37="H",(IF(OR(H37>2001,H37<2004),VLOOKUP(I37,Feuil1!$A$11:$F$29,2))))) -> M40 | Z37: =T37-HLOOKUP(X37,#REF!,2,FALSE) ->  | AA37: =T37-HLOOKUP(X37,#REF!,3,FALSE) ->  | AB37: =T37-HLOOKUP(X37,#REF!,4,FALSE) ->  | AC37: =T37-HLOOKUP(X37,#REF!,5,FALSE) ->  | AD37: =T37-HLOOKUP(X37,#REF!,6,FALSE) ->  | AE37: =T37-HLOOKUP(X37,#REF!,7,FALSE) ->  | AF37: =T37-HLOOKUP(X37,#REF!,8,FALSE) ->  | AG37: =T37-HLOOKUP(X37,#REF!,9,FALSE) -> 
A38: H | B38: SEST | C38: PRO | D38: 33 | E38: 379241 | F38: LABBE | G38: Andy | H38: 2002 | I38: 35 | J38: EEAR MONTEUX | K38: F | L38: 10 | M38: 12 | N38: 14 | O38: 26 | P38: 13 | Q38: 15 | R38: 17 | S38: 32 | T38: 58 | U38: 141.2033443 | V38: 23 | X38: =IF(A38="F",(IF(OR(H38>2001,H38<2004),VLOOKUP(I38,Feuil1!$G$11:$H$25,2))),IF(A38="H",(IF(OR(H38>2001,H38<2004),VLOOKUP(I38,Feuil1!$A$11:$F$29,2))))) -> M40 | Z38: =T38-HLOOKUP(X38,#REF!,2,FALSE) ->  | AA38: =T38-HLOOKUP(X38,#REF!,3,FALSE) ->  | AB38: =T38-HLOOKUP(X38,#REF!,4,FALSE) ->  | AC38: =T38-HLOOKUP(X38,#REF!,5,FALSE) ->  | AD38: =T38-HLOOKUP(X38,#REF!,6,FALSE) ->  | AE38: =T38-HLOOKUP(X38,#REF!,7,FALSE) ->  | AF38: =T38-HLOOKUP(X38,#REF!,8,FALSE) ->  | AG38: =T38-HLOOKUP(X38,#REF!,9,FALSE) -> 
A39: H | B39: ZCO | C39: CEN | D39: 34 | E39: 375840 | F39: FOUCHER | G39: Paul | H39: 2002 | I39: 33.6 | J39: CHM CHATEAUROUX | K39: F | L39: 11 | M39: 12 | N39: 12 | O39: 24 | P39: 16 | Q39: 17 | R39: -18 | S39: 33 | T39: 57 | U39: 145.2734305 | V39: 23.4 | X39: =IF(A39="F",(IF(OR(H39>2001,H39<2004),VLOOKUP(I39,Feuil1!$G$11:$H$25,2))),IF(A39="H",(IF(OR(H39>2001,H39<2004),VLOOKUP(I39,Feuil1!$A$11:$F$29,2))))) -> M40 | Z39: =T39-HLOOKUP(X39,#REF!,2,FALSE) ->  | AA39: =T39-HLOOKUP(X39,#REF!,3,FALSE) ->  | AB39: =T39-HLOOKUP(X39,#REF!,4,FALSE) ->  | AC39: =T39-HLOOKUP(X39,#REF!,5,FALSE) ->  | AD39: =T39-HLOOKUP(X39,#REF!,6,FALSE) ->  | AE39: =T39-HLOOKUP(X39,#REF!,7,FALSE) ->  | AF39: =T39-HLOOKUP(X39,#REF!,8,FALSE) ->  | AG39: =T39-HLOOKUP(X39,#REF!,9,FALSE) -> 
A40: H | B40: SEST | C40: RAL | D40: 35 | E40: 377618 | F40: GRASPERGE | G40: Amory | H40: 2002 | I40: 37.7 | J40: Vaulx en Velin | K40: F | L40: -7 | M40: 7 | N40: -8 | O40: 7 | P40: 24 | Q40: -26 | R40: 26 | S40: 50 | T40: 57 | U40: 128.0437 | V40: 19.3 | X40: =IF(A40="F",(IF(OR(H40>2001,H40<2004),VLOOKUP(I40,Feuil1!$G$11:$H$25,2))),IF(A40="H",(IF(OR(H40>2001,H40<2004),VLOOKUP(I40,Feuil1!$A$11:$F$29,2))))) -> M40 | Z40: =T40-HLOOKUP(X40,#REF!,2,FALSE) ->  | AA40: =T40-HLOOKUP(X40,#REF!,3,FALSE) ->  | AB40: =T40-HLOOKUP(X40,#REF!,4,FALSE) ->  | AC40: =T40-HLOOKUP(X40,#REF!,5,FALSE) ->  | AD40: =T40-HLOOKUP(X40,#REF!,6,FALSE) ->  | AE40: =T40-HLOOKUP(X40,#REF!,7,FALSE) ->  | AF40: =T40-HLOOKUP(X40,#REF!,8,FALSE) ->  | AG40: =T40-HLOOKUP(X40,#REF!,9,FALSE) -> 
A41: H | B41: CO | C41: PDL | D41: 36 | E41: 351830 | F41: BEZIAS | G41: guylian | H41: 2002 | I41: 25.8 | J41: ALSavenay | K41: F | L41: -7 | M41: 7 | N41: 8 | O41: 15 | P41: 8 | Q41: 9 | R41: 10 | S41: 19 | T41: 34 | U41: 119.8374897 | V41: 8.2 | X41: =IF(A41="F",(IF(OR(H41>2001,H41<2004),VLOOKUP(I41,Feuil1!$G$11:$H$25,2))),IF(A41="H",(IF(OR(H41>2001,H41<2004),VLOOKUP(I41,Feuil1!$A$11:$F$29,2))))) -> M40 | Z41: =T41-HLOOKUP(X41,#REF!,2,FALSE) ->  | AA41: =T41-HLOOKUP(X41,#REF!,3,FALSE) ->  | AB41: =T41-HLOOKUP(X41,#REF!,4,FALSE) ->  | AC41: =T41-HLOOKUP(X41,#REF!,5,FALSE) ->  | AD41: =T41-HLOOKUP(X41,#REF!,6,FALSE) ->  | AE41: =T41-HLOOKUP(X41,#REF!,7,FALSE) ->  | AF41: =T41-HLOOKUP(X41,#REF!,8,FALSE) ->  | AG41: =T41-HLOOKUP(X41,#REF!,9,FALSE) -> 
AB42: =T42-HLOOKUP(X42,[1]Feuil1!$C$1:$BL$10,2,FALSE) ->  | AC42: =T42-HLOOKUP(X42,[1]Feuil1!$C$1:$BL$10,3,FALSE) ->  | AD42: =T42-HLOOKUP(X42,[1]Feuil1!$C$1:$BL$10,4,FALSE) ->  | AE42: =T42-HLOOKUP(X42,[1]Feuil1!$C$1:$BL$10,5,FALSE) ->  | AF42: =T42-HLOOKUP(X42,[1]Feuil1!$C$1:$BL$10,6,FALSE) ->  | AG42: =T42-HLOOKUP(X42,[1]Feuil1!$C$1:$BL$10,7,FALSE) ->  | AH42: =T42-HLOOKUP(X42,[1]Feuil1!$C$1:$BL$10,8,FALSE) ->  | AI42: =T42-HLOOKUP(X42,[1]Feuil1!$C$1:$BL$10,9,FALSE) ->  | AJ42: =T42-HLOOKUP(X42,[1]Feuil1!$C$1:$BL$10,10,FALSE) ->  | AQ42: =IF(AJ42>=0,$AJ$4,IF(AI42>=0,$AI$4,IF(AH42>=0,$AH$4,IF(AG42>=0,$AG$4,IF(AF42>=0,$AF$4,IF(AE42>=0,$AE$4,IF(AD42>=0,$AD$4,IF(AC42>=0,$AC$4,$AB$4)))))))) -> 
A43: H | B43: CO | C43: PDL | D43: 1 | E43: 355921 | F43: COGNON | G43: Théo | H43: 2002 | I43: 40.7 | J43: CJF LAVAL - VOUTRÉ | K43: F | L43: 37 | M43: 39 | N43: 41 | O43: =IF(MAXA(L43+M43,M43+N43,L43+N43,L43,M43,N43)<=0,0,MAXA(L43+M43,M43+N43,L43+N43,L43,M43,N43)) -> 80 | P43: 46 | Q43: 48 | R43: 50 | S43: =IF(MAXA(P43+Q43,Q43+R43,P43+R43,P43,Q43,R43)<=0,0,MAXA(P43+Q43,Q43+R43,P43+R43,P43,Q43,R43)) -> 98 | T43: =IF(H43="","",IF(OR(O43=0,S43=0),0,O43+S43)) -> 178 | U43: =IF(I43="","",IF(A43="H",10^(0.794358141*LOG(I43/174.393)^2)*T43,IF(A43="F",10^(0.89726074 * LOG(I43/148.026)^2)*T43,""))) -> 369.5218175 | V43: =SUM(T43-I43) -> 137.3 | X43: =IF(A43="F",(IF(OR(H43>2001,H43<2004),VLOOKUP(I43,Feuil1!$G$11:$H$25,2))),IF(A43="H",(IF(OR(H43>2001,H43<2004),VLOOKUP(I43,Feuil1!$A$11:$F$29,2))))) -> M45 | Z43: =T43-HLOOKUP(X43,#REF!,2,FALSE) ->  | AA43: =T43-HLOOKUP(X43,#REF!,3,FALSE) ->  | AB43: =T43-HLOOKUP(X43,#REF!,4,FALSE) ->  | AC43: =T43-HLOOKUP(X43,#REF!,5,FALSE) ->  | AD43: =T43-HLOOKUP(X43,#REF!,6,FALSE) ->  | AE43: =T43-HLOOKUP(X43,#REF!,7,FALSE) ->  | AF43: =T43-HLOOKUP(X43,#REF!,8,FALSE) ->  | AG43: =T43-HLOOKUP(X43,#REF!,9,FALSE) ->  | AO43: =IF(AG43>=0,$AG$4,IF(AF43>=0,$AF$4,IF(AE43>=0,$AE$4,IF(AD43>=0,$AD$4,IF(AC43>=0,$AC$4,IF(AB43>=0,$AB$4,IF(AA43>=0,$AA$4,IF(Z43>=0,$Z$4,$AH$4)))))))) -> 
A44: H | B44: SO | C44: MPY | D44: 2 | E44: 378627 | F44: VALEAN | G44: Andrei | H44: 2003 | I44: 42.53 | J44: FIGEAC HC | K44: R | L44: 32 | M44: -34 | N44: 34 | O44: 66 | P44: 38 | Q44: 40 | R44: 42 | S44: 82 | T44: 148 | U44: 294.1676505 | V44: 105.47 | X44: =IF(A44="F",(IF(OR(H44>2001,H44<2004),VLOOKUP(I44,Feuil1!$G$11:$H$25,2))),IF(A44="H",(IF(OR(H44>2001,H44<2004),VLOOKUP(I44,Feuil1!$A$11:$F$29,2))))) -> M45 | Z44: =T44-HLOOKUP(X44,#REF!,2,FALSE) ->  | AA44: =T44-HLOOKUP(X44,#REF!,3,FALSE) ->  | AB44: =T44-HLOOKUP(X44,#REF!,4,FALSE) ->  | AC44: =T44-HLOOKUP(X44,#REF!,5,FALSE) ->  | AD44: =T44-HLOOKUP(X44,#REF!,6,FALSE) ->  | AE44: =T44-HLOOKUP(X44,#REF!,7,FALSE) ->  | AF44: =T44-HLOOKUP(X44,#REF!,8,FALSE) ->  | AG44: =T44-HLOOKUP(X44,#REF!,9,FALSE) -> 
A45: H | B45: SEST | C45: PRO | D45: 3 | E45: 344414 | F45: MARTIN | G45: Gabriel | H45: 2002 | I45: 42.6 | J45: EEAR MONTEUX | K45: F | L45: 28 | M45: 30 | N45: 32 | O45: 62 | P45: 38 | Q45: 40 | R45: 42 | S45: 82 | T45: 144 | U45: 285.7595275 | V45: 101.4 | X45: =IF(A45="F",(IF(OR(H45>2001,H45<2004),VLOOKUP(I45,Feuil1!$G$11:$H$25,2))),IF(A45="H",(IF(OR(H45>2001,H45<2004),VLOOKUP(I45,Feuil1!$A$11:$F$29,2))))) -> M45 | Z45: =T45-HLOOKUP(X45,#REF!,2,FALSE) ->  | AA45: =T45-HLOOKUP(X45,#REF!,3,FALSE) ->  | AB45: =T45-HLOOKUP(X45,#REF!,4,FALSE) ->  | AC45: =T45-HLOOKUP(X45,#REF!,5,FALSE) ->  | AD45: =T45-HLOOKUP(X45,#REF!,6,FALSE) ->  | AE45: =T45-HLOOKUP(X45,#REF!,7,FALSE) ->  | AF45: =T45-HLOOKUP(X45,#REF!,8,FALSE) ->  | AG45: =T45-HLOOKUP(X45,#REF!,9,FALSE) -> 
A46: H | B46: NORD | C46: NPC | D46: 4 | E46: 344407 | F46: GALLOO | G46: Martin | H46: 2002 | I46: 44.07 | J46: CHCD COMINES | K46: F | L46: 29 | M46: 31 | N46: -32 | O46: 60 | P46: 40 | Q46: 42 | R46: -44 | S46: 82 | T46: 142 | U46: 272.7538934 | V46: 97.93 | X46: =IF(A46="F",(IF(OR(H46>2001,H46<2004),VLOOKUP(I46,Feuil1!$G$11:$H$25,2))),IF(A46="H",(IF(OR(H46>2001,H46<2004),VLOOKUP(I46,Feuil1!$A$11:$F$29,2))))) -> M45 | Z46: =T46-HLOOKUP(X46,#REF!,2,FALSE) ->  | AA46: =T46-HLOOKUP(X46,#REF!,3,FALSE) ->  | AB46: =T46-HLOOKUP(X46,#REF!,4,FALSE) ->  | AC46: =T46-HLOOKUP(X46,#REF!,5,FALSE) ->  | AD46: =T46-HLOOKUP(X46,#REF!,6,FALSE) ->  | AE46: =T46-HLOOKUP(X46,#REF!,7,FALSE) ->  | AF46: =T46-HLOOKUP(X46,#REF!,8,FALSE) ->  | AG46: =T46-HLOOKUP(X46,#REF!,9,FALSE) -> 
A47: H | B47: NORD | C47: NPC | D47: 5 | E47: 383860 | F47: BOULANGER | G47: Geoffrey | H47: 2002 | I47: 44.42 | J47: A.O.SALLAUMINES | K47: F | L47: 25 | M47: 26 | N47: 27 | O47: 53 | P47: 33 | Q47: 35 | R47: -37 | S47: 68 | T47: 121 | U47: 230.683644 | V47: 76.58 | X47: =IF(A47="F",(IF(OR(H47>2001,H47<2004),VLOOKUP(I47,Feuil1!$G$11:$H$25,2))),IF(A47="H",(IF(OR(H47>2001,H47<2004),VLOOKUP(I47,Feuil1!$A$11:$F$29,2))))) -> M45 | Z47: =T47-HLOOKUP(X47,#REF!,2,FALSE) ->  | AA47: =T47-HLOOKUP(X47,#REF!,3,FALSE) ->  | AB47: =T47-HLOOKUP(X47,#REF!,4,FALSE) ->  | AC47: =T47-HLOOKUP(X47,#REF!,5,FALSE) ->  | AD47: =T47-HLOOKUP(X47,#REF!,6,FALSE) ->  | AE47: =T47-HLOOKUP(X47,#REF!,7,FALSE) ->  | AF47: =T47-HLOOKUP(X47,#REF!,8,FALSE) ->  | AG47: =T47-HLOOKUP(X47,#REF!,9,FALSE) -> 
A48: H | B48: SEST | C48: LAN | D48: 6 | E48: 367403 | F48: TARUSSIO | G48: Laurent | H48: 2003 | I48: 42.8 | J48: Narbonne Haltéro | K48: F | L48: 22 | M48: 24 | N48: -25 | O48: 46 | P48: 30 | Q48: 32 | R48: 33 | S48: 65 | T48: 111 | U48: 219.2735737 | V48: 68.2 | X48: =IF(A48="F",(IF(OR(H48>2001,H48<2004),VLOOKUP(I48,Feuil1!$G$11:$H$25,2))),IF(A48="H",(IF(OR(H48>2001,H48<2004),VLOOKUP(I48,Feuil1!$A$11:$F$29,2))))) -> M45 | Z48: =T48-HLOOKUP(X48,#REF!,2,FALSE) ->  | AA48: =T48-HLOOKUP(X48,#REF!,3,FALSE) ->  | AB48: =T48-HLOOKUP(X48,#REF!,4,FALSE) ->  | AC48: =T48-HLOOKUP(X48,#REF!,5,FALSE) ->  | AD48: =T48-HLOOKUP(X48,#REF!,6,FALSE) ->  | AE48: =T48-HLOOKUP(X48,#REF!,7,FALSE) ->  | AF48: =T48-HLOOKUP(X48,#REF!,8,FALSE) ->  | AG48: =T48-HLOOKUP(X48,#REF!,9,FALSE) -> 
A49: H | B49: NE | C49: BOU | D49: 7 | E49: 358738 | F49: MILOUD | G49: Malik | H49: 2003 | I49: 43.69 | J49: HC Avallon | K49: F | L49: 20 | M49: 22 | N49: 23 | O49: 45 | P49: 24 | Q49: 26 | R49: 28 | S49: 54 | T49: 99 | U49: 191.7337334 | V49: 55.31 | X49: =IF(A49="F",(IF(OR(H49>2001,H49<2004),VLOOKUP(I49,Feuil1!$G$11:$H$25,2))),IF(A49="H",(IF(OR(H49>2001,H49<2004),VLOOKUP(I49,Feuil1!$A$11:$F$29,2))))) -> M45 | Z49: =T49-HLOOKUP(X49,#REF!,2,FALSE) ->  | AA49: =T49-HLOOKUP(X49,#REF!,3,FALSE) ->  | AB49: =T49-HLOOKUP(X49,#REF!,4,FALSE) ->  | AC49: =T49-HLOOKUP(X49,#REF!,5,FALSE) ->  | AD49: =T49-HLOOKUP(X49,#REF!,6,FALSE) ->  | AE49: =T49-HLOOKUP(X49,#REF!,7,FALSE) ->  | AF49: =T49-HLOOKUP(X49,#REF!,8,FALSE) ->  | AG49: =T49-HLOOKUP(X49,#REF!,9,FALSE) -> 
A50: H | B50: NORD | C50: PIC | D50: 8 | E50: 376821 | F50: LEGER LESOT | G50: Dylan | H50: 2002 | I50: 43.28 | J50: La Vaillante Saint Quentin | K50: F | L50: 18 | M50: 20 | N50: 22 | O50: 42 | P50: 24 | Q50: 26 | R50: 28 | S50: 54 | T50: 96 | U50: 187.6111418 | V50: 52.72 | X50: =IF(A50="F",(IF(OR(H50>2001,H50<2004),VLOOKUP(I50,Feuil1!$G$11:$H$25,2))),IF(A50="H",(IF(OR(H50>2001,H50<2004),VLOOKUP(I50,Feuil1!$A$11:$F$29,2))))) -> M45 | Z50: =T50-HLOOKUP(X50,#REF!,2,FALSE) ->  | AA50: =T50-HLOOKUP(X50,#REF!,3,FALSE) ->  | AB50: =T50-HLOOKUP(X50,#REF!,4,FALSE) ->  | AC50: =T50-HLOOKUP(X50,#REF!,5,FALSE) ->  | AD50: =T50-HLOOKUP(X50,#REF!,6,FALSE) ->  | AE50: =T50-HLOOKUP(X50,#REF!,7,FALSE) ->  | AF50: =T50-HLOOKUP(X50,#REF!,8,FALSE) ->  | AG50: =T50-HLOOKUP(X50,#REF!,9,FALSE) -> 
A51: H | B51: NORD | C51: NPC | D51: 9 | E51: 352093 | F51: CABRE | G51: Martin | H51: 2003 | I51: 44.9 | J51: ALSH BULLY LES MINES | K51: F | L51: 17 | M51: 19 | N51: 21 | O51: 40 | P51: 25 | Q51: 27 | R51: 29 | S51: 56 | T51: 96 | U51: 181.1821304 | V51: 51.1 | X51: =IF(A51="F",(IF(OR(H51>2001,H51<2004),VLOOKUP(I51,Feuil1!$G$11:$H$25,2))),IF(A51="H",(IF(OR(H51>2001,H51<2004),VLOOKUP(I51,Feuil1!$A$11:$F$29,2))))) -> M45 | Z51: =T51-HLOOKUP(X51,#REF!,2,FALSE) ->  | AA51: =T51-HLOOKUP(X51,#REF!,3,FALSE) ->  | AB51: =T51-HLOOKUP(X51,#REF!,4,FALSE) ->  | AC51: =T51-HLOOKUP(X51,#REF!,5,FALSE) ->  | AD51: =T51-HLOOKUP(X51,#REF!,6,FALSE) ->  | AE51: =T51-HLOOKUP(X51,#REF!,7,FALSE) ->  | AF51: =T51-HLOOKUP(X51,#REF!,8,FALSE) ->  | AG51: =T51-HLOOKUP(X51,#REF!,9,FALSE) -> 
A52: H | B52: SO | C52: MPY | D52: 10 | E52: 378624 | F52: MELIA | G52: Maxence | H52: 2002 | I52: 42.59 | J52: FIGEAC HC | K52: F | L52: 18 | M52: 20 | N52: -22 | O52: 38 | P52: 23 | Q52: 25 | R52: 27 | S52: 52 | T52: 90 | U52: 178.6404888 | V52: 47.41 | X52: =IF(A52="F",(IF(OR(H52>2001,H52<2004),VLOOKUP(I52,Feuil1!$G$11:$H$25,2))),IF(A52="H",(IF(OR(H52>2001,H52<2004),VLOOKUP(I52,Feuil1!$A$11:$F$29,2))))) -> M45 | Z52: =T52-HLOOKUP(X52,#REF!,2,FALSE) ->  | AA52: =T52-HLOOKUP(X52,#REF!,3,FALSE) ->  | AB52: =T52-HLOOKUP(X52,#REF!,4,FALSE) ->  | AC52: =T52-HLOOKUP(X52,#REF!,5,FALSE) ->  | AD52: =T52-HLOOKUP(X52,#REF!,6,FALSE) ->  | AE52: =T52-HLOOKUP(X52,#REF!,7,FALSE) ->  | AF52: =T52-HLOOKUP(X52,#REF!,8,FALSE) ->  | AG52: =T52-HLOOKUP(X52,#REF!,9,FALSE) -> 
A53: H | B53: NORD | C53: PIC | D53: 11 | E53: 386580 | F53: CREQUIS | G53: Sullivan | H53: 2003 | I53: 43.74 | J53: Hirson CEHT | K53: F | L53: 16 | M53: 18 | N53: -20 | O53: 34 | P53: 25 | Q53: 27 | R53: 29 | S53: 56 | T53: 90 | U53: 174.1131741 | V53: 46.26 | X53: =IF(A53="F",(IF(OR(H53>2001,H53<2004),VLOOKUP(I53,Feuil1!$G$11:$H$25,2))),IF(A53="H",(IF(OR(H53>2001,H53<2004),VLOOKUP(I53,Feuil1!$A$11:$F$29,2))))) -> M45 | Z53: =T53-HLOOKUP(X53,#REF!,2,FALSE) ->  | AA53: =T53-HLOOKUP(X53,#REF!,3,FALSE) ->  | AB53: =T53-HLOOKUP(X53,#REF!,4,FALSE) ->  | AC53: =T53-HLOOKUP(X53,#REF!,5,FALSE) ->  | AD53: =T53-HLOOKUP(X53,#REF!,6,FALSE) ->  | AE53: =T53-HLOOKUP(X53,#REF!,7,FALSE) ->  | AF53: =T53-HLOOKUP(X53,#REF!,8,FALSE) ->  | AG53: =T53-HLOOKUP(X53,#REF!,9,FALSE) -> 
A54: H | B54: SEST | C54: CAZ | D54: 12 | E54: 395173 | F54: IPATOV | G54: Daniel | H54: 2002 | I54: 44.1 | J54: ES VILLENEUVE LOUBET | K54: R | L54: 16 | M54: 18 | N54: 20 | O54: 38 | P54: 23 | Q54: 25 | R54: 27 | S54: 52 | T54: 90 | U54: 172.7606001 | V54: 45.9 | X54: =IF(A54="F",(IF(OR(H54>2001,H54<2004),VLOOKUP(I54,Feuil1!$G$11:$H$25,2))),IF(A54="H",(IF(OR(H54>2001,H54<2004),VLOOKUP(I54,Feuil1!$A$11:$F$29,2))))) -> M45 | Z54: =T54-HLOOKUP(X54,#REF!,2,FALSE) ->  | AA54: =T54-HLOOKUP(X54,#REF!,3,FALSE) ->  | AB54: =T54-HLOOKUP(X54,#REF!,4,FALSE) ->  | AC54: =T54-HLOOKUP(X54,#REF!,5,FALSE) ->  | AD54: =T54-HLOOKUP(X54,#REF!,6,FALSE) ->  | AE54: =T54-HLOOKUP(X54,#REF!,7,FALSE) ->  | AF54: =T54-HLOOKUP(X54,#REF!,8,FALSE) ->  | AG54: =T54-HLOOKUP(X54,#REF!,9,FALSE) -> 
A55: H | B55: NE | C55: ALS | D55: 13 | E55: 353650 | F55: RIEHL | G55: MATEO | H55: 2002 | I55: 44 | J55: Dorlisheim FH | K55: F | L55: 18 | M55: 20 | N55: -22 | O55: 38 | P55: 22 | Q55: 24 | R55: 26 | S55: 50 | T55: 88 | U55: 169.2859375 | V55: 44 | X55: =IF(A55="F",(IF(OR(H55>2001,H55<2004),VLOOKUP(I55,Feuil1!$G$11:$H$25,2))),IF(A55="H",(IF(OR(H55>2001,H55<2004),VLOOKUP(I55,Feuil1!$A$11:$F$29,2))))) -> M45 | Z55: =T55-HLOOKUP(X55,#REF!,2,FALSE) ->  | AA55: =T55-HLOOKUP(X55,#REF!,3,FALSE) ->  | AB55: =T55-HLOOKUP(X55,#REF!,4,FALSE) ->  | AC55: =T55-HLOOKUP(X55,#REF!,5,FALSE) ->  | AD55: =T55-HLOOKUP(X55,#REF!,6,FALSE) ->  | AE55: =T55-HLOOKUP(X55,#REF!,7,FALSE) ->  | AF55: =T55-HLOOKUP(X55,#REF!,8,FALSE) ->  | AG55: =T55-HLOOKUP(X55,#REF!,9,FALSE) -> 
A56: H | B56: SEST | C56: RAL | D56: 14 | E56: 357869 | F56: BARBIER | G56: Jocelyn | H56: 2003 | I56: 41.1 | J56: Vaulx en Velin | K56: F | L56: 16 | M56: 18 | N56: 20 | O56: 38 | P56: 20 | Q56: 22 | R56: 24 | S56: 46 | T56: 84 | U56: 172.682945 | V56: 42.9 | X56: =IF(A56="F",(IF(OR(H56>2001,H56<2004),VLOOKUP(I56,Feuil1!$G$11:$H$25,2))),IF(A56="H",(IF(OR(H56>2001,H56<2004),VLOOKUP(I56,Feuil1!$A$11:$F$29,2))))) -> M45 | Z56: =T56-HLOOKUP(X56,#REF!,2,FALSE) ->  | AA56: =T56-HLOOKUP(X56,#REF!,3,FALSE) ->  | AB56: =T56-HLOOKUP(X56,#REF!,4,FALSE) ->  | AC56: =T56-HLOOKUP(X56,#REF!,5,FALSE) ->  | AD56: =T56-HLOOKUP(X56,#REF!,6,FALSE) ->  | AE56: =T56-HLOOKUP(X56,#REF!,7,FALSE) ->  | AF56: =T56-HLOOKUP(X56,#REF!,8,FALSE) ->  | AG56: =T56-HLOOKUP(X56,#REF!,9,FALSE) -> 
A57: H | B57: ZCO | C57: BRE | D57: 15 | E57: 378685 | F57: AUTRET | G57: Ian | H57: 2003 | I57: 44.54 | J57: CHM Plouhinec | K57: F | L57: 18 | M57: 20 | N57: 21 | O57: 41 | P57: 20 | Q57: -22 | R57: 22 | S57: 42 | T57: 83 | U57: 157.8356186 | V57: 38.46 | X57: =IF(A57="F",(IF(OR(H57>2001,H57<2004),VLOOKUP(I57,Feuil1!$G$11:$H$25,2))),IF(A57="H",(IF(OR(H57>2001,H57<2004),VLOOKUP(I57,Feuil1!$A$11:$F$29,2))))) -> M45 | Z57: =T57-HLOOKUP(X57,#REF!,2,FALSE) ->  | AA57: =T57-HLOOKUP(X57,#REF!,3,FALSE) ->  | AB57: =T57-HLOOKUP(X57,#REF!,4,FALSE) ->  | AC57: =T57-HLOOKUP(X57,#REF!,5,FALSE) ->  | AD57: =T57-HLOOKUP(X57,#REF!,6,FALSE) ->  | AE57: =T57-HLOOKUP(X57,#REF!,7,FALSE) ->  | AF57: =T57-HLOOKUP(X57,#REF!,8,FALSE) ->  | AG57: =T57-HLOOKUP(X57,#REF!,9,FALSE) -> 
A58: H | B58: NE | C58: ALS | D58: 16 | E58: 383774 | F58: VERGNAUD | G58: JAROD | H58: 2003 | I58: 44.6 | J58: SHC Haguenau | K58: F | L58: 14 | M58: 16 | N58: -17 | O58: 30 | P58: 20 | Q58: 22 | R58: 23 | S58: 45 | T58: 75 | U58: 142.4419349 | V58: 30.4 | X58: =IF(A58="F",(IF(OR(H58>2001,H58<2004),VLOOKUP(I58,Feuil1!$G$11:$H$25,2))),IF(A58="H",(IF(OR(H58>2001,H58<2004),VLOOKUP(I58,Feuil1!$A$11:$F$29,2))))) -> M45 | Z58: =T58-HLOOKUP(X58,#REF!,2,FALSE) ->  | AA58: =T58-HLOOKUP(X58,#REF!,3,FALSE) ->  | AB58: =T58-HLOOKUP(X58,#REF!,4,FALSE) ->  | AC58: =T58-HLOOKUP(X58,#REF!,5,FALSE) ->  | AD58: =T58-HLOOKUP(X58,#REF!,6,FALSE) ->  | AE58: =T58-HLOOKUP(X58,#REF!,7,FALSE) ->  | AF58: =T58-HLOOKUP(X58,#REF!,8,FALSE) ->  | AG58: =T58-HLOOKUP(X58,#REF!,9,FALSE) -> 
A59: H | B59: SEST | C59: RAL | D59: 17 | E59: 372601 | F59: VARDANIAN | G59: Avetis | H59: 2003 | I59: 42.2 | J59: Vaulx en Velin | K59: Arm | L59: 15 | M59: -16 | N59: 16 | O59: 31 | P59: 18 | Q59: 20 | R59: 22 | S59: 42 | T59: 73 | U59: 146.2038582 | V59: 30.8 | X59: =IF(A59="F",(IF(OR(H59>2001,H59<2004),VLOOKUP(I59,Feuil1!$G$11:$H$25,2))),IF(A59="H",(IF(OR(H59>2001,H59<2004),VLOOKUP(I59,Feuil1!$A$11:$F$29,2))))) -> M45 | Z59: =T59-HLOOKUP(X59,#REF!,2,FALSE) ->  | AA59: =T59-HLOOKUP(X59,#REF!,3,FALSE) ->  | AB59: =T59-HLOOKUP(X59,#REF!,4,FALSE) ->  | AC59: =T59-HLOOKUP(X59,#REF!,5,FALSE) ->  | AD59: =T59-HLOOKUP(X59,#REF!,6,FALSE) ->  | AE59: =T59-HLOOKUP(X59,#REF!,7,FALSE) ->  | AF59: =T59-HLOOKUP(X59,#REF!,8,FALSE) ->  | AG59: =T59-HLOOKUP(X59,#REF!,9,FALSE) -> 
A60: H | B60: NE | C60: ALS | D60: 18 | E60: 375935 | F60: CIZEK | G60: ERWAN | H60: 2002 | I60: 43 | J60: SHC Haguenau | K60: F | L60: 15 | M60: -17 | N60: 17 | O60: 32 | P60: 16 | Q60: 18 | R60: 19 | S60: 37 | T60: 69 | U60: 135.6916835 | V60: 26 | X60: =IF(A60="F",(IF(OR(H60>2001,H60<2004),VLOOKUP(I60,Feuil1!$G$11:$H$25,2))),IF(A60="H",(IF(OR(H60>2001,H60<2004),VLOOKUP(I60,Feuil1!$A$11:$F$29,2))))) -> M45 | Z60: =T60-HLOOKUP(X60,#REF!,2,FALSE) ->  | AA60: =T60-HLOOKUP(X60,#REF!,3,FALSE) ->  | AB60: =T60-HLOOKUP(X60,#REF!,4,FALSE) ->  | AC60: =T60-HLOOKUP(X60,#REF!,5,FALSE) ->  | AD60: =T60-HLOOKUP(X60,#REF!,6,FALSE) ->  | AE60: =T60-HLOOKUP(X60,#REF!,7,FALSE) ->  | AF60: =T60-HLOOKUP(X60,#REF!,8,FALSE) ->  | AG60: =T60-HLOOKUP(X60,#REF!,9,FALSE) -> 
A61: H | B61: NE | C61: BOU | D61: 19 | E61: 395089 | F61: CLEMENT | G61: Etienne | H61: 2003 | I61: 40.8 | J61: Olympique Mâcon | K61: F | L61: 10 | M61: 12 | N61: 14 | O61: 26 | P61: 15 | Q61: 17 | R61: 19 | S61: 36 | T61: 62 | U61: 128.3933988 | V61: 21.2 | X61: =IF(A61="F",(IF(OR(H61>2001,H61<2004),VLOOKUP(I61,Feuil1!$G$11:$H$25,2))),IF(A61="H",(IF(OR(H61>2001,H61<2004),VLOOKUP(I61,Feuil1!$A$11:$F$29,2))))) -> M45 | Z61: =T61-HLOOKUP(X61,#REF!,2,FALSE) ->  | AA61: =T61-HLOOKUP(X61,#REF!,3,FALSE) ->  | AB61: =T61-HLOOKUP(X61,#REF!,4,FALSE) ->  | AC61: =T61-HLOOKUP(X61,#REF!,5,FALSE) ->  | AD61: =T61-HLOOKUP(X61,#REF!,6,FALSE) ->  | AE61: =T61-HLOOKUP(X61,#REF!,7,FALSE) ->  | AF61: =T61-HLOOKUP(X61,#REF!,8,FALSE) ->  | AG61: =T61-HLOOKUP(X61,#REF!,9,FALSE) -> 
A62: H | B62: CO | C62: PDL | D62: 20 | E62: 388362 | F62: CORROY | G62: Tahiri | H62: 2003 | I62: 43.1 | J62: CJF LAVAL - VOUTRÉ | K62: F | L62: 12 | M62: -14 | N62: -14 | O62: 12 | P62: 12 | Q62: 14 | R62: 15 | S62: 29 | T62: 41 | U62: 80.44781523 | V62: -2.1 | X62: =IF(A62="F",(IF(OR(H62>2001,H62<2004),VLOOKUP(I62,Feuil1!$G$11:$H$25,2))),IF(A62="H",(IF(OR(H62>2001,H62<2004),VLOOKUP(I62,Feuil1!$A$11:$F$29,2))))) -> M45 | Z62: =T62-HLOOKUP(X62,#REF!,2,FALSE) ->  | AA62: =T62-HLOOKUP(X62,#REF!,3,FALSE) ->  | AB62: =T62-HLOOKUP(X62,#REF!,4,FALSE) ->  | AC62: =T62-HLOOKUP(X62,#REF!,5,FALSE) ->  | AD62: =T62-HLOOKUP(X62,#REF!,6,FALSE) ->  | AE62: =T62-HLOOKUP(X62,#REF!,7,FALSE) ->  | AF62: =T62-HLOOKUP(X62,#REF!,8,FALSE) ->  | AG62: =T62-HLOOKUP(X62,#REF!,9,FALSE) -> 
AB63: =T63-HLOOKUP(X63,[1]Feuil1!$C$1:$BL$10,2,FALSE) ->  | AC63: =T63-HLOOKUP(X63,[1]Feuil1!$C$1:$BL$10,3,FALSE) ->  | AD63: =T63-HLOOKUP(X63,[1]Feuil1!$C$1:$BL$10,4,FALSE) ->  | AE63: =T63-HLOOKUP(X63,[1]Feuil1!$C$1:$BL$10,5,FALSE) ->  | AF63: =T63-HLOOKUP(X63,[1]Feuil1!$C$1:$BL$10,6,FALSE) ->  | AG63: =T63-HLOOKUP(X63,[1]Feuil1!$C$1:$BL$10,7,FALSE) ->  | AH63: =T63-HLOOKUP(X63,[1]Feuil1!$C$1:$BL$10,8,FALSE) ->  | AI63: =T63-HLOOKUP(X63,[1]Feuil1!$C$1:$BL$10,9,FALSE) ->  | AJ63: =T63-HLOOKUP(X63,[1]Feuil1!$C$1:$BL$10,10,FALSE) ->  | AQ63: =IF(AJ63>=0,$AJ$4,IF(AI63>=0,$AI$4,IF(AH63>=0,$AH$4,IF(AG63>=0,$AG$4,IF(AF63>=0,$AF$4,IF(AE63>=0,$AE$4,IF(AD63>=0,$AD$4,IF(AC63>=0,$AC$4,$AB$4)))))))) -> 
A64: H | B64: SEST | C64: PRO | D64: 1 | E64: 344414 | F64: MARTIN | G64: Gabriel | H64: 2002 | I64: 47.2 | J64: EEAR. MONTEUX | K64: F | L64: 46 | M64: 48 | N64: 50 | O64: =IF(MAXA(L64+M64,M64+N64,L64+N64,L64,M64,N64)<=0,0,MAXA(L64+M64,M64+N64,L64+N64,L64,M64,N64)) -> 98 | P64: 55 | Q64: 57 | R64: 59 | S64: =IF(MAXA(P64+Q64,Q64+R64,P64+R64,P64,Q64,R64)<=0,0,MAXA(P64+Q64,Q64+R64,P64+R64,P64,Q64,R64)) -> 116 | T64: =IF(H64="","",IF(OR(O64=0,S64=0),0,O64+S64)) -> 214 | U64: =IF(I64="","",IF(A64="H",10^(0.794358141*LOG(I64/174.393)^2)*T64,IF(A64="F",10^(0.89726074 * LOG(I64/148.026)^2)*T64,""))) -> 385.7627308 | V64: =SUM(T64-I64) -> 166.8 | X64: =IF(A64="F",(IF(OR(H64>2001,H64<2004),VLOOKUP(I64,Feuil1!$G$11:$H$25,2))),IF(A64="H",(IF(OR(H64>2001,H64<2004),VLOOKUP(I64,Feuil1!$A$11:$F$29,2))))) -> M50 | Z64: =T64-HLOOKUP(X64,#REF!,2,FALSE) ->  | AA64: =T64-HLOOKUP(X64,#REF!,3,FALSE) ->  | AB64: =T64-HLOOKUP(X64,#REF!,4,FALSE) ->  | AC64: =T64-HLOOKUP(X64,#REF!,5,FALSE) ->  | AD64: =T64-HLOOKUP(X64,#REF!,6,FALSE) ->  | AE64: =T64-HLOOKUP(X64,#REF!,7,FALSE) ->  | AF64: =T64-HLOOKUP(X64,#REF!,8,FALSE) ->  | AG64: =T64-HLOOKUP(X64,#REF!,9,FALSE) ->  | AO64: =IF(AG64>=0,$AG$4,IF(AF64>=0,$AF$4,IF(AE64>=0,$AE$4,IF(AD64>=0,$AD$4,IF(AC64>=0,$AC$4,IF(AB64>=0,$AB$4,IF(AA64>=0,$AA$4,IF(Z64>=0,$Z$4,$AH$4)))))))) -> 
A65: H | B65: NE | C65: ALS | D65: 2 | E65: 324091 | F65: SPAGNULO | G65: GIACONO | H65: 2002 | I65: 49.9 | J65: SHC Haguenau | L65: 41 | M65: 43 | N65: 45 | O65: 88 | P65: 52 | Q65: 54 | R65: 56 | S65: 110 | T65: 198 | U65: 339.8213788 | V65: 148.1 | X65: =IF(A65="F",(IF(OR(H65>2001,H65<2004),VLOOKUP(I65,Feuil1!$G$11:$H$25,2))),IF(A65="H",(IF(OR(H65>2001,H65<2004),VLOOKUP(I65,Feuil1!$A$11:$F$29,2))))) -> M50 | Z65: =T65-HLOOKUP(X65,#REF!,2,FALSE) ->  | AA65: =T65-HLOOKUP(X65,#REF!,3,FALSE) ->  | AB65: =T65-HLOOKUP(X65,#REF!,4,FALSE) ->  | AC65: =T65-HLOOKUP(X65,#REF!,5,FALSE) ->  | AD65: =T65-HLOOKUP(X65,#REF!,6,FALSE) ->  | AE65: =T65-HLOOKUP(X65,#REF!,7,FALSE) ->  | AF65: =T65-HLOOKUP(X65,#REF!,8,FALSE) ->  | AG65: =T65-HLOOKUP(X65,#REF!,9,FALSE) -> 
A66: H | B66: N | C66: IDF | D66: 3 | E66: 334661 | F66: RASCLE | G66: LENNY | H66: 2002 | I66: 47.6 | J66: SAINT MAUR | K66: F | L66: 37 | M66: 39 | N66: -41 | O66: 76 | P66: 44 | Q66: 46 | R66: 48 | S66: 94 | T66: 170 | U66: 304.1314052 | V66: 122.4 | X66: =IF(A66="F",(IF(OR(H66>2001,H66<2004),VLOOKUP(I66,Feuil1!$G$11:$H$25,2))),IF(A66="H",(IF(OR(H66>2001,H66<2004),VLOOKUP(I66,Feuil1!$A$11:$F$29,2))))) -> M50 | Z66: =T66-HLOOKUP(X66,#REF!,2,FALSE) ->  | AA66: =T66-HLOOKUP(X66,#REF!,3,FALSE) ->  | AB66: =T66-HLOOKUP(X66,#REF!,4,FALSE) ->  | AC66: =T66-HLOOKUP(X66,#REF!,5,FALSE) ->  | AD66: =T66-HLOOKUP(X66,#REF!,6,FALSE) ->  | AE66: =T66-HLOOKUP(X66,#REF!,7,FALSE) ->  | AF66: =T66-HLOOKUP(X66,#REF!,8,FALSE) ->  | AG66: =T66-HLOOKUP(X66,#REF!,9,FALSE) -> 
A67: H | B67: SO | C67: AQU | D67: 4 | E67: 377643 | F67: JACQUET | G67: YOANN | H67: 2002 | I67: 47.1 | J67: BORDEAUX ASPOM | K67: F | L67: 28 | M67: 30 | N67: 32 | O67: 62 | P67: 43 | Q67: 45 | R67: 47 | S67: 92 | T67: 154 | U67: 278.1368099 | V67: 106.9 | X67: =IF(A67="F",(IF(OR(H67>2001,H67<2004),VLOOKUP(I67,Feuil1!$G$11:$H$25,2))),IF(A67="H",(IF(OR(H67>2001,H67<2004),VLOOKUP(I67,Feuil1!$A$11:$F$29,2))))) -> M50 | Z67: =T67-HLOOKUP(X67,#REF!,2,FALSE) ->  | AA67: =T67-HLOOKUP(X67,#REF!,3,FALSE) ->  | AB67: =T67-HLOOKUP(X67,#REF!,4,FALSE) ->  | AC67: =T67-HLOOKUP(X67,#REF!,5,FALSE) ->  | AD67: =T67-HLOOKUP(X67,#REF!,6,FALSE) ->  | AE67: =T67-HLOOKUP(X67,#REF!,7,FALSE) ->  | AF67: =T67-HLOOKUP(X67,#REF!,8,FALSE) ->  | AG67: =T67-HLOOKUP(X67,#REF!,9,FALSE) -> 
A68: H | B68: NORD | C68: NPC | D68: 5 | E68: 359647 | F68: PARANTHOEN | G68: Jason | H68: 2002 | I68: 49 | J68: C.A.ROSENDAEL | K68: F | L68: 30 | M68: 32 | N68: 34 | O68: 66 | P68: 40 | Q68: 42 | R68: 44 | S68: 86 | T68: 152 | U68: 265.0349067 | V68: 103 | X68: =IF(A68="F",(IF(OR(H68>2001,H68<2004),VLOOKUP(I68,Feuil1!$G$11:$H$25,2))),IF(A68="H",(IF(OR(H68>2001,H68<2004),VLOOKUP(I68,Feuil1!$A$11:$F$29,2))))) -> M50 | Z68: =T68-HLOOKUP(X68,#REF!,2,FALSE) ->  | AA68: =T68-HLOOKUP(X68,#REF!,3,FALSE) ->  | AB68: =T68-HLOOKUP(X68,#REF!,4,FALSE) ->  | AC68: =T68-HLOOKUP(X68,#REF!,5,FALSE) ->  | AD68: =T68-HLOOKUP(X68,#REF!,6,FALSE) ->  | AE68: =T68-HLOOKUP(X68,#REF!,7,FALSE) ->  | AF68: =T68-HLOOKUP(X68,#REF!,8,FALSE) ->  | AG68: =T68-HLOOKUP(X68,#REF!,9,FALSE) -> 
A69: H | B69: SO | C69: POI | D69: 6 | E69: 375640 | F69: MONGIN | G69: Hugo | H69: 2002 | I69: 48.7 | J69: POITIERS | K69: F | L69: 30 | M69: 32 | N69: 34 | O69: 66 | P69: 39 | Q69: 41 | R69: 43 | S69: 84 | T69: 150 | U69: 262.9617367 | V69: 101.3 | X69: =IF(A69="F",(IF(OR(H69>2001,H69<2004),VLOOKUP(I69,Feuil1!$G$11:$H$25,2))),IF(A69="H",(IF(OR(H69>2001,H69<2004),VLOOKUP(I69,Feuil1!$A$11:$F$29,2))))) -> M50 | Z69: =T69-HLOOKUP(X69,#REF!,2,FALSE) ->  | AA69: =T69-HLOOKUP(X69,#REF!,3,FALSE) ->  | AB69: =T69-HLOOKUP(X69,#REF!,4,FALSE) ->  | AC69: =T69-HLOOKUP(X69,#REF!,5,FALSE) ->  | AD69: =T69-HLOOKUP(X69,#REF!,6,FALSE) ->  | AE69: =T69-HLOOKUP(X69,#REF!,7,FALSE) ->  | AF69: =T69-HLOOKUP(X69,#REF!,8,FALSE) ->  | AG69: =T69-HLOOKUP(X69,#REF!,9,FALSE) -> 
A70: H | B70: SO | C70: MPY | D70: 7 | E70: 326262 | F70: HAVET | G70: Bastien | H70: 2002 | I70: 49 | J70: FIGEAC HC | K70: F | L70: 31 | M70: 33 | N70: 35 | O70: 68 | P70: 31 | Q70: 33 | R70: 35 | S70: 68 | T70: 136 | U70: 237.1364955 | V70: 87 | X70: =IF(A70="F",(IF(OR(H70>2001,H70<2004),VLOOKUP(I70,Feuil1!$G$11:$H$25,2))),IF(A70="H",(IF(OR(H70>2001,H70<2004),VLOOKUP(I70,Feuil1!$A$11:$F$29,2))))) -> M50 | Z70: =T70-HLOOKUP(X70,#REF!,2,FALSE) ->  | AA70: =T70-HLOOKUP(X70,#REF!,3,FALSE) ->  | AB70: =T70-HLOOKUP(X70,#REF!,4,FALSE) ->  | AC70: =T70-HLOOKUP(X70,#REF!,5,FALSE) ->  | AD70: =T70-HLOOKUP(X70,#REF!,6,FALSE) ->  | AE70: =T70-HLOOKUP(X70,#REF!,7,FALSE) ->  | AF70: =T70-HLOOKUP(X70,#REF!,8,FALSE) ->  | AG70: =T70-HLOOKUP(X70,#REF!,9,FALSE) -> 
A71: H | B71: CO | C71: PDL | D71: 8 | E71: 378550 | F71: IHIHI | G71: Ossama | H71: 2002 | I71: 49.2 | J71: CJF LAVAL - VOUTRÉ | K71: F | L71: 26 | M71: 28 | N71: 30 | O71: 58 | P71: 36 | Q71: 37 | R71: 38 | S71: 75 | T71: 133 | U71: 231.0809308 | V71: 83.8 | X71: =IF(A71="F",(IF(OR(H71>2001,H71<2004),VLOOKUP(I71,Feuil1!$G$11:$H$25,2))),IF(A71="H",(IF(OR(H71>2001,H71<2004),VLOOKUP(I71,Feuil1!$A$11:$F$29,2))))) -> M50 | Z71: =T71-HLOOKUP(X71,#REF!,2,FALSE) ->  | AA71: =T71-HLOOKUP(X71,#REF!,3,FALSE) ->  | AB71: =T71-HLOOKUP(X71,#REF!,4,FALSE) ->  | AC71: =T71-HLOOKUP(X71,#REF!,5,FALSE) ->  | AD71: =T71-HLOOKUP(X71,#REF!,6,FALSE) ->  | AE71: =T71-HLOOKUP(X71,#REF!,7,FALSE) ->  | AF71: =T71-HLOOKUP(X71,#REF!,8,FALSE) ->  | AG71: =T71-HLOOKUP(X71,#REF!,9,FALSE) -> 
A72: H | B72: NORD | C72: NPC | D72: 9 | E72: 376898 | F72: MANGELLE | G72: Kenzo | H72: 2003 | I72: 47.4 | J72: ST POL/MER | K72: F | L72: 24 | M72: 26 | N72: 28 | O72: 54 | P72: 34 | Q72: 36 | R72: 38 | S72: 74 | T72: 128 | U72: 229.8599183 | V72: 80.6 | X72: =IF(A72="F",(IF(OR(H72>2001,H72<2004),VLOOKUP(I72,Feuil1!$G$11:$H$25,2))),IF(A72="H",(IF(OR(H72>2001,H72<2004),VLOOKUP(I72,Feuil1!$A$11:$F$29,2))))) -> M50 | Z72: =T72-HLOOKUP(X72,#REF!,2,FALSE) ->  | AA72: =T72-HLOOKUP(X72,#REF!,3,FALSE) ->  | AB72: =T72-HLOOKUP(X72,#REF!,4,FALSE) ->  | AC72: =T72-HLOOKUP(X72,#REF!,5,FALSE) ->  | AD72: =T72-HLOOKUP(X72,#REF!,6,FALSE) ->  | AE72: =T72-HLOOKUP(X72,#REF!,7,FALSE) ->  | AF72: =T72-HLOOKUP(X72,#REF!,8,FALSE) ->  | AG72: =T72-HLOOKUP(X72,#REF!,9,FALSE) -> 
A73: H | B73: N | C73: IDF | D73: 10 | E73: 377315 | F73: CAGNY | G73: RAFAEL | H73: 2003 | I73: 50 | J73: FRANCONVILLE | K73: F | L73: 23 | M73: 25 | N73: 27 | O73: 52 | P73: 35 | Q73: 37 | R73: 39 | S73: 76 | T73: 128 | U73: 219.3034314 | V73: 78 | X73: =IF(A73="F",(IF(OR(H73>2001,H73<2004),VLOOKUP(I73,Feuil1!$G$11:$H$25,2))),IF(A73="H",(IF(OR(H73>2001,H73<2004),VLOOKUP(I73,Feuil1!$A$11:$F$29,2))))) -> M50 | Z73: =T73-HLOOKUP(X73,#REF!,2,FALSE) ->  | AA73: =T73-HLOOKUP(X73,#REF!,3,FALSE) ->  | AB73: =T73-HLOOKUP(X73,#REF!,4,FALSE) ->  | AC73: =T73-HLOOKUP(X73,#REF!,5,FALSE) ->  | AD73: =T73-HLOOKUP(X73,#REF!,6,FALSE) ->  | AE73: =T73-HLOOKUP(X73,#REF!,7,FALSE) ->  | AF73: =T73-HLOOKUP(X73,#REF!,8,FALSE) ->  | AG73: =T73-HLOOKUP(X73,#REF!,9,FALSE) -> 
A74: H | B74: NORD | C74: NPC | D74: 11 | E74: 344407 | F74: GALLOO | G74: Martin | H74: 2002 | I74: 45.4 | J74: CHCD COMINES | K74: F | L74: 23 | M74: 25 | N74: 27 | O74: 52 | P74: 34 | Q74: 36 | R74: 38 | S74: 74 | T74: 126 | U74: 235.358761 | V74: 80.6 | X74: =IF(A74="F",(IF(OR(H74>2001,H74<2004),VLOOKUP(I74,Feuil1!$G$11:$H$25,2))),IF(A74="H",(IF(OR(H74>2001,H74<2004),VLOOKUP(I74,Feuil1!$A$11:$F$29,2))))) -> M50 | Z74: =T74-HLOOKUP(X74,#REF!,2,FALSE) ->  | AA74: =T74-HLOOKUP(X74,#REF!,3,FALSE) ->  | AB74: =T74-HLOOKUP(X74,#REF!,4,FALSE) ->  | AC74: =T74-HLOOKUP(X74,#REF!,5,FALSE) ->  | AD74: =T74-HLOOKUP(X74,#REF!,6,FALSE) ->  | AE74: =T74-HLOOKUP(X74,#REF!,7,FALSE) ->  | AF74: =T74-HLOOKUP(X74,#REF!,8,FALSE) ->  | AG74: =T74-HLOOKUP(X74,#REF!,9,FALSE) -> 
A75: H | B75: ZCO | C75: BRE | D75: 12 | E75: 378681 | F75: OUDIN | G75: Fabien | H75: 2003 | I75: 48.9 | J75: CHM Plouhinec | K75: F | L75: 24 | M75: 26 | N75: 28 | O75: 54 | P75: 32 | Q75: -34 | R75: 34 | S75: 66 | T75: 120 | U75: 209.6131322 | V75: 71.1 | X75: =IF(A75="F",(IF(OR(H75>2001,H75<2004),VLOOKUP(I75,Feuil1!$G$11:$H$25,2))),IF(A75="H",(IF(OR(H75>2001,H75<2004),VLOOKUP(I75,Feuil1!$A$11:$F$29,2))))) -> M50 | Z75: =T75-HLOOKUP(X75,#REF!,2,FALSE) ->  | AA75: =T75-HLOOKUP(X75,#REF!,3,FALSE) ->  | AB75: =T75-HLOOKUP(X75,#REF!,4,FALSE) ->  | AC75: =T75-HLOOKUP(X75,#REF!,5,FALSE) ->  | AD75: =T75-HLOOKUP(X75,#REF!,6,FALSE) ->  | AE75: =T75-HLOOKUP(X75,#REF!,7,FALSE) ->  | AF75: =T75-HLOOKUP(X75,#REF!,8,FALSE) ->  | AG75: =T75-HLOOKUP(X75,#REF!,9,FALSE) -> 
A76: H | B76: SEST | C76: RAL | D76: 13 | E76: 378094 | F76: DENIS | G76: Thomas | H76: 2002 | I76: 49.2 | J76: CHAMBON FEUG | K76: F | L76: 25 | M76: 27 | N76: 28 | O76: 55 | P76: 30 | Q76: -32 | R76: 32 | S76: 62 | T76: 117 | U76: 203.2817211 | V76: 67.8 | X76: =IF(A76="F",(IF(OR(H76>2001,H76<2004),VLOOKUP(I76,Feuil1!$G$11:$H$25,2))),IF(A76="H",(IF(OR(H76>2001,H76<2004),VLOOKUP(I76,Feuil1!$A$11:$F$29,2))))) -> M50 | Z76: =T76-HLOOKUP(X76,#REF!,2,FALSE) ->  | AA76: =T76-HLOOKUP(X76,#REF!,3,FALSE) ->  | AB76: =T76-HLOOKUP(X76,#REF!,4,FALSE) ->  | AC76: =T76-HLOOKUP(X76,#REF!,5,FALSE) ->  | AD76: =T76-HLOOKUP(X76,#REF!,6,FALSE) ->  | AE76: =T76-HLOOKUP(X76,#REF!,7,FALSE) ->  | AF76: =T76-HLOOKUP(X76,#REF!,8,FALSE) ->  | AG76: =T76-HLOOKUP(X76,#REF!,9,FALSE) -> 
A77: H | B77: ZCO | C77: BRE | D77: 14 | E77: 364030 | F77: RAGOT | G77: Antoine | H77: 2002 | I77: 48.28 | J77: HC Pleurtuit | K77: F | L77: 23 | M77: 24 | N77: -25 | O77: 47 | P77: 29 | Q77: 30 | R77: 32 | S77: 62 | T77: 109 | U77: 192.552825 | V77: 60.72 | X77: =IF(A77="F",(IF(OR(H77>2001,H77<2004),VLOOKUP(I77,Feuil1!$G$11:$H$25,2))),IF(A77="H",(IF(OR(H77>2001,H77<2004),VLOOKUP(I77,Feuil1!$A$11:$F$29,2))))) -> M50 | Z77: =T77-HLOOKUP(X77,#REF!,2,FALSE) ->  | AA77: =T77-HLOOKUP(X77,#REF!,3,FALSE) ->  | AB77: =T77-HLOOKUP(X77,#REF!,4,FALSE) ->  | AC77: =T77-HLOOKUP(X77,#REF!,5,FALSE) ->  | AD77: =T77-HLOOKUP(X77,#REF!,6,FALSE) ->  | AE77: =T77-HLOOKUP(X77,#REF!,7,FALSE) ->  | AF77: =T77-HLOOKUP(X77,#REF!,8,FALSE) ->  | AG77: =T77-HLOOKUP(X77,#REF!,9,FALSE) -> 
A78: H | B78: NORD | C78: PIC | D78: 15 | E78: 364932 | F78: VICART | G78: Mathéo | H78: 2002 | I78: 48.6 | J78: Saleux CHM | K78: F | L78: 22 | M78: 24 | N78: 26 | O78: 50 | P78: 26 | Q78: 28 | R78: 30 | S78: 58 | T78: 108 | U78: 189.6755668 | V78: 59.4 | X78: =IF(A78="F",(IF(OR(H78>2001,H78<2004),VLOOKUP(I78,Feuil1!$G$11:$H$25,2))),IF(A78="H",(IF(OR(H78>2001,H78<2004),VLOOKUP(I78,Feuil1!$A$11:$F$29,2))))) -> M50 | Z78: =T78-HLOOKUP(X78,#REF!,2,FALSE) ->  | AA78: =T78-HLOOKUP(X78,#REF!,3,FALSE) ->  | AB78: =T78-HLOOKUP(X78,#REF!,4,FALSE) ->  | AC78: =T78-HLOOKUP(X78,#REF!,5,FALSE) ->  | AD78: =T78-HLOOKUP(X78,#REF!,6,FALSE) ->  | AE78: =T78-HLOOKUP(X78,#REF!,7,FALSE) ->  | AF78: =T78-HLOOKUP(X78,#REF!,8,FALSE) ->  | AG78: =T78-HLOOKUP(X78,#REF!,9,FALSE) -> 
A79: H | B79: SEST | C79: PRO | D79: 16 | E79: 364002 | F79: CHOMIENNE | G79: Tristan | H79: 2002 | I79: 50 | J79: ISTRES SPORTS | K79: F | L79: 20 | M79: 22 | N79: 24 | O79: 46 | P79: 26 | Q79: 28 | R79: 30 | S79: 58 | T79: 104 | U79: 178.184038 | V79: 54 | X79: =IF(A79="F",(IF(OR(H79>2001,H79<2004),VLOOKUP(I79,Feuil1!$G$11:$H$25,2))),IF(A79="H",(IF(OR(H79>2001,H79<2004),VLOOKUP(I79,Feuil1!$A$11:$F$29,2))))) -> M50 | Z79: =T79-HLOOKUP(X79,#REF!,2,FALSE) ->  | AA79: =T79-HLOOKUP(X79,#REF!,3,FALSE) ->  | AB79: =T79-HLOOKUP(X79,#REF!,4,FALSE) ->  | AC79: =T79-HLOOKUP(X79,#REF!,5,FALSE) ->  | AD79: =T79-HLOOKUP(X79,#REF!,6,FALSE) ->  | AE79: =T79-HLOOKUP(X79,#REF!,7,FALSE) ->  | AF79: =T79-HLOOKUP(X79,#REF!,8,FALSE) ->  | AG79: =T79-HLOOKUP(X79,#REF!,9,FALSE) -> 
A80: H | B80: SEST | C80: CAZ | D80: 17 | E80: 395173 | F80: IPATOV | G80: Daniel | H80: 2002 | I80: 47.96 | J80: ES VILLENEUVE LOUBET | K80: R | L80: 20 | M80: -22 | N80: 22 | O80: 42 | P80: 26 | Q80: 28 | R80: 30 | S80: 58 | T80: 100 | U80: 177.7007371 | V80: 52.04 | X80: =IF(A80="F",(IF(OR(H80>2001,H80<2004),VLOOKUP(I80,Feuil1!$G$11:$H$25,2))),IF(A80="H",(IF(OR(H80>2001,H80<2004),VLOOKUP(I80,Feuil1!$A$11:$F$29,2))))) -> M50 | Z80: =T80-HLOOKUP(X80,#REF!,2,FALSE) ->  | AA80: =T80-HLOOKUP(X80,#REF!,3,FALSE) ->  | AB80: =T80-HLOOKUP(X80,#REF!,4,FALSE) ->  | AC80: =T80-HLOOKUP(X80,#REF!,5,FALSE) ->  | AD80: =T80-HLOOKUP(X80,#REF!,6,FALSE) ->  | AE80: =T80-HLOOKUP(X80,#REF!,7,FALSE) ->  | AF80: =T80-HLOOKUP(X80,#REF!,8,FALSE) ->  | AG80: =T80-HLOOKUP(X80,#REF!,9,FALSE) -> 
A81: H | B81: NE | C81: ALS | D81: 18 | E81: 355143 | F81: DELORME | G81: CYRIL | H81: 2003 | I81: 49.5 | J81: SR Obernai HM | K81: F | L81: 17 | M81: 19 | N81: 21 | O81: 40 | P81: 26 | Q81: 28 | R81: 30 | S81: 58 | T81: 98 | U81: 169.3709832 | V81: 48.5 | X81: =IF(A81="F",(IF(OR(H81>2001,H81<2004),VLOOKUP(I81,Feuil1!$G$11:$H$25,2))),IF(A81="H",(IF(OR(H81>2001,H81<2004),VLOOKUP(I81,Feuil1!$A$11:$F$29,2))))) -> M50 | Z81: =T81-HLOOKUP(X81,#REF!,2,FALSE) ->  | AA81: =T81-HLOOKUP(X81,#REF!,3,FALSE) ->  | AB81: =T81-HLOOKUP(X81,#REF!,4,FALSE) ->  | AC81: =T81-HLOOKUP(X81,#REF!,5,FALSE) ->  | AD81: =T81-HLOOKUP(X81,#REF!,6,FALSE) ->  | AE81: =T81-HLOOKUP(X81,#REF!,7,FALSE) ->  | AF81: =T81-HLOOKUP(X81,#REF!,8,FALSE) ->  | AG81: =T81-HLOOKUP(X81,#REF!,9,FALSE) -> 
A82: H | B82: N | C82: IDF | D82: 19 | E82: 380705 | F82: BEKKOUCH | G82: ILIES | H82: 2002 | I82: 49.2 | J82: CACHAN | K82: F | L82: 16 | M82: 18 | N82: 20 | O82: 38 | P82: 27 | Q82: 29 | R82: 30 | S82: 59 | T82: 97 | U82: 168.5327089 | V82: 47.8 | X82: =IF(A82="F",(IF(OR(H82>2001,H82<2004),VLOOKUP(I82,Feuil1!$G$11:$H$25,2))),IF(A82="H",(IF(OR(H82>2001,H82<2004),VLOOKUP(I82,Feuil1!$A$11:$F$29,2))))) -> M50 | Z82: =T82-HLOOKUP(X82,#REF!,2,FALSE) ->  | AA82: =T82-HLOOKUP(X82,#REF!,3,FALSE) ->  | AB82: =T82-HLOOKUP(X82,#REF!,4,FALSE) ->  | AC82: =T82-HLOOKUP(X82,#REF!,5,FALSE) ->  | AD82: =T82-HLOOKUP(X82,#REF!,6,FALSE) ->  | AE82: =T82-HLOOKUP(X82,#REF!,7,FALSE) ->  | AF82: =T82-HLOOKUP(X82,#REF!,8,FALSE) ->  | AG82: =T82-HLOOKUP(X82,#REF!,9,FALSE) -> 
A83: H | B83: SO | C83: AQU | D83: 20 | E83: 390374 | F83: GANESHARAJAH | G83: ABIESHEK | H83: 2002 | I83: 45.7 | J83: MONT DE MARSAN | K83: SRL | L83: 15 | M83: 18 | N83: 19 | O83: 37 | P83: 25 | Q83: 27 | R83: 30 | S83: 57 | T83: 94 | U83: 174.517172 | V83: 48.3 | X83: =IF(A83="F",(IF(OR(H83>2001,H83<2004),VLOOKUP(I83,Feuil1!$G$11:$H$25,2))),IF(A83="H",(IF(OR(H83>2001,H83<2004),VLOOKUP(I83,Feuil1!$A$11:$F$29,2))))) -> M50 | Z83: =T83-HLOOKUP(X83,#REF!,2,FALSE) ->  | AA83: =T83-HLOOKUP(X83,#REF!,3,FALSE) ->  | AB83: =T83-HLOOKUP(X83,#REF!,4,FALSE) ->  | AC83: =T83-HLOOKUP(X83,#REF!,5,FALSE) ->  | AD83: =T83-HLOOKUP(X83,#REF!,6,FALSE) ->  | AE83: =T83-HLOOKUP(X83,#REF!,7,FALSE) ->  | AF83: =T83-HLOOKUP(X83,#REF!,8,FALSE) ->  | AG83: =T83-HLOOKUP(X83,#REF!,9,FALSE) -> 
A84: H | B84: ZCO | C84: BRE | D84: 21 | E84: 327176 | F84: FETIVEAU | G84: Brian | H84: 2003 | I84: 48.7 | J84: ES Saint-Avé | K84: F | L84: 21 | M84: 23 | N84: -25 | O84: 44 | P84: 22 | Q84: 24 | R84: 26 | S84: 50 | T84: 94 | U84: 164.789355 | V84: 45.3 | X84: =IF(A84="F",(IF(OR(H84>2001,H84<2004),VLOOKUP(I84,Feuil1!$G$11:$H$25,2))),IF(A84="H",(IF(OR(H84>2001,H84<2004),VLOOKUP(I84,Feuil1!$A$11:$F$29,2))))) -> M50 | Z84: =T84-HLOOKUP(X84,#REF!,2,FALSE) ->  | AA84: =T84-HLOOKUP(X84,#REF!,3,FALSE) ->  | AB84: =T84-HLOOKUP(X84,#REF!,4,FALSE) ->  | AC84: =T84-HLOOKUP(X84,#REF!,5,FALSE) ->  | AD84: =T84-HLOOKUP(X84,#REF!,6,FALSE) ->  | AE84: =T84-HLOOKUP(X84,#REF!,7,FALSE) ->  | AF84: =T84-HLOOKUP(X84,#REF!,8,FALSE) ->  | AG84: =T84-HLOOKUP(X84,#REF!,9,FALSE) -> 
A85: H | B85: NE | C85: ALS | D85: 22 | E85: 375935 | F85: CIZEK | G85: ERWAN | H85: 2002 | I85: 45.7 | J85: SHC Haguenau | K85: F | L85: 17 | M85: 19 | N85: 21 | O85: 40 | P85: 22 | Q85: 24 | R85: 26 | S85: 50 | T85: 90 | U85: 167.0909094 | V85: 44.3 | X85: =IF(A85="F",(IF(OR(H85>2001,H85<2004),VLOOKUP(I85,Feuil1!$G$11:$H$25,2))),IF(A85="H",(IF(OR(H85>2001,H85<2004),VLOOKUP(I85,Feuil1!$A$11:$F$29,2))))) -> M50 | Z85: =T85-HLOOKUP(X85,#REF!,2,FALSE) ->  | AA85: =T85-HLOOKUP(X85,#REF!,3,FALSE) ->  | AB85: =T85-HLOOKUP(X85,#REF!,4,FALSE) ->  | AC85: =T85-HLOOKUP(X85,#REF!,5,FALSE) ->  | AD85: =T85-HLOOKUP(X85,#REF!,6,FALSE) ->  | AE85: =T85-HLOOKUP(X85,#REF!,7,FALSE) ->  | AF85: =T85-HLOOKUP(X85,#REF!,8,FALSE) ->  | AG85: =T85-HLOOKUP(X85,#REF!,9,FALSE) -> 
A86: H | B86: NORD | C86: PIC | D86: 23 | E86: 376821 | F86: LEGER LESOT | G86: Dylan | H86: 2002 | I86: 45.68 | J86: La Vaillante Saint Quentin | K86: F | L86: 15 | M86: 17 | N86: 19 | O86: 36 | P86: 22 | Q86: 24 | R86: -26 | S86: 46 | T86: 82 | U86: 152.2999829 | V86: 36.32 | X86: =IF(A86="F",(IF(OR(H86>2001,H86<2004),VLOOKUP(I86,Feuil1!$G$11:$H$25,2))),IF(A86="H",(IF(OR(H86>2001,H86<2004),VLOOKUP(I86,Feuil1!$A$11:$F$29,2))))) -> M50 | Z86: =T86-HLOOKUP(X86,#REF!,2,FALSE) ->  | AA86: =T86-HLOOKUP(X86,#REF!,3,FALSE) ->  | AB86: =T86-HLOOKUP(X86,#REF!,4,FALSE) ->  | AC86: =T86-HLOOKUP(X86,#REF!,5,FALSE) ->  | AD86: =T86-HLOOKUP(X86,#REF!,6,FALSE) ->  | AE86: =T86-HLOOKUP(X86,#REF!,7,FALSE) ->  | AF86: =T86-HLOOKUP(X86,#REF!,8,FALSE) ->  | AG86: =T86-HLOOKUP(X86,#REF!,9,FALSE) -> 
A87: H | B87: NE | C87: CHA | D87: 24 | E87: 387908 | F87: CHAMARANDE | G87: Johanny | H87: 2002 | I87: 45.95 | J87: Langres HM | K87: F | L87: 15 | M87: 17 | N87: 19 | O87: 36 | P87: 16 | Q87: 18 | R87: 20 | S87: 38 | T87: 74 | U87: 136.6964394 | V87: 28.05 | X87: =IF(A87="F",(IF(OR(H87>2001,H87<2004),VLOOKUP(I87,Feuil1!$G$11:$H$25,2))),IF(A87="H",(IF(OR(H87>2001,H87<2004),VLOOKUP(I87,Feuil1!$A$11:$F$29,2))))) -> M50 | Z87: =T87-HLOOKUP(X87,#REF!,2,FALSE) ->  | AA87: =T87-HLOOKUP(X87,#REF!,3,FALSE) ->  | AB87: =T87-HLOOKUP(X87,#REF!,4,FALSE) ->  | AC87: =T87-HLOOKUP(X87,#REF!,5,FALSE) ->  | AD87: =T87-HLOOKUP(X87,#REF!,6,FALSE) ->  | AE87: =T87-HLOOKUP(X87,#REF!,7,FALSE) ->  | AF87: =T87-HLOOKUP(X87,#REF!,8,FALSE) ->  | AG87: =T87-HLOOKUP(X87,#REF!,9,FALSE) -> 
A88: H | B88: NE | C88: ALS | D88: 25 | E88: 383774 | F88: VERGNAUD | G88: JAROD | H88: 2003 | I88: 46.14 | J88: SHC Haguenau | K88: F | L88: 16 | M88: 17 | N88: -18 | O88: 33 | P88: 19 | Q88: 21 | R88: -23 | S88: 40 | T88: 73 | U88: 134.3388823 | V88: 26.86 | X88: =IF(A88="F",(IF(OR(H88>2001,H88<2004),VLOOKUP(I88,Feuil1!$G$11:$H$25,2))),IF(A88="H",(IF(OR(H88>2001,H88<2004),VLOOKUP(I88,Feuil1!$A$11:$F$29,2))))) -> M50 | Z88: =T88-HLOOKUP(X88,#REF!,2,FALSE) ->  | AA88: =T88-HLOOKUP(X88,#REF!,3,FALSE) ->  | AB88: =T88-HLOOKUP(X88,#REF!,4,FALSE) ->  | AC88: =T88-HLOOKUP(X88,#REF!,5,FALSE) ->  | AD88: =T88-HLOOKUP(X88,#REF!,6,FALSE) ->  | AE88: =T88-HLOOKUP(X88,#REF!,7,FALSE) ->  | AF88: =T88-HLOOKUP(X88,#REF!,8,FALSE) ->  | AG88: =T88-HLOOKUP(X88,#REF!,9,FALSE) -> 
A89: H | B89: CO | C89: BNO | D89: 26 | E89: 377449 | F89: Anquetil | G89: Kilian | H89: 2002 | I89: 45.3 | J89: Giberville | K89: F | L89: 12 | M89: 13 | N89: 14 | O89: 27 | P89: 16 | Q89: 17 | R89: 19 | S89: 36 | T89: 63 | U89: 117.9207792 | V89: 17.7 | X89: =IF(A89="F",(IF(OR(H89>2001,H89<2004),VLOOKUP(I89,Feuil1!$G$11:$H$25,2))),IF(A89="H",(IF(OR(H89>2001,H89<2004),VLOOKUP(I89,Feuil1!$A$11:$F$29,2))))) -> M50 | Z89: =T89-HLOOKUP(X89,#REF!,2,FALSE) ->  | AA89: =T89-HLOOKUP(X89,#REF!,3,FALSE) ->  | AB89: =T89-HLOOKUP(X89,#REF!,4,FALSE) ->  | AC89: =T89-HLOOKUP(X89,#REF!,5,FALSE) ->  | AD89: =T89-HLOOKUP(X89,#REF!,6,FALSE) ->  | AE89: =T89-HLOOKUP(X89,#REF!,7,FALSE) ->  | AF89: =T89-HLOOKUP(X89,#REF!,8,FALSE) ->  | AG89: =T89-HLOOKUP(X89,#REF!,9,FALSE) -> 
A90: H | B90: NE | C90: CHA | D90: 27 | E90: 396856 | F90: KESLER | G90: Patrick | H90: 2002 | I90: 45.2 | J90: Langres HM | K90: F | L90: 10 | M90: 12 | N90: 14 | O90: 26 | P90: 14 | Q90: -16 | R90: 16 | S90: 30 | T90: 56 | U90: 105.0343164 | V90: 10.8 | X90: =IF(A90="F",(IF(OR(H90>2001,H90<2004),VLOOKUP(I90,Feuil1!$G$11:$H$25,2))),IF(A90="H",(IF(OR(H90>2001,H90<2004),VLOOKUP(I90,Feuil1!$A$11:$F$29,2))))) -> M50 | Z90: =T90-HLOOKUP(X90,#REF!,2,FALSE) ->  | AA90: =T90-HLOOKUP(X90,#REF!,3,FALSE) ->  | AB90: =T90-HLOOKUP(X90,#REF!,4,FALSE) ->  | AC90: =T90-HLOOKUP(X90,#REF!,5,FALSE) ->  | AD90: =T90-HLOOKUP(X90,#REF!,6,FALSE) ->  | AE90: =T90-HLOOKUP(X90,#REF!,7,FALSE) ->  | AF90: =T90-HLOOKUP(X90,#REF!,8,FALSE) ->  | AG90: =T90-HLOOKUP(X90,#REF!,9,FALSE) -> 
A91: H | B91: SO | C91: MPY | D91: 28 | E91: 375974 | F91: MIQUEL | G91: Noah | H91: 2003 | I91: 45.2 | J91: MONTAUBAN HC | K91: F | L91: 9 | M91: 11 | N91: 12 | O91: 23 | P91: 14 | Q91: 16 | R91: 17 | S91: 33 | T91: 56 | U91: 105.0343164 | V91: 10.8 | X91: =IF(A91="F",(IF(OR(H91>2001,H91<2004),VLOOKUP(I91,Feuil1!$G$11:$H$25,2))),IF(A91="H",(IF(OR(H91>2001,H91<2004),VLOOKUP(I91,Feuil1!$A$11:$F$29,2))))) -> M50 | Z91: =T91-HLOOKUP(X91,#REF!,2,FALSE) ->  | AA91: =T91-HLOOKUP(X91,#REF!,3,FALSE) ->  | AB91: =T91-HLOOKUP(X91,#REF!,4,FALSE) ->  | AC91: =T91-HLOOKUP(X91,#REF!,5,FALSE) ->  | AD91: =T91-HLOOKUP(X91,#REF!,6,FALSE) ->  | AE91: =T91-HLOOKUP(X91,#REF!,7,FALSE) ->  | AF91: =T91-HLOOKUP(X91,#REF!,8,FALSE) ->  | AG91: =T91-HLOOKUP(X91,#REF!,9,FALSE) -> 
A92: H | B92: ZCO | C92: CEN | D92: 29 | E92: 386546 | F92: CLAVIER | G92: Mathéo | H92: 2002 | I92: 47.4 | J92: CHM CHATEAUROUX | K92: F | L92: 11 | M92: -12 | N92: 12 | O92: 23 | P92: 14 | Q92: 15 | R92: 16 | S92: 31 | T92: 54 | U92: 96.97215304 | V92: 6.6 | X92: =IF(A92="F",(IF(OR(H92>2001,H92<2004),VLOOKUP(I92,Feuil1!$G$11:$H$25,2))),IF(A92="H",(IF(OR(H92>2001,H92<2004),VLOOKUP(I92,Feuil1!$A$11:$F$29,2))))) -> M50 | Z92: =T92-HLOOKUP(X92,#REF!,2,FALSE) ->  | AA92: =T92-HLOOKUP(X92,#REF!,3,FALSE) ->  | AB92: =T92-HLOOKUP(X92,#REF!,4,FALSE) ->  | AC92: =T92-HLOOKUP(X92,#REF!,5,FALSE) ->  | AD92: =T92-HLOOKUP(X92,#REF!,6,FALSE) ->  | AE92: =T92-HLOOKUP(X92,#REF!,7,FALSE) ->  | AF92: =T92-HLOOKUP(X92,#REF!,8,FALSE) ->  | AG92: =T92-HLOOKUP(X92,#REF!,9,FALSE) -> 
A93: H | B93: ZCO | C93: BRE | D93: 30 | E93: 378685 | F93: AUTRET | G93: Ian | H93: 2003 | I93: 45.4 | J93: CHM Plouhinec | K93: F | L93: 12 | M93: 13 | N93: 14 | O93: 27 | P93: 11 | Q93: 12 | R93: 13 | S93: 25 | T93: 52 | U93: 97.13218707 | V93: 6.6 | X93: =IF(A93="F",(IF(OR(H93>2001,H93<2004),VLOOKUP(I93,Feuil1!$G$11:$H$25,2))),IF(A93="H",(IF(OR(H93>2001,H93<2004),VLOOKUP(I93,Feuil1!$A$11:$F$29,2))))) -> M50 | Z93: =T93-HLOOKUP(X93,#REF!,2,FALSE) ->  | AA93: =T93-HLOOKUP(X93,#REF!,3,FALSE) ->  | AB93: =T93-HLOOKUP(X93,#REF!,4,FALSE) ->  | AC93: =T93-HLOOKUP(X93,#REF!,5,FALSE) ->  | AD93: =T93-HLOOKUP(X93,#REF!,6,FALSE) ->  | AE93: =T93-HLOOKUP(X93,#REF!,7,FALSE) ->  | AF93: =T93-HLOOKUP(X93,#REF!,8,FALSE) ->  | AG93: =T93-HLOOKUP(X93,#REF!,9,FALSE) -> 
AB94: =T94-HLOOKUP(X94,[1]Feuil1!$C$1:$BL$10,2,FALSE) ->  | AC94: =T94-HLOOKUP(X94,[1]Feuil1!$C$1:$BL$10,3,FALSE) ->  | AD94: =T94-HLOOKUP(X94,[1]Feuil1!$C$1:$BL$10,4,FALSE) ->  | AE94: =T94-HLOOKUP(X94,[1]Feuil1!$C$1:$BL$10,5,FALSE) ->  | AF94: =T94-HLOOKUP(X94,[1]Feuil1!$C$1:$BL$10,6,FALSE) ->  | AG94: =T94-HLOOKUP(X94,[1]Feuil1!$C$1:$BL$10,7,FALSE) ->  | AH94: =T94-HLOOKUP(X94,[1]Feuil1!$C$1:$BL$10,8,FALSE) ->  | AI94: =T94-HLOOKUP(X94,[1]Feuil1!$C$1:$BL$10,9,FALSE) ->  | AJ94: =T94-HLOOKUP(X94,[1]Feuil1!$C$1:$BL$10,10,FALSE) ->  | AQ94: =IF(AJ94>=0,$AJ$4,IF(AI94>=0,$AI$4,IF(AH94>=0,$AH$4,IF(AG94>=0,$AG$4,IF(AF94>=0,$AF$4,IF(AE94>=0,$AE$4,IF(AD94>=0,$AD$4,IF(AC94>=0,$AC$4,$AB$4)))))))) -> 
A95: H | B95: NE | C95: ALS | D95: 1 | E95: 324091 | F95: SPAGNULO | G95: GIACOMO | H95: 2002 | I95: 56 | J95: SHC Haguenau | K95: F | L95: 53 | M95: 55 | N95: -57 | O95: =IF(MAXA(L95+M95,M95+N95,L95+N95,L95,M95,N95)<=0,0,MAXA(L95+M95,M95+N95,L95+N95,L95,M95,N95)) -> 108 | P95: 66 | Q95: 67 | R95: 68 | S95: =IF(MAXA(P95+Q95,Q95+R95,P95+R95,P95,Q95,R95)<=0,0,MAXA(P95+Q95,Q95+R95,P95+R95,P95,Q95,R95)) -> 135 | T95: =IF(H95="","",IF(OR(O95=0,S95=0),0,O95+S95)) -> 243 | U95: =IF(I95="","",IF(A95="H",10^(0.794358141*LOG(I95/174.393)^2)*T95,IF(A95="F",10^(0.89726074 * LOG(I95/148.026)^2)*T95,""))) -> 379.2638232 | V95: =SUM(T95-I95) -> 187 | X95: =IF(A95="F",(IF(OR(H95>2001,H95<2004),VLOOKUP(I95,Feuil1!$G$11:$H$25,2))),IF(A95="H",(IF(OR(H95>2001,H95<2004),VLOOKUP(I95,Feuil1!$A$11:$F$29,2))))) -> M56 | Z95: =T95-HLOOKUP(X95,#REF!,2,FALSE) ->  | AA95: =T95-HLOOKUP(X95,#REF!,3,FALSE) ->  | AB95: =T95-HLOOKUP(X95,#REF!,4,FALSE) ->  | AC95: =T95-HLOOKUP(X95,#REF!,5,FALSE) ->  | AD95: =T95-HLOOKUP(X95,#REF!,6,FALSE) ->  | AE95: =T95-HLOOKUP(X95,#REF!,7,FALSE) ->  | AF95: =T95-HLOOKUP(X95,#REF!,8,FALSE) ->  | AG95: =T95-HLOOKUP(X95,#REF!,9,FALSE) ->  | AO95: =IF(AG95>=0,$AG$4,IF(AF95>=0,$AF$4,IF(AE95>=0,$AE$4,IF(AD95>=0,$AD$4,IF(AC95>=0,$AC$4,IF(AB95>=0,$AB$4,IF(AA95>=0,$AA$4,IF(Z95>=0,$Z$4,$AH$4)))))))) -> 
A96: H | B96: SO | C96: MPY | D96: 2 | E96: 356782 | F96: CANCE | G96: Quentin | H96: 2002 | I96: 54 | J96: FIGEAC HC | K96: F | L96: 44 | M96: 46 | N96: 48 | O96: 94 | P96: 66 | Q96: 68 | R96: 70 | S96: 138 | T96: 232 | U96: 372.7352816 | V96: 178 | X96: =IF(A96="F",(IF(OR(H96>2001,H96<2004),VLOOKUP(I96,Feuil1!$G$11:$H$25,2))),IF(A96="H",(IF(OR(H96>2001,H96<2004),VLOOKUP(I96,Feuil1!$A$11:$F$29,2))))) -> M56 | Z96: =T96-HLOOKUP(X96,#REF!,2,FALSE) ->  | AA96: =T96-HLOOKUP(X96,#REF!,3,FALSE) ->  | AB96: =T96-HLOOKUP(X96,#REF!,4,FALSE) ->  | AC96: =T96-HLOOKUP(X96,#REF!,5,FALSE) ->  | AD96: =T96-HLOOKUP(X96,#REF!,6,FALSE) ->  | AE96: =T96-HLOOKUP(X96,#REF!,7,FALSE) ->  | AF96: =T96-HLOOKUP(X96,#REF!,8,FALSE) ->  | AG96: =T96-HLOOKUP(X96,#REF!,9,FALSE) -> 
A97: H | B97: DOM | C97: REU | D97: 3 | E97: 321684 | F97: ROUGET | G97: TIZZIANO | H97: 2002 | I97: 55.6 | J97: LES DEUX PTITS NANOS | K97: F | L97: 40 | M97: 42 | N97: 44 | O97: 86 | P97: 54 | Q97: 56 | R97: 58 | S97: 114 | T97: 200 | U97: 313.9156214 | V97: 144.4 | X97: =IF(A97="F",(IF(OR(H97>2001,H97<2004),VLOOKUP(I97,Feuil1!$G$11:$H$25,2))),IF(A97="H",(IF(OR(H97>2001,H97<2004),VLOOKUP(I97,Feuil1!$A$11:$F$29,2))))) -> M56 | Z97: =T97-HLOOKUP(X97,#REF!,2,FALSE) ->  | AA97: =T97-HLOOKUP(X97,#REF!,3,FALSE) ->  | AB97: =T97-HLOOKUP(X97,#REF!,4,FALSE) ->  | AC97: =T97-HLOOKUP(X97,#REF!,5,FALSE) ->  | AD97: =T97-HLOOKUP(X97,#REF!,6,FALSE) ->  | AE97: =T97-HLOOKUP(X97,#REF!,7,FALSE) ->  | AF97: =T97-HLOOKUP(X97,#REF!,8,FALSE) ->  | AG97: =T97-HLOOKUP(X97,#REF!,9,FALSE) -> 
A98: H | B98: NORD | C98: NPC | D98: 4 | E98: 359647 | F98: PARANTHOEN | G98: Jason | H98: 2002 | I98: 51.8 | J98: C.A.ROSENDAEL | K98: F | L98: 36 | M98: 38 | N98: 40 | O98: 78 | P98: 52 | Q98: 54 | R98: 56 | S98: 110 | T98: 188 | U98: 312.5654914 | V98: 136.2 | X98: =IF(A98="F",(IF(OR(H98>2001,H98<2004),VLOOKUP(I98,Feuil1!$G$11:$H$25,2))),IF(A98="H",(IF(OR(H98>2001,H98<2004),VLOOKUP(I98,Feuil1!$A$11:$F$29,2))))) -> M56 | Z98: =T98-HLOOKUP(X98,#REF!,2,FALSE) ->  | AA98: =T98-HLOOKUP(X98,#REF!,3,FALSE) ->  | AB98: =T98-HLOOKUP(X98,#REF!,4,FALSE) ->  | AC98: =T98-HLOOKUP(X98,#REF!,5,FALSE) ->  | AD98: =T98-HLOOKUP(X98,#REF!,6,FALSE) ->  | AE98: =T98-HLOOKUP(X98,#REF!,7,FALSE) ->  | AF98: =T98-HLOOKUP(X98,#REF!,8,FALSE) ->  | AG98: =T98-HLOOKUP(X98,#REF!,9,FALSE) -> 
A99: H | B99: SEST | C99: PRO | D99: 5 | E99: 364002 | F99: CHOMIENNE | G99: Tristan | H99: 2002 | I99: 55.95 | J99: ISTRES SPORTS | K99: F | L99: 37 | M99: 39 | N99: -41 | O99: 76 | P99: -42 | Q99: 42 | R99: 44 | S99: 86 | T99: 162 | U99: 253.0196993 | V99: 106.05 | X99: =IF(A99="F",(IF(OR(H99>2001,H99<2004),VLOOKUP(I99,Feuil1!$G$11:$H$25,2))),IF(A99="H",(IF(OR(H99>2001,H99<2004),VLOOKUP(I99,Feuil1!$A$11:$F$29,2))))) -> M56 | Z99: =T99-HLOOKUP(X99,#REF!,2,FALSE) ->  | AA99: =T99-HLOOKUP(X99,#REF!,3,FALSE) ->  | AB99: =T99-HLOOKUP(X99,#REF!,4,FALSE) ->  | AC99: =T99-HLOOKUP(X99,#REF!,5,FALSE) ->  | AD99: =T99-HLOOKUP(X99,#REF!,6,FALSE) ->  | AE99: =T99-HLOOKUP(X99,#REF!,7,FALSE) ->  | AF99: =T99-HLOOKUP(X99,#REF!,8,FALSE) ->  | AG99: =T99-HLOOKUP(X99,#REF!,9,FALSE) -> 
A100: H | B100: SO | C100: MPY | D100: 6 | E100: 326262 | F100: HAVET | G100: Bastien | H100: 2002 | I100: 51.5 | J100: FIGEAC HC | K100: F | L100: 30 | M100: 32 | N100: 34 | O100: 66 | P100: 42 | Q100: 44 | R100: 46 | S100: 90 | T100: 156 | U100: 260.6307347 | V100: 104.5 | X100: =IF(A100="F",(IF(OR(H100>2001,H100<2004),VLOOKUP(I100,Feuil1!$G$11:$H$25,2))),IF(A100="H",(IF(OR(H100>2001,H100<2004),VLOOKUP(I100,Feuil1!$A$11:$F$29,2))))) -> M56 | Z100: =T100-HLOOKUP(X100,#REF!,2,FALSE) ->  | AA100: =T100-HLOOKUP(X100,#REF!,3,FALSE) ->  | AB100: =T100-HLOOKUP(X100,#REF!,4,FALSE) ->  | AC100: =T100-HLOOKUP(X100,#REF!,5,FALSE) ->  | AD100: =T100-HLOOKUP(X100,#REF!,6,FALSE) ->  | AE100: =T100-HLOOKUP(X100,#REF!,7,FALSE) ->  | AF100: =T100-HLOOKUP(X100,#REF!,8,FALSE) ->  | AG100: =T100-HLOOKUP(X100,#REF!,9,FALSE) -> 
A101: H | B101: NE | C101: ALS | D101: 7 | E101: 375708 | F101: DELUCCHI | G101: MATTEO | H101: 2002 | I101: 55.1 | J101: SHC Haguenau | K101: F | L101: 30 | M101: 32 | N101: 34 | O101: 66 | P101: 37 | Q101: 39 | R101: 41 | S101: 80 | T101: 146 | U101: 230.8034704 | V101: 90.9 | X101: =IF(A101="F",(IF(OR(H101>2001,H101<2004),VLOOKUP(I101,Feuil1!$G$11:$H$25,2))),IF(A101="H",(IF(OR(H101>2001,H101<2004),VLOOKUP(I101,Feuil1!$A$11:$F$29,2))))) -> M56 | Z101: =T101-HLOOKUP(X101,#REF!,2,FALSE) ->  | AA101: =T101-HLOOKUP(X101,#REF!,3,FALSE) ->  | AB101: =T101-HLOOKUP(X101,#REF!,4,FALSE) ->  | AC101: =T101-HLOOKUP(X101,#REF!,5,FALSE) ->  | AD101: =T101-HLOOKUP(X101,#REF!,6,FALSE) ->  | AE101: =T101-HLOOKUP(X101,#REF!,7,FALSE) ->  | AF101: =T101-HLOOKUP(X101,#REF!,8,FALSE) ->  | AG101: =T101-HLOOKUP(X101,#REF!,9,FALSE) -> 
A102: H | B102: SEST | C102: LAN | D102: 8 | E102: 306124 | F102: MARTINEZ | G102: Léo | H102: 2003 | I102: 52.9 | J102: Clermont Sports | K102: F | L102: 26 | M102: 28 | N102: 30 | O102: 58 | P102: 40 | Q102: -42 | R102: 42 | S102: 82 | T102: 140 | U102: 228.7356088 | V102: 87.1 | X102: =IF(A102="F",(IF(OR(H102>2001,H102<2004),VLOOKUP(I102,Feuil1!$G$11:$H$25,2))),IF(A102="H",(IF(OR(H102>2001,H102<2004),VLOOKUP(I102,Feuil1!$A$11:$F$29,2))))) -> M56 | Z102: =T102-HLOOKUP(X102,#REF!,2,FALSE) ->  | AA102: =T102-HLOOKUP(X102,#REF!,3,FALSE) ->  | AB102: =T102-HLOOKUP(X102,#REF!,4,FALSE) ->  | AC102: =T102-HLOOKUP(X102,#REF!,5,FALSE) ->  | AD102: =T102-HLOOKUP(X102,#REF!,6,FALSE) ->  | AE102: =T102-HLOOKUP(X102,#REF!,7,FALSE) ->  | AF102: =T102-HLOOKUP(X102,#REF!,8,FALSE) ->  | AG102: =T102-HLOOKUP(X102,#REF!,9,FALSE) -> 
A103: H | B103: ZCO | C103: CEN | D103: 9 | E103: 346360 | F103: PINIAU | G103: Mathis | H103: 2002 | I103: 55.8 | J103: CM ORLEANS | K103: F | L103: 27 | M103: 29 | N103: 31 | O103: 60 | P103: 37 | Q103: 39 | R103: 41 | S103: 80 | T103: 140 | U103: 219.1204728 | V103: 84.2 | X103: =IF(A103="F",(IF(OR(H103>2001,H103<2004),VLOOKUP(I103,Feuil1!$G$11:$H$25,2))),IF(A103="H",(IF(OR(H103>2001,H103<2004),VLOOKUP(I103,Feuil1!$A$11:$F$29,2))))) -> M56 | Z103: =T103-HLOOKUP(X103,#REF!,2,FALSE) ->  | AA103: =T103-HLOOKUP(X103,#REF!,3,FALSE) ->  | AB103: =T103-HLOOKUP(X103,#REF!,4,FALSE) ->  | AC103: =T103-HLOOKUP(X103,#REF!,5,FALSE) ->  | AD103: =T103-HLOOKUP(X103,#REF!,6,FALSE) ->  | AE103: =T103-HLOOKUP(X103,#REF!,7,FALSE) ->  | AF103: =T103-HLOOKUP(X103,#REF!,8,FALSE) ->  | AG103: =T103-HLOOKUP(X103,#REF!,9,FALSE) -> 
A104: H | B104: SEST | C104: RAL | D104: 10 | E104: 378094 | F104: DENIS | G104: Thomas | H104: 2002 | I104: 53 | J104: CHAMBON FEUGEROLLES | K104: F | L104: 38 | M104: 40 | N104: 42 | O104: 82 | P104: 50 | Q104: -52 | R104: -52 | S104: 50 | T104: 132 | U104: 215.3302914 | V104: 79 | X104: =IF(A104="F",(IF(OR(H104>2001,H104<2004),VLOOKUP(I104,Feuil1!$G$11:$H$25,2))),IF(A104="H",(IF(OR(H104>2001,H104<2004),VLOOKUP(I104,Feuil1!$A$11:$F$29,2))))) -> M56 | Z104: =T104-HLOOKUP(X104,#REF!,2,FALSE) ->  | AA104: =T104-HLOOKUP(X104,#REF!,3,FALSE) ->  | AB104: =T104-HLOOKUP(X104,#REF!,4,FALSE) ->  | AC104: =T104-HLOOKUP(X104,#REF!,5,FALSE) ->  | AD104: =T104-HLOOKUP(X104,#REF!,6,FALSE) ->  | AE104: =T104-HLOOKUP(X104,#REF!,7,FALSE) ->  | AF104: =T104-HLOOKUP(X104,#REF!,8,FALSE) ->  | AG104: =T104-HLOOKUP(X104,#REF!,9,FALSE) -> 
A105: H | B105: SEST | C105: CAZ | D105: 11 | E105: 391430 | F105: PARISOT | G105: Lucas | H105: 2002 | I105: 56 | J105: ES VILLENEUVE LOUBET | K105: F | L105: 24 | M105: 26 | N105: 28 | O105: 54 | P105: 36 | Q105: 38 | R105: 40 | S105: 78 | T105: 132 | U105: 206.0198546 | V105: 76 | X105: =IF(A105="F",(IF(OR(H105>2001,H105<2004),VLOOKUP(I105,Feuil1!$G$11:$H$25,2))),IF(A105="H",(IF(OR(H105>2001,H105<2004),VLOOKUP(I105,Feuil1!$A$11:$F$29,2))))) -> M56 | Z105: =T105-HLOOKUP(X105,#REF!,2,FALSE) ->  | AA105: =T105-HLOOKUP(X105,#REF!,3,FALSE) ->  | AB105: =T105-HLOOKUP(X105,#REF!,4,FALSE) ->  | AC105: =T105-HLOOKUP(X105,#REF!,5,FALSE) ->  | AD105: =T105-HLOOKUP(X105,#REF!,6,FALSE) ->  | AE105: =T105-HLOOKUP(X105,#REF!,7,FALSE) ->  | AF105: =T105-HLOOKUP(X105,#REF!,8,FALSE) ->  | AG105: =T105-HLOOKUP(X105,#REF!,9,FALSE) -> 
A106: H | B106: SEST | C106: LAN | D106: 12 | E106: 374525 | F106: DELLACHI | G106: Yann | H106: 2002 | I106: 56 | J106: HC Grand Combe | K106: F | L106: 28 | M106: 30 | N106: 32 | O106: 62 | P106: 32 | Q106: 34 | R106: 36 | S106: 70 | T106: 132 | U106: 206.0198546 | V106: 76 | X106: =IF(A106="F",(IF(OR(H106>2001,H106<2004),VLOOKUP(I106,Feuil1!$G$11:$H$25,2))),IF(A106="H",(IF(OR(H106>2001,H106<2004),VLOOKUP(I106,Feuil1!$A$11:$F$29,2))))) -> M56 | Z106: =T106-HLOOKUP(X106,#REF!,2,FALSE) ->  | AA106: =T106-HLOOKUP(X106,#REF!,3,FALSE) ->  | AB106: =T106-HLOOKUP(X106,#REF!,4,FALSE) ->  | AC106: =T106-HLOOKUP(X106,#REF!,5,FALSE) ->  | AD106: =T106-HLOOKUP(X106,#REF!,6,FALSE) ->  | AE106: =T106-HLOOKUP(X106,#REF!,7,FALSE) ->  | AF106: =T106-HLOOKUP(X106,#REF!,8,FALSE) ->  | AG106: =T106-HLOOKUP(X106,#REF!,9,FALSE) -> 
A107: H | B107: NE | C107: ALS | D107: 13 | E107: 378213 | F107: LAPP | G107: EWANN | H107: 2003 | I107: 55.6 | J107: CHM Andlau | K107: F | L107: 28 | M107: -30 | N107: 30 | O107: 58 | P107: 32 | Q107: 34 | R107: 36 | S107: 70 | T107: 128 | U107: 200.9059977 | V107: 72.4 | X107: =IF(A107="F",(IF(OR(H107>2001,H107<2004),VLOOKUP(I107,Feuil1!$G$11:$H$25,2))),IF(A107="H",(IF(OR(H107>2001,H107<2004),VLOOKUP(I107,Feuil1!$A$11:$F$29,2))))) -> M56 | Z107: =T107-HLOOKUP(X107,#REF!,2,FALSE) ->  | AA107: =T107-HLOOKUP(X107,#REF!,3,FALSE) ->  | AB107: =T107-HLOOKUP(X107,#REF!,4,FALSE) ->  | AC107: =T107-HLOOKUP(X107,#REF!,5,FALSE) ->  | AD107: =T107-HLOOKUP(X107,#REF!,6,FALSE) ->  | AE107: =T107-HLOOKUP(X107,#REF!,7,FALSE) ->  | AF107: =T107-HLOOKUP(X107,#REF!,8,FALSE) ->  | AG107: =T107-HLOOKUP(X107,#REF!,9,FALSE) -> 
A108: H | B108: NORD | C108: PIC | D108: 14 | E108: 364932 | F108: VICART | G108: Mathéo | H108: 2002 | I108: 52.03 | J108: Saleux CHM | K108: F | L108: 25 | M108: 27 | N108: 29 | O108: 56 | P108: 32 | Q108: 34 | R108: 36 | S108: 70 | T108: 126 | U108: 208.710897 | V108: 73.97 | X108: =IF(A108="F",(IF(OR(H108>2001,H108<2004),VLOOKUP(I108,Feuil1!$G$11:$H$25,2))),IF(A108="H",(IF(OR(H108>2001,H108<2004),VLOOKUP(I108,Feuil1!$A$11:$F$29,2))))) -> M56 | Z108: =T108-HLOOKUP(X108,#REF!,2,FALSE) ->  | AA108: =T108-HLOOKUP(X108,#REF!,3,FALSE) ->  | AB108: =T108-HLOOKUP(X108,#REF!,4,FALSE) ->  | AC108: =T108-HLOOKUP(X108,#REF!,5,FALSE) ->  | AD108: =T108-HLOOKUP(X108,#REF!,6,FALSE) ->  | AE108: =T108-HLOOKUP(X108,#REF!,7,FALSE) ->  | AF108: =T108-HLOOKUP(X108,#REF!,8,FALSE) ->  | AG108: =T108-HLOOKUP(X108,#REF!,9,FALSE) -> 
A109: H | B109: NE | C109: LOR | D109: 15 | E109: 378967 | F109: MARROCCO | G109: Nathan | H109: 2003 | I109: 51.47 | J109: H.VALLEROY-AUBOUÉ | K109: F | L109: 26 | M109: 28 | N109: 29 | O109: 57 | P109: 33 | Q109: 35 | R109: -37 | S109: 68 | T109: 125 | U109: 208.9411902 | V109: 73.53 | X109: =IF(A109="F",(IF(OR(H109>2001,H109<2004),VLOOKUP(I109,Feuil1!$G$11:$H$25,2))),IF(A109="H",(IF(OR(H109>2001,H109<2004),VLOOKUP(I109,Feuil1!$A$11:$F$29,2))))) -> M56 | Z109: =T109-HLOOKUP(X109,#REF!,2,FALSE) ->  | AA109: =T109-HLOOKUP(X109,#REF!,3,FALSE) ->  | AB109: =T109-HLOOKUP(X109,#REF!,4,FALSE) ->  | AC109: =T109-HLOOKUP(X109,#REF!,5,FALSE) ->  | AD109: =T109-HLOOKUP(X109,#REF!,6,FALSE) ->  | AE109: =T109-HLOOKUP(X109,#REF!,7,FALSE) ->  | AF109: =T109-HLOOKUP(X109,#REF!,8,FALSE) ->  | AG109: =T109-HLOOKUP(X109,#REF!,9,FALSE) -> 
A110: H | B110: SEST | C110: RAL | D110: 16 | E110: 377320 | F110: SERRANO | G110: Dimitri | H110: 2002 | I110: 51.5 | J110: CHAMBON FEUGEROLLES | K110: F | L110: 25 | M110: 27 | N110: 28 | O110: 55 | P110: 31 | Q110: 33 | R110: 35 | S110: 68 | T110: 123 | U110: 205.4973101 | V110: 71.5 | X110: =IF(A110="F",(IF(OR(H110>2001,H110<2004),VLOOKUP(I110,Feuil1!$G$11:$H$25,2))),IF(A110="H",(IF(OR(H110>2001,H110<2004),VLOOKUP(I110,Feuil1!$A$11:$F$29,2))))) -> M56 | Z110: =T110-HLOOKUP(X110,#REF!,2,FALSE) ->  | AA110: =T110-HLOOKUP(X110,#REF!,3,FALSE) ->  | AB110: =T110-HLOOKUP(X110,#REF!,4,FALSE) ->  | AC110: =T110-HLOOKUP(X110,#REF!,5,FALSE) ->  | AD110: =T110-HLOOKUP(X110,#REF!,6,FALSE) ->  | AE110: =T110-HLOOKUP(X110,#REF!,7,FALSE) ->  | AF110: =T110-HLOOKUP(X110,#REF!,8,FALSE) ->  | AG110: =T110-HLOOKUP(X110,#REF!,9,FALSE) -> 
A111: H | B111: N | C111: IDF | D111: 17 | E111: 380705 | F111: BEKKOUCH | G111: ILIES | H111: 2002 | I111: 54.3 | J111: CACHAN | K111: F | L111: 22 | M111: 24 | N111: 26 | O111: 50 | P111: 33 | Q111: 35 | R111: 37 | S111: 72 | T111: 122 | U111: 195.1330112 | V111: 67.7 | X111: =IF(A111="F",(IF(OR(H111>2001,H111<2004),VLOOKUP(I111,Feuil1!$G$11:$H$25,2))),IF(A111="H",(IF(OR(H111>2001,H111<2004),VLOOKUP(I111,Feuil1!$A$11:$F$29,2))))) -> M56 | Z111: =T111-HLOOKUP(X111,#REF!,2,FALSE) ->  | AA111: =T111-HLOOKUP(X111,#REF!,3,FALSE) ->  | AB111: =T111-HLOOKUP(X111,#REF!,4,FALSE) ->  | AC111: =T111-HLOOKUP(X111,#REF!,5,FALSE) ->  | AD111: =T111-HLOOKUP(X111,#REF!,6,FALSE) ->  | AE111: =T111-HLOOKUP(X111,#REF!,7,FALSE) ->  | AF111: =T111-HLOOKUP(X111,#REF!,8,FALSE) ->  | AG111: =T111-HLOOKUP(X111,#REF!,9,FALSE) -> 
A112: H | B112: SEST | C112: LAN | D112: 18 | E112: 383010 | F112: GARIDEL | G112: Théo | H112: 2002 | I112: 55 | J112: HC Grand Combe | K112: F | L112: 24 | M112: 26 | N112: 28 | O112: 54 | P112: 32 | Q112: 34 | R112: -36 | S112: 66 | T112: 120 | U112: 189.975838 | V112: 65 | X112: =IF(A112="F",(IF(OR(H112>2001,H112<2004),VLOOKUP(I112,Feuil1!$G$11:$H$25,2))),IF(A112="H",(IF(OR(H112>2001,H112<2004),VLOOKUP(I112,Feuil1!$A$11:$F$29,2))))) -> M56 | Z112: =T112-HLOOKUP(X112,#REF!,2,FALSE) ->  | AA112: =T112-HLOOKUP(X112,#REF!,3,FALSE) ->  | AB112: =T112-HLOOKUP(X112,#REF!,4,FALSE) ->  | AC112: =T112-HLOOKUP(X112,#REF!,5,FALSE) ->  | AD112: =T112-HLOOKUP(X112,#REF!,6,FALSE) ->  | AE112: =T112-HLOOKUP(X112,#REF!,7,FALSE) ->  | AF112: =T112-HLOOKUP(X112,#REF!,8,FALSE) ->  | AG112: =T112-HLOOKUP(X112,#REF!,9,FALSE) -> 
A113: H | B113: ZCO | C113: BRE | D113: 19 | E113: 327176 | F113: FETIVEAU | G113: Brian | H113: 2003 | I113: 50.4 | J113: ES Saint-Avé | K113: F | L113: 26 | M113: 28 | N113: -30 | O113: 54 | P113: 28 | Q113: 30 | R113: -32 | S113: 58 | T113: 112 | U113: 190.581223 | V113: 61.6 | X113: =IF(A113="F",(IF(OR(H113>2001,H113<2004),VLOOKUP(I113,Feuil1!$G$11:$H$25,2))),IF(A113="H",(IF(OR(H113>2001,H113<2004),VLOOKUP(I113,Feuil1!$A$11:$F$29,2))))) -> M56 | Z113: =T113-HLOOKUP(X113,#REF!,2,FALSE) ->  | AA113: =T113-HLOOKUP(X113,#REF!,3,FALSE) ->  | AB113: =T113-HLOOKUP(X113,#REF!,4,FALSE) ->  | AC113: =T113-HLOOKUP(X113,#REF!,5,FALSE) ->  | AD113: =T113-HLOOKUP(X113,#REF!,6,FALSE) ->  | AE113: =T113-HLOOKUP(X113,#REF!,7,FALSE) ->  | AF113: =T113-HLOOKUP(X113,#REF!,8,FALSE) ->  | AG113: =T113-HLOOKUP(X113,#REF!,9,FALSE) -> 
A114: H | B114: SEST | C114: CAZ | D114: 20 | E114: 378543 | F114: GATEAU | G114: Raphael | H114: 2002 | I114: 53.35 | J114: ASPTT DRAGUIGNAN | K114: F | L114: 18 | M114: 20 | N114: 22 | O114: 42 | P114: 25 | Q114: -27 | R114: 27 | S114: 52 | T114: 94 | U114: 152.516374 | V114: 40.65 | X114: =IF(A114="F",(IF(OR(H114>2001,H114<2004),VLOOKUP(I114,Feuil1!$G$11:$H$25,2))),IF(A114="H",(IF(OR(H114>2001,H114<2004),VLOOKUP(I114,Feuil1!$A$11:$F$29,2))))) -> M56 | Z114: =T114-HLOOKUP(X114,#REF!,2,FALSE) ->  | AA114: =T114-HLOOKUP(X114,#REF!,3,FALSE) ->  | AB114: =T114-HLOOKUP(X114,#REF!,4,FALSE) ->  | AC114: =T114-HLOOKUP(X114,#REF!,5,FALSE) ->  | AD114: =T114-HLOOKUP(X114,#REF!,6,FALSE) ->  | AE114: =T114-HLOOKUP(X114,#REF!,7,FALSE) ->  | AF114: =T114-HLOOKUP(X114,#REF!,8,FALSE) ->  | AG114: =T114-HLOOKUP(X114,#REF!,9,FALSE) -> 
A115: H | B115: N | C115: IDF | D115: 21 | E115: 386891 | F115: PHILIBERT | G115: MAEDÏN | H115: 2002 | I115: 55.9 | J115: FRANCONVILLE | K115: F | L115: 15 | M115: 17 | N115: 19 | O115: 36 | P115: 21 | Q115: 23 | R115: 25 | S115: 48 | T115: 84 | U115: 131.2874744 | V115: 28.1 | X115: =IF(A115="F",(IF(OR(H115>2001,H115<2004),VLOOKUP(I115,Feuil1!$G$11:$H$25,2))),IF(A115="H",(IF(OR(H115>2001,H115<2004),VLOOKUP(I115,Feuil1!$A$11:$F$29,2))))) -> M56 | Z115: =T115-HLOOKUP(X115,#REF!,2,FALSE) ->  | AA115: =T115-HLOOKUP(X115,#REF!,3,FALSE) ->  | AB115: =T115-HLOOKUP(X115,#REF!,4,FALSE) ->  | AC115: =T115-HLOOKUP(X115,#REF!,5,FALSE) ->  | AD115: =T115-HLOOKUP(X115,#REF!,6,FALSE) ->  | AE115: =T115-HLOOKUP(X115,#REF!,7,FALSE) ->  | AF115: =T115-HLOOKUP(X115,#REF!,8,FALSE) ->  | AG115: =T115-HLOOKUP(X115,#REF!,9,FALSE) -> 
A116: H | B116: ZCO | C116: CEN | D116: 22 | E116: 381199 | F116: AUBRY | G116: Tanguy | H116: 2003 | I116: 53.7 | J116: AAJ BLOIS | K116: F | L116: 15 | M116: 17 | N116: 19 | O116: 36 | P116: 20 | Q116: 22 | R116: 24 | S116: 46 | T116: 82 | U116: 132.3390658 | V116: 28.3 | X116: =IF(A116="F",(IF(OR(H116>2001,H116<2004),VLOOKUP(I116,Feuil1!$G$11:$H$25,2))),IF(A116="H",(IF(OR(H116>2001,H116<2004),VLOOKUP(I116,Feuil1!$A$11:$F$29,2))))) -> M56 | Z116: =T116-HLOOKUP(X116,#REF!,2,FALSE) ->  | AA116: =T116-HLOOKUP(X116,#REF!,3,FALSE) ->  | AB116: =T116-HLOOKUP(X116,#REF!,4,FALSE) ->  | AC116: =T116-HLOOKUP(X116,#REF!,5,FALSE) ->  | AD116: =T116-HLOOKUP(X116,#REF!,6,FALSE) ->  | AE116: =T116-HLOOKUP(X116,#REF!,7,FALSE) ->  | AF116: =T116-HLOOKUP(X116,#REF!,8,FALSE) ->  | AG116: =T116-HLOOKUP(X116,#REF!,9,FALSE) -> 
A117: H | B117: CO | C117: HNO | D117: 23 | E117: 375036 | F117: DUBUISSON | G117: Florian | H117: 2002 | I117: 53.8 | J117: CHM Le Trait | K117: F | L117: 12 | M117: 14 | N117: 16 | O117: 30 | P117: 20 | Q117: 22 | R117: 24 | S117: 46 | T117: 76 | U117: 122.4705469 | V117: 22.2 | X117: =IF(A117="F",(IF(OR(H117>2001,H117<2004),VLOOKUP(I117,Feuil1!$G$11:$H$25,2))),IF(A117="H",(IF(OR(H117>2001,H117<2004),VLOOKUP(I117,Feuil1!$A$11:$F$29,2))))) -> M56 | Z117: =T117-HLOOKUP(X117,#REF!,2,FALSE) ->  | AA117: =T117-HLOOKUP(X117,#REF!,3,FALSE) ->  | AB117: =T117-HLOOKUP(X117,#REF!,4,FALSE) ->  | AC117: =T117-HLOOKUP(X117,#REF!,5,FALSE) ->  | AD117: =T117-HLOOKUP(X117,#REF!,6,FALSE) ->  | AE117: =T117-HLOOKUP(X117,#REF!,7,FALSE) ->  | AF117: =T117-HLOOKUP(X117,#REF!,8,FALSE) ->  | AG117: =T117-HLOOKUP(X117,#REF!,9,FALSE) -> 
A118: H | B118: SEST | C118: CAZ | D118: 24 | E118: 391431 | F118: TURKY | G118: Skander | H118: 2002 | I118: 54.4 | J118: ES VILLENEUVE LOUBET | K118: F | L118: 14 | M118: 16 | N118: 17 | O118: 33 | P118: 20 | Q118: 22 | R118: -24 | S118: 42 | T118: 75 | U118: 119.781403 | V118: 20.6 | X118: =IF(A118="F",(IF(OR(H118>2001,H118<2004),VLOOKUP(I118,Feuil1!$G$11:$H$25,2))),IF(A118="H",(IF(OR(H118>2001,H118<2004),VLOOKUP(I118,Feuil1!$A$11:$F$29,2))))) -> M56 | Z118: =T118-HLOOKUP(X118,#REF!,2,FALSE) ->  | AA118: =T118-HLOOKUP(X118,#REF!,3,FALSE) ->  | AB118: =T118-HLOOKUP(X118,#REF!,4,FALSE) ->  | AC118: =T118-HLOOKUP(X118,#REF!,5,FALSE) ->  | AD118: =T118-HLOOKUP(X118,#REF!,6,FALSE) ->  | AE118: =T118-HLOOKUP(X118,#REF!,7,FALSE) ->  | AF118: =T118-HLOOKUP(X118,#REF!,8,FALSE) ->  | AG118: =T118-HLOOKUP(X118,#REF!,9,FALSE) -> 
A119: H | B119: N | C119: IDF | D119: 25 | E119: 377315 | F119: CAGNY | G119: RAFAEL | H119: 2003 | I119: 50.7 | J119: FRANCONVILLE | K119: F | L119: 21 | M119: -23 | N119: -23 | O119: 21 | P119: 20 | Q119: 22 | R119: 23 | S119: 45 | T119: 66 | U119: 111.7387484 | V119: 15.3 | X119: =IF(A119="F",(IF(OR(H119>2001,H119<2004),VLOOKUP(I119,Feuil1!$G$11:$H$25,2))),IF(A119="H",(IF(OR(H119>2001,H119<2004),VLOOKUP(I119,Feuil1!$A$11:$F$29,2))))) -> M56 | Z119: =T119-HLOOKUP(X119,#REF!,2,FALSE) ->  | AA119: =T119-HLOOKUP(X119,#REF!,3,FALSE) ->  | AB119: =T119-HLOOKUP(X119,#REF!,4,FALSE) ->  | AC119: =T119-HLOOKUP(X119,#REF!,5,FALSE) ->  | AD119: =T119-HLOOKUP(X119,#REF!,6,FALSE) ->  | AE119: =T119-HLOOKUP(X119,#REF!,7,FALSE) ->  | AF119: =T119-HLOOKUP(X119,#REF!,8,FALSE) ->  | AG119: =T119-HLOOKUP(X119,#REF!,9,FALSE) -> 
AB120: =T120-HLOOKUP(X120,[1]Feuil1!$C$1:$BL$10,2,FALSE) ->  | AC120: =T120-HLOOKUP(X120,[1]Feuil1!$C$1:$BL$10,3,FALSE) ->  | AD120: =T120-HLOOKUP(X120,[1]Feuil1!$C$1:$BL$10,4,FALSE) ->  | AE120: =T120-HLOOKUP(X120,[1]Feuil1!$C$1:$BL$10,5,FALSE) ->  | AF120: =T120-HLOOKUP(X120,[1]Feuil1!$C$1:$BL$10,6,FALSE) ->  | AG120: =T120-HLOOKUP(X120,[1]Feuil1!$C$1:$BL$10,7,FALSE) ->  | AH120: =T120-HLOOKUP(X120,[1]Feuil1!$C$1:$BL$10,8,FALSE) ->  | AI120: =T120-HLOOKUP(X120,[1]Feuil1!$C$1:$BL$10,9,FALSE) ->  | AJ120: =T120-HLOOKUP(X120,[1]Feuil1!$C$1:$BL$10,10,FALSE) ->  | AQ120: =IF(AJ120>=0,$AJ$4,IF(AI120>=0,$AI$4,IF(AH120>=0,$AH$4,IF(AG120>=0,$AG$4,IF(AF120>=0,$AF$4,IF(AE120>=0,$AE$4,IF(AD120>=0,$AD$4,IF(AC120>=0,$AC$4,$AB$4)))))))) -> 
A121: H | B121: NE | C121: BOU | D121: 1 | E121: 363266 | F121: GRAILLOT | G121: Jessy | H121: 2003 | I121: 60.28 | J121: HMDB21 | K121: F | L121: 39 | M121: 41 | N121: 43 | O121: =IF(MAXA(L121+M121,M121+N121,L121+N121,L121,M121,N121)<=0,0,MAXA(L121+M121,M121+N121,L121+N121,L121,M121,N121)) -> 84 | P121: 49 | Q121: 51 | R121: 53 | S121: =IF(MAXA(P121+Q121,Q121+R121,P121+R121,P121,Q121,R121)<=0,0,MAXA(P121+Q121,Q121+R121,P121+R121,P121,Q121,R121)) -> 104 | T121: =IF(H121="","",IF(OR(O121=0,S121=0),0,O121+S121)) -> 188 | U121: =IF(I121="","",IF(A121="H",10^(0.794358141*LOG(I121/174.393)^2)*T121,IF(A121="F",10^(0.89726074 * LOG(I121/148.026)^2)*T121,""))) -> 277.4829656 | V121: =SUM(T121-I121) -> 127.72 | X121: =IF(A121="F",(IF(OR(H121>2001,H121<2004),VLOOKUP(I121,Feuil1!$G$11:$H$25,2))),IF(A121="H",(IF(OR(H121>2001,H121<2004),VLOOKUP(I121,Feuil1!$A$11:$F$29,2))))) -> M62 | Z121: =T121-HLOOKUP(X121,#REF!,2,FALSE) ->  | AA121: =T121-HLOOKUP(X121,#REF!,3,FALSE) ->  | AB121: =T121-HLOOKUP(X121,#REF!,4,FALSE) ->  | AC121: =T121-HLOOKUP(X121,#REF!,5,FALSE) ->  | AD121: =T121-HLOOKUP(X121,#REF!,6,FALSE) ->  | AE121: =T121-HLOOKUP(X121,#REF!,7,FALSE) ->  | AF121: =T121-HLOOKUP(X121,#REF!,8,FALSE) ->  | AG121: =T121-HLOOKUP(X121,#REF!,9,FALSE) ->  | AO121: =IF(AG121>=0,$AG$4,IF(AF121>=0,$AF$4,IF(AE121>=0,$AE$4,IF(AD121>=0,$AD$4,IF(AC121>=0,$AC$4,IF(AB121>=0,$AB$4,IF(AA121>=0,$AA$4,IF(Z121>=0,$Z$4,$AH$4)))))))) -> 
A122: H | B122: ZCO | C122: BRE | D122: 2 | E122: 360832 | F122: BERTHE | G122: Thibaut | H122: 2002 | I122: 60.7 | J122: AL QUIMPER | K122: F | L122: 38 | M122: 39 | N122: 41 | O122: 80 | P122: 48 | Q122: 49 | R122: 51 | S122: 100 | T122: 180 | U122: 264.3309357 | V122: 119.3 | X122: =IF(A122="F",(IF(OR(H122>2001,H122<2004),VLOOKUP(I122,Feuil1!$G$11:$H$25,2))),IF(A122="H",(IF(OR(H122>2001,H122<2004),VLOOKUP(I122,Feuil1!$A$11:$F$29,2))))) -> M62 | Z122: =T122-HLOOKUP(X122,#REF!,2,FALSE) ->  | AA122: =T122-HLOOKUP(X122,#REF!,3,FALSE) ->  | AB122: =T122-HLOOKUP(X122,#REF!,4,FALSE) ->  | AC122: =T122-HLOOKUP(X122,#REF!,5,FALSE) ->  | AD122: =T122-HLOOKUP(X122,#REF!,6,FALSE) ->  | AE122: =T122-HLOOKUP(X122,#REF!,7,FALSE) ->  | AF122: =T122-HLOOKUP(X122,#REF!,8,FALSE) ->  | AG122: =T122-HLOOKUP(X122,#REF!,9,FALSE) -> 
A123: H | B123: NORD | C123: PIC | D123: 3 | E123: 376294 | F123: HULOT | G123: Charles | H123: 2002 | I123: 60.64 | J123: Roisel CHFM | K123: F | L123: 34 | M123: 36 | N123: 38 | O123: 74 | P123: 45 | Q123: 47 | R123: 49 | S123: 96 | T123: 170 | U123: 249.8258106 | V123: 109.36 | X123: =IF(A123="F",(IF(OR(H123>2001,H123<2004),VLOOKUP(I123,Feuil1!$G$11:$H$25,2))),IF(A123="H",(IF(OR(H123>2001,H123<2004),VLOOKUP(I123,Feuil1!$A$11:$F$29,2))))) -> M62 | Z123: =T123-HLOOKUP(X123,#REF!,2,FALSE) ->  | AA123: =T123-HLOOKUP(X123,#REF!,3,FALSE) ->  | AB123: =T123-HLOOKUP(X123,#REF!,4,FALSE) ->  | AC123: =T123-HLOOKUP(X123,#REF!,5,FALSE) ->  | AD123: =T123-HLOOKUP(X123,#REF!,6,FALSE) ->  | AE123: =T123-HLOOKUP(X123,#REF!,7,FALSE) ->  | AF123: =T123-HLOOKUP(X123,#REF!,8,FALSE) ->  | AG123: =T123-HLOOKUP(X123,#REF!,9,FALSE) -> 
A124: H | B124: ZCO | C124: CEN | D124: 4 | E124: 346360 | F124: PINIAU | G124: Mathis | H124: 2002 | I124: 59.69 | J124: CM ORLEANS | K124: F | L124: 32 | M124: 34 | N124: 36 | O124: 70 | P124: -44 | Q124: 44 | R124: 46 | S124: 90 | T124: 160 | U124: 237.8723317 | V124: 100.31 | X124: =IF(A124="F",(IF(OR(H124>2001,H124<2004),VLOOKUP(I124,Feuil1!$G$11:$H$25,2))),IF(A124="H",(IF(OR(H124>2001,H124<2004),VLOOKUP(I124,Feuil1!$A$11:$F$29,2))))) -> M62 | Z124: =T124-HLOOKUP(X124,#REF!,2,FALSE) ->  | AA124: =T124-HLOOKUP(X124,#REF!,3,FALSE) ->  | AB124: =T124-HLOOKUP(X124,#REF!,4,FALSE) ->  | AC124: =T124-HLOOKUP(X124,#REF!,5,FALSE) ->  | AD124: =T124-HLOOKUP(X124,#REF!,6,FALSE) ->  | AE124: =T124-HLOOKUP(X124,#REF!,7,FALSE) ->  | AF124: =T124-HLOOKUP(X124,#REF!,8,FALSE) ->  | AG124: =T124-HLOOKUP(X124,#REF!,9,FALSE) -> 
A125: H | B125: SEST | C125: LAN | D125: 5 | E125: 374525 | F125: DELLACHI | G125: Yann | H125: 2002 | I125: 60 | J125: HC Grand Combe | K125: F | L125: 33 | M125: 35 | N125: 37 | O125: 72 | P125: 39 | Q125: 41 | R125: 43 | S125: 84 | T125: 156 | U125: 231.0406359 | V125: 96 | X125: =IF(A125="F",(IF(OR(H125>2001,H125<2004),VLOOKUP(I125,Feuil1!$G$11:$H$25,2))),IF(A125="H",(IF(OR(H125>2001,H125<2004),VLOOKUP(I125,Feuil1!$A$11:$F$29,2))))) -> M62 | Z125: =T125-HLOOKUP(X125,#REF!,2,FALSE) ->  | AA125: =T125-HLOOKUP(X125,#REF!,3,FALSE) ->  | AB125: =T125-HLOOKUP(X125,#REF!,4,FALSE) ->  | AC125: =T125-HLOOKUP(X125,#REF!,5,FALSE) ->  | AD125: =T125-HLOOKUP(X125,#REF!,6,FALSE) ->  | AE125: =T125-HLOOKUP(X125,#REF!,7,FALSE) ->  | AF125: =T125-HLOOKUP(X125,#REF!,8,FALSE) ->  | AG125: =T125-HLOOKUP(X125,#REF!,9,FALSE) -> 
A126: H | B126: N | C126: IDF | D126: 6 | E126: 380705 | F126: BEKKOUCH | G126: ILIES | H126: 2002 | I126: 56.45 | J126: CACHAN | K126: F | L126: 28 | M126: 30 | N126: 32 | O126: 62 | P126: 38 | Q126: 40 | R126: 42 | S126: 82 | T126: 144 | U126: 223.3484189 | V126: 87.55 | X126: =IF(A126="F",(IF(OR(H126>2001,H126<2004),VLOOKUP(I126,Feuil1!$G$11:$H$25,2))),IF(A126="H",(IF(OR(H126>2001,H126<2004),VLOOKUP(I126,Feuil1!$A$11:$F$29,2))))) -> M62 | Z126: =T126-HLOOKUP(X126,#REF!,2,FALSE) ->  | AA126: =T126-HLOOKUP(X126,#REF!,3,FALSE) ->  | AB126: =T126-HLOOKUP(X126,#REF!,4,FALSE) ->  | AC126: =T126-HLOOKUP(X126,#REF!,5,FALSE) ->  | AD126: =T126-HLOOKUP(X126,#REF!,6,FALSE) ->  | AE126: =T126-HLOOKUP(X126,#REF!,7,FALSE) ->  | AF126: =T126-HLOOKUP(X126,#REF!,8,FALSE) ->  | AG126: =T126-HLOOKUP(X126,#REF!,9,FALSE) -> 
A127: H | B127: SEST | C127: CAZ | D127: 7 | E127: 392293 | F127: ABDOU LATIOFO | G127: Dayane | H127: 2002 | I127: 60.05 | J127: HC NICE | K127: F | L127: 30 | M127: -32 | N127: 32 | O127: 62 | P127: 36 | Q127: 38 | R127: -40 | S127: 74 | T127: 136 | U127: 201.296612 | V127: 75.95 | X127: =IF(A127="F",(IF(OR(H127>2001,H127<2004),VLOOKUP(I127,Feuil1!$G$11:$H$25,2))),IF(A127="H",(IF(OR(H127>2001,H127<2004),VLOOKUP(I127,Feuil1!$A$11:$F$29,2))))) -> M62 | Z127: =T127-HLOOKUP(X127,#REF!,2,FALSE) ->  | AA127: =T127-HLOOKUP(X127,#REF!,3,FALSE) ->  | AB127: =T127-HLOOKUP(X127,#REF!,4,FALSE) ->  | AC127: =T127-HLOOKUP(X127,#REF!,5,FALSE) ->  | AD127: =T127-HLOOKUP(X127,#REF!,6,FALSE) ->  | AE127: =T127-HLOOKUP(X127,#REF!,7,FALSE) ->  | AF127: =T127-HLOOKUP(X127,#REF!,8,FALSE) ->  | AG127: =T127-HLOOKUP(X127,#REF!,9,FALSE) -> 
A128: H | B128: SEST | C128: CAZ | D128: 8 | E128: 391430 | F128: PARISOT | G128: Lucas | H128: 2002 | I128: 56.1 | J128: ES VILLENEUVE LOUBET | K128: F | L128: 24 | M128: 26 | N128: 28 | O128: 54 | P128: -36 | Q128: 37 | R128: 39 | S128: 76 | T128: 130 | U128: 202.6150381 | V128: 73.9 | X128: =IF(A128="F",(IF(OR(H128>2001,H128<2004),VLOOKUP(I128,Feuil1!$G$11:$H$25,2))),IF(A128="H",(IF(OR(H128>2001,H128<2004),VLOOKUP(I128,Feuil1!$A$11:$F$29,2))))) -> M62 | Z128: =T128-HLOOKUP(X128,#REF!,2,FALSE) ->  | AA128: =T128-HLOOKUP(X128,#REF!,3,FALSE) ->  | AB128: =T128-HLOOKUP(X128,#REF!,4,FALSE) ->  | AC128: =T128-HLOOKUP(X128,#REF!,5,FALSE) ->  | AD128: =T128-HLOOKUP(X128,#REF!,6,FALSE) ->  | AE128: =T128-HLOOKUP(X128,#REF!,7,FALSE) ->  | AF128: =T128-HLOOKUP(X128,#REF!,8,FALSE) ->  | AG128: =T128-HLOOKUP(X128,#REF!,9,FALSE) -> 
A129: H | B129: ZCO | C129: BRE | D129: 9 | E129: 380250 | F129: RATON | G129: Killian | H129: 2002 | I129: 59.81 | J129: AL QUIMPER | K129: F | L129: 25 | M129: 26 | N129: 27 | O129: 53 | P129: 35 | Q129: 36 | R129: -38 | S129: 71 | T129: 124 | U129: 184.0776279 | V129: 64.19 | X129: =IF(A129="F",(IF(OR(H129>2001,H129<2004),VLOOKUP(I129,Feuil1!$G$11:$H$25,2))),IF(A129="H",(IF(OR(H129>2001,H129<2004),VLOOKUP(I129,Feuil1!$A$11:$F$29,2))))) -> M62 | Z129: =T129-HLOOKUP(X129,#REF!,2,FALSE) ->  | AA129: =T129-HLOOKUP(X129,#REF!,3,FALSE) ->  | AB129: =T129-HLOOKUP(X129,#REF!,4,FALSE) ->  | AC129: =T129-HLOOKUP(X129,#REF!,5,FALSE) ->  | AD129: =T129-HLOOKUP(X129,#REF!,6,FALSE) ->  | AE129: =T129-HLOOKUP(X129,#REF!,7,FALSE) ->  | AF129: =T129-HLOOKUP(X129,#REF!,8,FALSE) ->  | AG129: =T129-HLOOKUP(X129,#REF!,9,FALSE) -> 
A130: H | B130: ZCO | C130: CEN | D130: 10 | E130: 381199 | F130: AUBRY | G130: Tanguy | H130: 2003 | I130: 59.69 | J130: AAJ BLOIS | K130: F | L130: 23 | M130: 25 | N130: 26 | O130: 51 | P130: 33 | Q130: 35 | R130: 37 | S130: 72 | T130: 123 | U130: 182.864355 | V130: 63.31 | X130: =IF(A130="F",(IF(OR(H130>2001,H130<2004),VLOOKUP(I130,Feuil1!$G$11:$H$25,2))),IF(A130="H",(IF(OR(H130>2001,H130<2004),VLOOKUP(I130,Feuil1!$A$11:$F$29,2))))) -> M62 | Z130: =T130-HLOOKUP(X130,#REF!,2,FALSE) ->  | AA130: =T130-HLOOKUP(X130,#REF!,3,FALSE) ->  | AB130: =T130-HLOOKUP(X130,#REF!,4,FALSE) ->  | AC130: =T130-HLOOKUP(X130,#REF!,5,FALSE) ->  | AD130: =T130-HLOOKUP(X130,#REF!,6,FALSE) ->  | AE130: =T130-HLOOKUP(X130,#REF!,7,FALSE) ->  | AF130: =T130-HLOOKUP(X130,#REF!,8,FALSE) ->  | AG130: =T130-HLOOKUP(X130,#REF!,9,FALSE) -> 
A131: H | B131: DOM | C131: REU | D131: 11 | E131: 374356 | F131: BARDEUR | G131: JULIEN | H131: 2002 | I131: 56.23 | J131: CH TAMPON | K131: F | L131: 23 | M131: 25 | N131: 27 | O131: 52 | P131: 30 | Q131: 32 | R131: 34 | S131: 66 | T131: 118 | U131: 183.5796335 | V131: 61.77 | X131: =IF(A131="F",(IF(OR(H131>2001,H131<2004),VLOOKUP(I131,Feuil1!$G$11:$H$25,2))),IF(A131="H",(IF(OR(H131>2001,H131<2004),VLOOKUP(I131,Feuil1!$A$11:$F$29,2))))) -> M62 | Z131: =T131-HLOOKUP(X131,#REF!,2,FALSE) ->  | AA131: =T131-HLOOKUP(X131,#REF!,3,FALSE) ->  | AB131: =T131-HLOOKUP(X131,#REF!,4,FALSE) ->  | AC131: =T131-HLOOKUP(X131,#REF!,5,FALSE) ->  | AD131: =T131-HLOOKUP(X131,#REF!,6,FALSE) ->  | AE131: =T131-HLOOKUP(X131,#REF!,7,FALSE) ->  | AF131: =T131-HLOOKUP(X131,#REF!,8,FALSE) ->  | AG131: =T131-HLOOKUP(X131,#REF!,9,FALSE) -> 
A132: H | B132: SO | C132: MPY | D132: 12 | E132: 368450 | F132: DURETELLE DE ST SAUVEUR | G132: Valentin | H132: 2003 | I132: 60 | J132: ALBI HC | K132: F | L132: 20 | M132: 22 | N132: 24 | O132: 46 | P132: 32 | Q132: 34 | R132: 36 | S132: 70 | T132: 116 | U132: 171.7994472 | V132: 56 | X132: =IF(A132="F",(IF(OR(H132>2001,H132<2004),VLOOKUP(I132,Feuil1!$G$11:$H$25,2))),IF(A132="H",(IF(OR(H132>2001,H132<2004),VLOOKUP(I132,Feuil1!$A$11:$F$29,2))))) -> M62 | Z132: =T132-HLOOKUP(X132,#REF!,2,FALSE) ->  | AA132: =T132-HLOOKUP(X132,#REF!,3,FALSE) ->  | AB132: =T132-HLOOKUP(X132,#REF!,4,FALSE) ->  | AC132: =T132-HLOOKUP(X132,#REF!,5,FALSE) ->  | AD132: =T132-HLOOKUP(X132,#REF!,6,FALSE) ->  | AE132: =T132-HLOOKUP(X132,#REF!,7,FALSE) ->  | AF132: =T132-HLOOKUP(X132,#REF!,8,FALSE) ->  | AG132: =T132-HLOOKUP(X132,#REF!,9,FALSE) -> 
A133: H | B133: NORD | C133: PIC | D133: 13 | E133: 376940 | F133: LEVIONNOIS | G133: Nicolas | H133: 2002 | I133: 61.9 | J133: La Ferté Milon CMHM | K133: F | L133: 20 | M133: 22 | N133: 24 | O133: 46 | P133: 25 | Q133: 27 | R133: 29 | S133: 56 | T133: 102 | U133: 147.6869713 | V133: 40.1 | X133: =IF(A133="F",(IF(OR(H133>2001,H133<2004),VLOOKUP(I133,Feuil1!$G$11:$H$25,2))),IF(A133="H",(IF(OR(H133>2001,H133<2004),VLOOKUP(I133,Feuil1!$A$11:$F$29,2))))) -> M62 | Z133: =T133-HLOOKUP(X133,#REF!,2,FALSE) ->  | AA133: =T133-HLOOKUP(X133,#REF!,3,FALSE) ->  | AB133: =T133-HLOOKUP(X133,#REF!,4,FALSE) ->  | AC133: =T133-HLOOKUP(X133,#REF!,5,FALSE) ->  | AD133: =T133-HLOOKUP(X133,#REF!,6,FALSE) ->  | AE133: =T133-HLOOKUP(X133,#REF!,7,FALSE) ->  | AF133: =T133-HLOOKUP(X133,#REF!,8,FALSE) ->  | AG133: =T133-HLOOKUP(X133,#REF!,9,FALSE) -> 
A134: H | B134: N | C134: IDF | D134: 14 | E134: 335746 | F134: FAOUZI | G134: BASSAM | H134: 2002 | I134: 61.8 | J134: CACHAN | K134: F | L134: 18 | M134: 20 | N134: 22 | O134: 42 | P134: 26 | Q134: 28 | R134: 30 | S134: 58 | T134: 100 | U134: 144.9586794 | V134: 38.2 | X134: =IF(A134="F",(IF(OR(H134>2001,H134<2004),VLOOKUP(I134,Feuil1!$G$11:$H$25,2))),IF(A134="H",(IF(OR(H134>2001,H134<2004),VLOOKUP(I134,Feuil1!$A$11:$F$29,2))))) -> M62 | Z134: =T134-HLOOKUP(X134,#REF!,2,FALSE) ->  | AA134: =T134-HLOOKUP(X134,#REF!,3,FALSE) ->  | AB134: =T134-HLOOKUP(X134,#REF!,4,FALSE) ->  | AC134: =T134-HLOOKUP(X134,#REF!,5,FALSE) ->  | AD134: =T134-HLOOKUP(X134,#REF!,6,FALSE) ->  | AE134: =T134-HLOOKUP(X134,#REF!,7,FALSE) ->  | AF134: =T134-HLOOKUP(X134,#REF!,8,FALSE) ->  | AG134: =T134-HLOOKUP(X134,#REF!,9,FALSE) -> 
A135: H | B135: N | C135: IDF | D135: 15 | E135: 386891 | F135: PHILIBERT | G135: MAEDÏN | H135: 2002 | I135: 56.1 | J135: FRANCONVILLE | K135: F | L135: 21 | M135: 23 | N135: -24 | O135: 44 | P135: 24 | Q135: 26 | R135: 28 | S135: 54 | T135: 98 | U135: 152.7405672 | V135: 41.9 | X135: =IF(A135="F",(IF(OR(H135>2001,H135<2004),VLOOKUP(I135,Feuil1!$G$11:$H$25,2))),IF(A135="H",(IF(OR(H135>2001,H135<2004),VLOOKUP(I135,Feuil1!$A$11:$F$29,2))))) -> M62 | Z135: =T135-HLOOKUP(X135,#REF!,2,FALSE) ->  | AA135: =T135-HLOOKUP(X135,#REF!,3,FALSE) ->  | AB135: =T135-HLOOKUP(X135,#REF!,4,FALSE) ->  | AC135: =T135-HLOOKUP(X135,#REF!,5,FALSE) ->  | AD135: =T135-HLOOKUP(X135,#REF!,6,FALSE) ->  | AE135: =T135-HLOOKUP(X135,#REF!,7,FALSE) ->  | AF135: =T135-HLOOKUP(X135,#REF!,8,FALSE) ->  | AG135: =T135-HLOOKUP(X135,#REF!,9,FALSE) -> 
A136: H | B136: NORD | C136: PIC | D136: 16 | E136: 379759 | F136: MARCHANDISE | G136: Timéo | H136: 2002 | I136: 61.6 | J136: La Vaillante Saint Quentin | K136: F | L136: 18 | M136: 20 | N136: 22 | O136: 42 | P136: 24 | Q136: 26 | R136: 28 | S136: 54 | T136: 96 | U136: 139.4840925 | V136: 34.4 | X136: =IF(A136="F",(IF(OR(H136>2001,H136<2004),VLOOKUP(I136,Feuil1!$G$11:$H$25,2))),IF(A136="H",(IF(OR(H136>2001,H136<2004),VLOOKUP(I136,Feuil1!$A$11:$F$29,2))))) -> M62 | Z136: =T136-HLOOKUP(X136,#REF!,2,FALSE) ->  | AA136: =T136-HLOOKUP(X136,#REF!,3,FALSE) ->  | AB136: =T136-HLOOKUP(X136,#REF!,4,FALSE) ->  | AC136: =T136-HLOOKUP(X136,#REF!,5,FALSE) ->  | AD136: =T136-HLOOKUP(X136,#REF!,6,FALSE) ->  | AE136: =T136-HLOOKUP(X136,#REF!,7,FALSE) ->  | AF136: =T136-HLOOKUP(X136,#REF!,8,FALSE) ->  | AG136: =T136-HLOOKUP(X136,#REF!,9,FALSE) -> 
A137: H | B137: SEST | C137: RAL | D137: 17 | E137: 380145 | F137: DUFFEZ | G137: Quentin | H137: 2002 | I137: 59.5 | J137: L'ARBRESLE | K137: F | L137: 15 | M137: 17 | N137: 19 | O137: 36 | P137: 25 | Q137: 27 | R137: 29 | S137: 56 | T137: 92 | U137: 137.1000347 | V137: 32.5 | X137: =IF(A137="F",(IF(OR(H137>2001,H137<2004),VLOOKUP(I137,Feuil1!$G$11:$H$25,2))),IF(A137="H",(IF(OR(H137>2001,H137<2004),VLOOKUP(I137,Feuil1!$A$11:$F$29,2))))) -> M62 | Z137: =T137-HLOOKUP(X137,#REF!,2,FALSE) ->  | AA137: =T137-HLOOKUP(X137,#REF!,3,FALSE) ->  | AB137: =T137-HLOOKUP(X137,#REF!,4,FALSE) ->  | AC137: =T137-HLOOKUP(X137,#REF!,5,FALSE) ->  | AD137: =T137-HLOOKUP(X137,#REF!,6,FALSE) ->  | AE137: =T137-HLOOKUP(X137,#REF!,7,FALSE) ->  | AF137: =T137-HLOOKUP(X137,#REF!,8,FALSE) ->  | AG137: =T137-HLOOKUP(X137,#REF!,9,FALSE) -> 
A138: H | B138: NORD | C138: PIC | D138: 18 | E138: 361096 | F138: ROUSSEAU | G138: Benjamin | H138: 2002 | I138: 61.62 | J138: La Vaillante Saint Quentin | K138: F | L138: 17 | M138: 19 | N138: 21 | O138: 40 | P138: 22 | Q138: 24 | R138: 26 | S138: 50 | T138: 90 | U138: 130.7358654 | V138: 28.38 | X138: =IF(A138="F",(IF(OR(H138>2001,H138<2004),VLOOKUP(I138,Feuil1!$G$11:$H$25,2))),IF(A138="H",(IF(OR(H138>2001,H138<2004),VLOOKUP(I138,Feuil1!$A$11:$F$29,2))))) -> M62 | Z138: =T138-HLOOKUP(X138,#REF!,2,FALSE) ->  | AA138: =T138-HLOOKUP(X138,#REF!,3,FALSE) ->  | AB138: =T138-HLOOKUP(X138,#REF!,4,FALSE) ->  | AC138: =T138-HLOOKUP(X138,#REF!,5,FALSE) ->  | AD138: =T138-HLOOKUP(X138,#REF!,6,FALSE) ->  | AE138: =T138-HLOOKUP(X138,#REF!,7,FALSE) ->  | AF138: =T138-HLOOKUP(X138,#REF!,8,FALSE) ->  | AG138: =T138-HLOOKUP(X138,#REF!,9,FALSE) -> 
A139: H | B139: SEST | C139: PRO | D139: 19 | E139: 377629 | F139: CEBE | G139: Albin | H139: 2003 | I139: 56.9 | J139: EEAR MONTEUX | K139: F | L139: 20 | M139: 20 | N139: 20 | O139: 40 | P139: 22 | Q139: 23 | R139: 25 | S139: 48 | T139: 88 | U139: 135.6528211 | V139: 31.1 | X139: =IF(A139="F",(IF(OR(H139>2001,H139<2004),VLOOKUP(I139,Feuil1!$G$11:$H$25,2))),IF(A139="H",(IF(OR(H139>2001,H139<2004),VLOOKUP(I139,Feuil1!$A$11:$F$29,2))))) -> M62 | Z139: =T139-HLOOKUP(X139,#REF!,2,FALSE) ->  | AA139: =T139-HLOOKUP(X139,#REF!,3,FALSE) ->  | AB139: =T139-HLOOKUP(X139,#REF!,4,FALSE) ->  | AC139: =T139-HLOOKUP(X139,#REF!,5,FALSE) ->  | AD139: =T139-HLOOKUP(X139,#REF!,6,FALSE) ->  | AE139: =T139-HLOOKUP(X139,#REF!,7,FALSE) ->  | AF139: =T139-HLOOKUP(X139,#REF!,8,FALSE) ->  | AG139: =T139-HLOOKUP(X139,#REF!,9,FALSE) -> 
A140: H | B140: SEST | C140: PRO | D140: 20 | E140: 374428 | F140: BOGUCKI | G140: Vicent | H140: 2002 | I140: 60.7 | J140: ISTRES SPORTS | K140: F | L140: 15 | M140: 17 | N140: 18 | O140: 35 | P140: 20 | Q140: 22 | R140: 24 | S140: 46 | T140: 81 | U140: 118.9489211 | V140: 20.3 | X140: =IF(A140="F",(IF(OR(H140>2001,H140<2004),VLOOKUP(I140,Feuil1!$G$11:$H$25,2))),IF(A140="H",(IF(OR(H140>2001,H140<2004),VLOOKUP(I140,Feuil1!$A$11:$F$29,2))))) -> M62 | Z140: =T140-HLOOKUP(X140,#REF!,2,FALSE) ->  | AA140: =T140-HLOOKUP(X140,#REF!,3,FALSE) ->  | AB140: =T140-HLOOKUP(X140,#REF!,4,FALSE) ->  | AC140: =T140-HLOOKUP(X140,#REF!,5,FALSE) ->  | AD140: =T140-HLOOKUP(X140,#REF!,6,FALSE) ->  | AE140: =T140-HLOOKUP(X140,#REF!,7,FALSE) ->  | AF140: =T140-HLOOKUP(X140,#REF!,8,FALSE) ->  | AG140: =T140-HLOOKUP(X140,#REF!,9,FALSE) -> 
A141: H | B141: SEST | C141: CAZ | D141: 21 | E141: 391438 | F141: ISSOT | G141: Ludwig | H141: 2002 | I141: 58.3 | J141: ES VILLENEUVE LOUBET | K141: F | L141: 16 | M141: 18 | N141: -20 | O141: 34 | P141: 20 | Q141: 22 | R141: 24 | S141: 46 | T141: 80 | U141: 121.0506133 | V141: 21.7 | X141: =IF(A141="F",(IF(OR(H141>2001,H141<2004),VLOOKUP(I141,Feuil1!$G$11:$H$25,2))),IF(A141="H",(IF(OR(H141>2001,H141<2004),VLOOKUP(I141,Feuil1!$A$11:$F$29,2))))) -> M62 | Z141: =T141-HLOOKUP(X141,#REF!,2,FALSE) ->  | AA141: =T141-HLOOKUP(X141,#REF!,3,FALSE) ->  | AB141: =T141-HLOOKUP(X141,#REF!,4,FALSE) ->  | AC141: =T141-HLOOKUP(X141,#REF!,5,FALSE) ->  | AD141: =T141-HLOOKUP(X141,#REF!,6,FALSE) ->  | AE141: =T141-HLOOKUP(X141,#REF!,7,FALSE) ->  | AF141: =T141-HLOOKUP(X141,#REF!,8,FALSE) ->  | AG141: =T141-HLOOKUP(X141,#REF!,9,FALSE) -> 
AB142: =T142-HLOOKUP(X142,[1]Feuil1!$C$1:$BL$10,2,FALSE) ->  | AC142: =T142-HLOOKUP(X142,[1]Feuil1!$C$1:$BL$10,3,FALSE) ->  | AD142: =T142-HLOOKUP(X142,[1]Feuil1!$C$1:$BL$10,4,FALSE) ->  | AE142: =T142-HLOOKUP(X142,[1]Feuil1!$C$1:$BL$10,5,FALSE) ->  | AF142: =T142-HLOOKUP(X142,[1]Feuil1!$C$1:$BL$10,6,FALSE) ->  | AG142: =T142-HLOOKUP(X142,[1]Feuil1!$C$1:$BL$10,7,FALSE) ->  | AH142: =T142-HLOOKUP(X142,[1]Feuil1!$C$1:$BL$10,8,FALSE) ->  | AI142: =T142-HLOOKUP(X142,[1]Feuil1!$C$1:$BL$10,9,FALSE) ->  | AJ142: =T142-HLOOKUP(X142,[1]Feuil1!$C$1:$BL$10,10,FALSE) ->  | AQ142: =IF(AJ142>=0,$AJ$4,IF(AI142>=0,$AI$4,IF(AH142>=0,$AH$4,IF(AG142>=0,$AG$4,IF(AF142>=0,$AF$4,IF(AE142>=0,$AE$4,IF(AD142>=0,$AD$4,IF(AC142>=0,$AC$4,$AB$4)))))))) -> 
A143: H | B143: DOM | C143: REU | D143: 1 | E143: 321684 | F143: ROUGET | G143: TIZZIANO | H143: 2002 | I143: 62.62 | J143: LES DEUX PETITS NANOS | K143: F | L143: 50 | M143: 52 | N143: 54 | O143: =IF(MAXA(L143+M143,M143+N143,L143+N143,L143,M143,N143)<=0,0,MAXA(L143+M143,M143+N143,L143+N143,L143,M143,N143)) -> 106 | P143: 64 | Q143: 66 | R143: 68 | S143: =IF(MAXA(P143+Q143,Q143+R143,P143+R143,P143,Q143,R143)<=0,0,MAXA(P143+Q143,Q143+R143,P143+R143,P143,Q143,R143)) -> 134 | T143: =IF(H143="","",IF(OR(O143=0,S143=0),0,O143+S143)) -> 240 | U143: =IF(I143="","",IF(A143="H",10^(0.794358141*LOG(I143/174.393)^2)*T143,IF(A143="F",10^(0.89726074 * LOG(I143/148.026)^2)*T143,""))) -> 344.6544935 | V143: =SUM(T143-I143) -> 177.38 | X143: =IF(A143="F",(IF(OR(H143>2001,H143<2004),VLOOKUP(I143,Feuil1!$G$11:$H$25,2))),IF(A143="H",(IF(OR(H143>2001,H143<2004),VLOOKUP(I143,Feuil1!$A$11:$F$29,2))))) -> M69 | Z143: =T143-HLOOKUP(X143,#REF!,2,FALSE) ->  | AA143: =T143-HLOOKUP(X143,#REF!,3,FALSE) ->  | AB143: =T143-HLOOKUP(X143,#REF!,4,FALSE) ->  | AC143: =T143-HLOOKUP(X143,#REF!,5,FALSE) ->  | AD143: =T143-HLOOKUP(X143,#REF!,6,FALSE) ->  | AE143: =T143-HLOOKUP(X143,#REF!,7,FALSE) ->  | AF143: =T143-HLOOKUP(X143,#REF!,8,FALSE) ->  | AG143: =T143-HLOOKUP(X143,#REF!,9,FALSE) ->  | AO143: =IF(AG143>=0,$AG$4,IF(AF143>=0,$AF$4,IF(AE143>=0,$AE$4,IF(AD143>=0,$AD$4,IF(AC143>=0,$AC$4,IF(AB143>=0,$AB$4,IF(AA143>=0,$AA$4,IF(Z143>=0,$Z$4,$AH$4)))))))) -> 
A144: H | B144: ZCO | C144: BRE | D144: 2 | E144: 357284 | F144: BEGHAIN | G144: Flavien | H144: 2002 | I144: 68.6 | J144: AL QUIMPER | K144: F | L144: 48 | M144: 50 | N144: 52 | O144: 102 | P144: 64 | Q144: 65 | R144: 67 | S144: 132 | T144: 234 | U144: 315.9674498 | V144: 165.4 | X144: =IF(A144="F",(IF(OR(H144>2001,H144<2004),VLOOKUP(I144,Feuil1!$G$11:$H$25,2))),IF(A144="H",(IF(OR(H144>2001,H144<2004),VLOOKUP(I144,Feuil1!$A$11:$F$29,2))))) -> M69 | Z144: =T144-HLOOKUP(X144,#REF!,2,FALSE) ->  | AA144: =T144-HLOOKUP(X144,#REF!,3,FALSE) ->  | AB144: =T144-HLOOKUP(X144,#REF!,4,FALSE) ->  | AC144: =T144-HLOOKUP(X144,#REF!,5,FALSE) ->  | AD144: =T144-HLOOKUP(X144,#REF!,6,FALSE) ->  | AE144: =T144-HLOOKUP(X144,#REF!,7,FALSE) ->  | AF144: =T144-HLOOKUP(X144,#REF!,8,FALSE) ->  | AG144: =T144-HLOOKUP(X144,#REF!,9,FALSE) -> 
A145: H | B145: ZCO | C145: BRE | D145: 3 | E145: 360832 | F145: BERTHE | G145: Thibaut | H145: 2002 | I145: 62.3 | J145: AL QUIMPER | K145: F | L145: -41 | M145: 41 | N145: 42 | O145: 83 | P145: 53 | Q145: 55 | R145: 57 | S145: 112 | T145: 195 | U145: 281.0500302 | V145: 132.7 | X145: =IF(A145="F",(IF(OR(H145>2001,H145<2004),VLOOKUP(I145,Feuil1!$G$11:$H$25,2))),IF(A145="H",(IF(OR(H145>2001,H145<2004),VLOOKUP(I145,Feuil1!$A$11:$F$29,2))))) -> M69 | Z145: =T145-HLOOKUP(X145,#REF!,2,FALSE) ->  | AA145: =T145-HLOOKUP(X145,#REF!,3,FALSE) ->  | AB145: =T145-HLOOKUP(X145,#REF!,4,FALSE) ->  | AC145: =T145-HLOOKUP(X145,#REF!,5,FALSE) ->  | AD145: =T145-HLOOKUP(X145,#REF!,6,FALSE) ->  | AE145: =T145-HLOOKUP(X145,#REF!,7,FALSE) ->  | AF145: =T145-HLOOKUP(X145,#REF!,8,FALSE) ->  | AG145: =T145-HLOOKUP(X145,#REF!,9,FALSE) -> 
A146: H | B146: ZCO | C146: BRE | D146: 4 | E146: 360255 | F146: BERTHE | G146: Maxence | H146: 2003 | I146: 64.98 | J146: AL QUIMPER | K146: F | L146: -36 | M146: 36 | N146: 37 | O146: 73 | P146: 47 | Q146: 48 | R146: 50 | S146: 98 | T146: 171 | U146: 239.3424809 | V146: 106.02 | X146: =IF(A146="F",(IF(OR(H146>2001,H146<2004),VLOOKUP(I146,Feuil1!$G$11:$H$25,2))),IF(A146="H",(IF(OR(H146>2001,H146<2004),VLOOKUP(I146,Feuil1!$A$11:$F$29,2))))) -> M69 | Z146: =T146-HLOOKUP(X146,#REF!,2,FALSE) ->  | AA146: =T146-HLOOKUP(X146,#REF!,3,FALSE) ->  | AB146: =T146-HLOOKUP(X146,#REF!,4,FALSE) ->  | AC146: =T146-HLOOKUP(X146,#REF!,5,FALSE) ->  | AD146: =T146-HLOOKUP(X146,#REF!,6,FALSE) ->  | AE146: =T146-HLOOKUP(X146,#REF!,7,FALSE) ->  | AF146: =T146-HLOOKUP(X146,#REF!,8,FALSE) ->  | AG146: =T146-HLOOKUP(X146,#REF!,9,FALSE) -> 
A147: H | B147: NE | C147: BOU | D147: 5 | E147: 339088 | F147: CONNAN | G147: Killyan | H147: 2003 | I147: 68.5 | J147: ASO Mont de Rème | K147: F | L147: 34 | M147: 36 | N147: 38 | O147: 74 | P147: 44 | Q147: -46 | R147: 46 | S147: 90 | T147: 164 | U147: 221.6554949 | V147: 95.5 | X147: =IF(A147="F",(IF(OR(H147>2001,H147<2004),VLOOKUP(I147,Feuil1!$G$11:$H$25,2))),IF(A147="H",(IF(OR(H147>2001,H147<2004),VLOOKUP(I147,Feuil1!$A$11:$F$29,2))))) -> M69 | Z147: =T147-HLOOKUP(X147,#REF!,2,FALSE) ->  | AA147: =T147-HLOOKUP(X147,#REF!,3,FALSE) ->  | AB147: =T147-HLOOKUP(X147,#REF!,4,FALSE) ->  | AC147: =T147-HLOOKUP(X147,#REF!,5,FALSE) ->  | AD147: =T147-HLOOKUP(X147,#REF!,6,FALSE) ->  | AE147: =T147-HLOOKUP(X147,#REF!,7,FALSE) ->  | AF147: =T147-HLOOKUP(X147,#REF!,8,FALSE) ->  | AG147: =T147-HLOOKUP(X147,#REF!,9,FALSE) -> 
A148: H | B148: SEST | C148: RAL | D148: 6 | E148: 356458 | F148: REYNAUD | G148: Quentin | H148: 2002 | I148: 65.6 | J148: HF Péageois | K148: F | L148: 32 | M148: 34 | N148: -36 | O148: 66 | P148: 40 | Q148: 42 | R148: 44 | S148: 86 | T148: 152 | U148: 211.3837404 | V148: 86.4 | X148: =IF(A148="F",(IF(OR(H148>2001,H148<2004),VLOOKUP(I148,Feuil1!$G$11:$H$25,2))),IF(A148="H",(IF(OR(H148>2001,H148<2004),VLOOKUP(I148,Feuil1!$A$11:$F$29,2))))) -> M69 | Z148: =T148-HLOOKUP(X148,#REF!,2,FALSE) ->  | AA148: =T148-HLOOKUP(X148,#REF!,3,FALSE) ->  | AB148: =T148-HLOOKUP(X148,#REF!,4,FALSE) ->  | AC148: =T148-HLOOKUP(X148,#REF!,5,FALSE) ->  | AD148: =T148-HLOOKUP(X148,#REF!,6,FALSE) ->  | AE148: =T148-HLOOKUP(X148,#REF!,7,FALSE) ->  | AF148: =T148-HLOOKUP(X148,#REF!,8,FALSE) ->  | AG148: =T148-HLOOKUP(X148,#REF!,9,FALSE) -> 
A149: H | B149: NORD | C149: PIC | D149: 7 | E149: 376294 | F149: HULOT | G149: Charles | H149: 2002 | I149: 62.46 | J149: Roisel CHFM | K149: F | L149: 26 | M149: 28 | N149: 30 | O149: 58 | P149: 38 | Q149: 40 | R149: 42 | S149: 82 | T149: 140 | U149: 201.4127259 | V149: 77.54 | X149: =IF(A149="F",(IF(OR(H149>2001,H149<2004),VLOOKUP(I149,Feuil1!$G$11:$H$25,2))),IF(A149="H",(IF(OR(H149>2001,H149<2004),VLOOKUP(I149,Feuil1!$A$11:$F$29,2))))) -> M69 | Z149: =T149-HLOOKUP(X149,#REF!,2,FALSE) ->  | AA149: =T149-HLOOKUP(X149,#REF!,3,FALSE) ->  | AB149: =T149-HLOOKUP(X149,#REF!,4,FALSE) ->  | AC149: =T149-HLOOKUP(X149,#REF!,5,FALSE) ->  | AD149: =T149-HLOOKUP(X149,#REF!,6,FALSE) ->  | AE149: =T149-HLOOKUP(X149,#REF!,7,FALSE) ->  | AF149: =T149-HLOOKUP(X149,#REF!,8,FALSE) ->  | AG149: =T149-HLOOKUP(X149,#REF!,9,FALSE) -> 
A150: H | B150: SEST | C150: CAZ | D150: 8 | E150: 359711 | F150: JAOUEN | G150: Thibault | H150: 2002 | I150: 63.8 | J150: ES VILLENEUVE LOUBET | K150: F | L150: 24 | M150: 26 | N150: 28 | O150: 54 | P150: 36 | Q150: 38 | R150: 40 | S150: 78 | T150: 132 | U150: 187.0980706 | V150: 68.2 | X150: =IF(A150="F",(IF(OR(H150>2001,H150<2004),VLOOKUP(I150,Feuil1!$G$11:$H$25,2))),IF(A150="H",(IF(OR(H150>2001,H150<2004),VLOOKUP(I150,Feuil1!$A$11:$F$29,2))))) -> M69 | Z150: =T150-HLOOKUP(X150,#REF!,2,FALSE) ->  | AA150: =T150-HLOOKUP(X150,#REF!,3,FALSE) ->  | AB150: =T150-HLOOKUP(X150,#REF!,4,FALSE) ->  | AC150: =T150-HLOOKUP(X150,#REF!,5,FALSE) ->  | AD150: =T150-HLOOKUP(X150,#REF!,6,FALSE) ->  | AE150: =T150-HLOOKUP(X150,#REF!,7,FALSE) ->  | AF150: =T150-HLOOKUP(X150,#REF!,8,FALSE) ->  | AG150: =T150-HLOOKUP(X150,#REF!,9,FALSE) -> 
A151: H | B151: NORD | C151: PIC | D151: 9 | E151: 376940 | F151: LEVIONNOIS | G151: Nicolas | H151: 2002 | I151: 63.75 | J151: La Ferté Milon CMHM | K151: F | L151: 26 | M151: -28 | N151: 28 | O151: 54 | P151: 35 | Q151: 37 | R151: 39 | S151: 76 | T151: 130 | U151: 184.3635473 | V151: 66.25 | X151: =IF(A151="F",(IF(OR(H151>2001,H151<2004),VLOOKUP(I151,Feuil1!$G$11:$H$25,2))),IF(A151="H",(IF(OR(H151>2001,H151<2004),VLOOKUP(I151,Feuil1!$A$11:$F$29,2))))) -> M69 | Z151: =T151-HLOOKUP(X151,#REF!,2,FALSE) ->  | AA151: =T151-HLOOKUP(X151,#REF!,3,FALSE) ->  | AB151: =T151-HLOOKUP(X151,#REF!,4,FALSE) ->  | AC151: =T151-HLOOKUP(X151,#REF!,5,FALSE) ->  | AD151: =T151-HLOOKUP(X151,#REF!,6,FALSE) ->  | AE151: =T151-HLOOKUP(X151,#REF!,7,FALSE) ->  | AF151: =T151-HLOOKUP(X151,#REF!,8,FALSE) ->  | AG151: =T151-HLOOKUP(X151,#REF!,9,FALSE) -> 
A152: H | B152: N | C152: IDF | D152: 10 | E152: 335746 | F152: FAOUZI | G152: BASSAM | H152: 2002 | I152: 66.1 | J152: CACHAN | K152: F | L152: 28 | M152: 30 | N152: -31 | O152: 58 | P152: 35 | Q152: 37 | R152: -38 | S152: 72 | T152: 130 | U152: 179.8686093 | V152: 63.9 | X152: =IF(A152="F",(IF(OR(H152>2001,H152<2004),VLOOKUP(I152,Feuil1!$G$11:$H$25,2))),IF(A152="H",(IF(OR(H152>2001,H152<2004),VLOOKUP(I152,Feuil1!$A$11:$F$29,2))))) -> M69 | Z152: =T152-HLOOKUP(X152,#REF!,2,FALSE) ->  | AA152: =T152-HLOOKUP(X152,#REF!,3,FALSE) ->  | AB152: =T152-HLOOKUP(X152,#REF!,4,FALSE) ->  | AC152: =T152-HLOOKUP(X152,#REF!,5,FALSE) ->  | AD152: =T152-HLOOKUP(X152,#REF!,6,FALSE) ->  | AE152: =T152-HLOOKUP(X152,#REF!,7,FALSE) ->  | AF152: =T152-HLOOKUP(X152,#REF!,8,FALSE) ->  | AG152: =T152-HLOOKUP(X152,#REF!,9,FALSE) -> 
A153: H | B153: NE | C153: ALS | D153: 11 | E153: 395486 | F153: BUSCH | G153: ETHANN | H153: 2002 | I153: 65.7 | J153: SHC Haguenau | K153: F | L153: 26 | M153: -28 | N153: 28 | O153: 54 | P153: 35 | Q153: 37 | R153: -39 | S153: 72 | T153: 126 | U153: 175.0461685 | V153: 60.3 | X153: =IF(A153="F",(IF(OR(H153>2001,H153<2004),VLOOKUP(I153,Feuil1!$G$11:$H$25,2))),IF(A153="H",(IF(OR(H153>2001,H153<2004),VLOOKUP(I153,Feuil1!$A$11:$F$29,2))))) -> M69 | Z153: =T153-HLOOKUP(X153,#REF!,2,FALSE) ->  | AA153: =T153-HLOOKUP(X153,#REF!,3,FALSE) ->  | AB153: =T153-HLOOKUP(X153,#REF!,4,FALSE) ->  | AC153: =T153-HLOOKUP(X153,#REF!,5,FALSE) ->  | AD153: =T153-HLOOKUP(X153,#REF!,6,FALSE) ->  | AE153: =T153-HLOOKUP(X153,#REF!,7,FALSE) ->  | AF153: =T153-HLOOKUP(X153,#REF!,8,FALSE) ->  | AG153: =T153-HLOOKUP(X153,#REF!,9,FALSE) -> 
A154: H | B154: NORD | C154: PIC | D154: 12 | E154: 379759 | F154: MARCHANDISE | G154: Timéo | H154: 2002 | I154: 62.98 | J154: La Vaillante Saint Quentin | K154: F | L154: 20 | M154: -22 | N154: 22 | O154: 42 | P154: 25 | Q154: 27 | R154: 29 | S154: 56 | T154: 98 | U154: 140.1665362 | V154: 35.02 | X154: =IF(A154="F",(IF(OR(H154>2001,H154<2004),VLOOKUP(I154,Feuil1!$G$11:$H$25,2))),IF(A154="H",(IF(OR(H154>2001,H154<2004),VLOOKUP(I154,Feuil1!$A$11:$F$29,2))))) -> M69 | Z154: =T154-HLOOKUP(X154,#REF!,2,FALSE) ->  | AA154: =T154-HLOOKUP(X154,#REF!,3,FALSE) ->  | AB154: =T154-HLOOKUP(X154,#REF!,4,FALSE) ->  | AC154: =T154-HLOOKUP(X154,#REF!,5,FALSE) ->  | AD154: =T154-HLOOKUP(X154,#REF!,6,FALSE) ->  | AE154: =T154-HLOOKUP(X154,#REF!,7,FALSE) ->  | AF154: =T154-HLOOKUP(X154,#REF!,8,FALSE) ->  | AG154: =T154-HLOOKUP(X154,#REF!,9,FALSE) -> 
A155: H | B155: N | C155: IDF | D155: 13 | E155: 383960 | F155: KAADOUD | G155: ADAM | H155: 2002 | I155: 68.1 | J155: CACHAN | K155: F | L155: 12 | M155: 14 | N155: 16 | O155: 30 | P155: 17 | Q155: 19 | R155: -20 | S155: 36 | T155: 66 | U155: 89.54135353 | V155: -2.1 | X155: =IF(A155="F",(IF(OR(H155>2001,H155<2004),VLOOKUP(I155,Feuil1!$G$11:$H$25,2))),IF(A155="H",(IF(OR(H155>2001,H155<2004),VLOOKUP(I155,Feuil1!$A$11:$F$29,2))))) -> M69 | Z155: =T155-HLOOKUP(X155,#REF!,2,FALSE) ->  | AA155: =T155-HLOOKUP(X155,#REF!,3,FALSE) ->  | AB155: =T155-HLOOKUP(X155,#REF!,4,FALSE) ->  | AC155: =T155-HLOOKUP(X155,#REF!,5,FALSE) ->  | AD155: =T155-HLOOKUP(X155,#REF!,6,FALSE) ->  | AE155: =T155-HLOOKUP(X155,#REF!,7,FALSE) ->  | AF155: =T155-HLOOKUP(X155,#REF!,8,FALSE) ->  | AG155: =T155-HLOOKUP(X155,#REF!,9,FALSE) -> 
A156: H | B156: NE | C156: CHA | D156: 14 | E156: 387906 | F156: ROYER | G156: Joshua | H156: 2003 | I156: 66.4 | J156: Langres HM | K156: F | L156: 7 | M156: 9 | N156: 11 | O156: 20 | P156: 7 | Q156: 9 | R156: 11 | S156: 20 | T156: 40 | U156: 55.1770772 | V156: -26.4 | X156: =IF(A156="F",(IF(OR(H156>2001,H156<2004),VLOOKUP(I156,Feuil1!$G$11:$H$25,2))),IF(A156="H",(IF(OR(H156>2001,H156<2004),VLOOKUP(I156,Feuil1!$A$11:$F$29,2))))) -> M69 | Z156: =T156-HLOOKUP(X156,#REF!,2,FALSE) ->  | AA156: =T156-HLOOKUP(X156,#REF!,3,FALSE) ->  | AB156: =T156-HLOOKUP(X156,#REF!,4,FALSE) ->  | AC156: =T156-HLOOKUP(X156,#REF!,5,FALSE) ->  | AD156: =T156-HLOOKUP(X156,#REF!,6,FALSE) ->  | AE156: =T156-HLOOKUP(X156,#REF!,7,FALSE) ->  | AF156: =T156-HLOOKUP(X156,#REF!,8,FALSE) ->  | AG156: =T156-HLOOKUP(X156,#REF!,9,FALSE) -> 
AB157: =T157-HLOOKUP(X157,[1]Feuil1!$C$1:$BL$10,2,FALSE) ->  | AC157: =T157-HLOOKUP(X157,[1]Feuil1!$C$1:$BL$10,3,FALSE) ->  | AD157: =T157-HLOOKUP(X157,[1]Feuil1!$C$1:$BL$10,4,FALSE) ->  | AE157: =T157-HLOOKUP(X157,[1]Feuil1!$C$1:$BL$10,5,FALSE) ->  | AF157: =T157-HLOOKUP(X157,[1]Feuil1!$C$1:$BL$10,6,FALSE) ->  | AG157: =T157-HLOOKUP(X157,[1]Feuil1!$C$1:$BL$10,7,FALSE) ->  | AH157: =T157-HLOOKUP(X157,[1]Feuil1!$C$1:$BL$10,8,FALSE) ->  | AI157: =T157-HLOOKUP(X157,[1]Feuil1!$C$1:$BL$10,9,FALSE) ->  | AJ157: =T157-HLOOKUP(X157,[1]Feuil1!$C$1:$BL$10,10,FALSE) ->  | AQ157: =IF(AJ157>=0,$AJ$4,IF(AI157>=0,$AI$4,IF(AH157>=0,$AH$4,IF(AG157>=0,$AG$4,IF(AF157>=0,$AF$4,IF(AE157>=0,$AE$4,IF(AD157>=0,$AD$4,IF(AC157>=0,$AC$4,$AB$4)))))))) -> 
A158: H | B158: ZCO | C158: BRE | D158: 1 | E158: 357284 | F158: BEGHAIN | G158: Flavien | H158: 2002 | I158: 69.51 | J158: AL QUIMPER | K158: F | L158: 49 | M158: 51 | N158: 53 | O158: =IF(MAXA(L158+M158,M158+N158,L158+N158,L158,M158,N158)<=0,0,MAXA(L158+M158,M158+N158,L158+N158,L158,M158,N158)) -> 104 | P158: 65 | Q158: 66 | R158: 68 | S158: =IF(MAXA(P158+Q158,Q158+R158,P158+R158,P158,Q158,R158)<=0,0,MAXA(P158+Q158,Q158+R158,P158+R158,P158,Q158,R158)) -> 134 | T158: =IF(H158="","",IF(OR(O158=0,S158=0),0,O158+S158)) -> 238 | U158: =IF(I158="","",IF(A158="H",10^(0.794358141*LOG(I158/174.393)^2)*T158,IF(A158="F",10^(0.89726074 * LOG(I158/148.026)^2)*T158,""))) -> 318.6729044 | V158: =SUM(T158-I158) -> 168.49 | X158: =IF(A158="F",(IF(OR(H158>2001,H158<2004),VLOOKUP(I158,Feuil1!$G$11:$H$25,2))),IF(A158="H",(IF(OR(H158>2001,H158<2004),VLOOKUP(I158,Feuil1!$A$11:$F$29,2))))) -> M77 | Z158: =T158-HLOOKUP(X158,#REF!,2,FALSE) ->  | AA158: =T158-HLOOKUP(X158,#REF!,3,FALSE) ->  | AB158: =T158-HLOOKUP(X158,#REF!,4,FALSE) ->  | AC158: =T158-HLOOKUP(X158,#REF!,5,FALSE) ->  | AD158: =T158-HLOOKUP(X158,#REF!,6,FALSE) ->  | AE158: =T158-HLOOKUP(X158,#REF!,7,FALSE) ->  | AF158: =T158-HLOOKUP(X158,#REF!,8,FALSE) ->  | AG158: =T158-HLOOKUP(X158,#REF!,9,FALSE) ->  | AO158: =IF(AG158>=0,$AG$4,IF(AF158>=0,$AF$4,IF(AE158>=0,$AE$4,IF(AD158>=0,$AD$4,IF(AC158>=0,$AC$4,IF(AB158>=0,$AB$4,IF(AA158>=0,$AA$4,IF(Z158>=0,$Z$4,$AH$4)))))))) -> 
A159: H | B159: SEST | C159: PRO | D159: 2 | E159: 374428 | F159: BOGUCKI | G159: Vincent | H159: 2002 | I159: 69.37 | J159: ISTRES SPORTS | K159: F | L159: -39 | M159: 39 | N159: 40 | O159: =IF(MAXA(L159+M159,M159+N159,L159+N159,L159,M159,N159)<=0,0,MAXA(L159+M159,M159+N159,L159+N159,L159,M159,N159)) -> 79 | P159: 44 | Q159: 46 | R159: -48 | S159: =IF(MAXA(P159+Q159,Q159+R159,P159+R159,P159,Q159,R159)<=0,0,MAXA(P159+Q159,Q159+R159,P159+R159,P159,Q159,R159)) -> 90 | T159: =IF(H159="","",IF(OR(O159=0,S159=0),0,O159+S159)) -> 169 | U159: =IF(I159="","",IF(A159="H",10^(0.794358141*LOG(I159/174.393)^2)*T159,IF(A159="F",10^(0.89726074 * LOG(I159/148.026)^2)*T159,""))) -> 226.5745898 | V159: =SUM(T159-I159) -> 99.63 | X159: =IF(A159="F",(IF(OR(H159>2001,H159<2004),VLOOKUP(I159,Feuil1!$G$11:$H$25,2))),IF(A159="H",(IF(OR(H159>2001,H159<2004),VLOOKUP(I159,Feuil1!$A$11:$F$29,2))))) -> M77 | Z159: =T159-HLOOKUP(X159,#REF!,2,FALSE) ->  | AA159: =T159-HLOOKUP(X159,#REF!,3,FALSE) ->  | AB159: =T159-HLOOKUP(X159,#REF!,4,FALSE) ->  | AC159: =T159-HLOOKUP(X159,#REF!,5,FALSE) ->  | AD159: =T159-HLOOKUP(X159,#REF!,6,FALSE) ->  | AE159: =T159-HLOOKUP(X159,#REF!,7,FALSE) ->  | AF159: =T159-HLOOKUP(X159,#REF!,8,FALSE) ->  | AG159: =T159-HLOOKUP(X159,#REF!,9,FALSE) ->  | AO159: =IF(AG159>=0,$AG$4,IF(AF159>=0,$AF$4,IF(AE159>=0,$AE$4,IF(AD159>=0,$AD$4,IF(AC159>=0,$AC$4,IF(AB159>=0,$AB$4,IF(AA159>=0,$AA$4,IF(Z159>=0,$Z$4,$AH$4)))))))) -> 
A160: H | B160: NE | C160: BOU | D160: 3 | E160: 339088 | F160: CONNAN | G160: Killyan | H160: 2003 | I160: 69.2 | J160: ASO Mont de Rème | K160: F | L160: 36 | M160: 37 | N160: 38 | O160: =IF(MAXA(L160+M160,M160+N160,L160+N160,L160,M160,N160)<=0,0,MAXA(L160+M160,M160+N160,L160+N160,L160,M160,N160)) -> 75 | P160: -46 | Q160: 46 | R160: 47 | S160: =IF(MAXA(P160+Q160,Q160+R160,P160+R160,P160,Q160,R160)<=0,0,MAXA(P160+Q160,Q160+R160,P160+R160,P160,Q160,R160)) -> 93 | T160: =IF(H160="","",IF(OR(O160=0,S160=0),0,O160+S160)) -> 168 | U160: =IF(I160="","",IF(A160="H",10^(0.794358141*LOG(I160/174.393)^2)*T160,IF(A160="F",10^(0.89726074 * LOG(I160/148.026)^2)*T160,""))) -> 225.5861648 | V160: =SUM(T160-I160) -> 98.8 | X160: =IF(A160="F",(IF(OR(H160>2001,H160<2004),VLOOKUP(I160,Feuil1!$G$11:$H$25,2))),IF(A160="H",(IF(OR(H160>2001,H160<2004),VLOOKUP(I160,Feuil1!$A$11:$F$29,2))))) -> M77 | Z160: =T160-HLOOKUP(X160,#REF!,2,FALSE) ->  | AA160: =T160-HLOOKUP(X160,#REF!,3,FALSE) ->  | AB160: =T160-HLOOKUP(X160,#REF!,4,FALSE) ->  | AC160: =T160-HLOOKUP(X160,#REF!,5,FALSE) ->  | AD160: =T160-HLOOKUP(X160,#REF!,6,FALSE) ->  | AE160: =T160-HLOOKUP(X160,#REF!,7,FALSE) ->  | AF160: =T160-HLOOKUP(X160,#REF!,8,FALSE) ->  | AG160: =T160-HLOOKUP(X160,#REF!,9,FALSE) ->  | AO160: =IF(AG160>=0,$AG$4,IF(AF160>=0,$AF$4,IF(AE160>=0,$AE$4,IF(AD160>=0,$AD$4,IF(AC160>=0,$AC$4,IF(AB160>=0,$AB$4,IF(AA160>=0,$AA$4,IF(Z160>=0,$Z$4,$AH$4)))))))) -> 
A161: H | B161: NORD | C161: NPC | D161: 4 | E161: 375845 | F161: MAQUAIRE-MILLE | G161: Gordon | H161: 2003 | I161: 73.2 | J161: CHCD COMINES | K161: F | L161: 15 | M161: 17 | N161: 19 | O161: =IF(MAXA(L161+M161,M161+N161,L161+N161,L161,M161,N161)<=0,0,MAXA(L161+M161,M161+N161,L161+N161,L161,M161,N161)) -> 36 | P161: 30 | Q161: 32 | R161: -34 | S161: =IF(MAXA(P161+Q161,Q161+R161,P161+R161,P161,Q161,R161)<=0,0,MAXA(P161+Q161,Q161+R161,P161+R161,P161,Q161,R161)) -> 62 | T161: =IF(H161="","",IF(OR(O161=0,S161=0),0,O161+S161)) -> 98 | U161: =IF(I161="","",IF(A161="H",10^(0.794358141*LOG(I161/174.393)^2)*T161,IF(A161="F",10^(0.89726074 * LOG(I161/148.026)^2)*T161,""))) -> 127.0978388 | V161: =SUM(T161-I161) -> 24.8 | X161: =IF(A161="F",(IF(OR(H161>2001,H161<2004),VLOOKUP(I161,Feuil1!$G$11:$H$25,2))),IF(A161="H",(IF(OR(H161>2001,H161<2004),VLOOKUP(I161,Feuil1!$A$11:$F$29,2))))) -> M77 | Z161: =T161-HLOOKUP(X161,#REF!,2,FALSE) ->  | AA161: =T161-HLOOKUP(X161,#REF!,3,FALSE) ->  | AB161: =T161-HLOOKUP(X161,#REF!,4,FALSE) ->  | AC161: =T161-HLOOKUP(X161,#REF!,5,FALSE) ->  | AD161: =T161-HLOOKUP(X161,#REF!,6,FALSE) ->  | AE161: =T161-HLOOKUP(X161,#REF!,7,FALSE) ->  | AF161: =T161-HLOOKUP(X161,#REF!,8,FALSE) ->  | AG161: =T161-HLOOKUP(X161,#REF!,9,FALSE) ->  | AO161: =IF(AG161>=0,$AG$4,IF(AF161>=0,$AF$4,IF(AE161>=0,$AE$4,IF(AD161>=0,$AD$4,IF(AC161>=0,$AC$4,IF(AB161>=0,$AB$4,IF(AA161>=0,$AA$4,IF(Z161>=0,$Z$4,$AH$4)))))))) -> 
A162: H | B162: N | C162: IDF | D162: 5 | E162: 383960 | F162: KAADOUD | G162: ADAM | H162: 2002 | I162: 71.6 | J162: CACHAN | K162: F | L162: 17 | M162: 19 | N162: 20 | O162: =IF(MAXA(L162+M162,M162+N162,L162+N162,L162,M162,N162)<=0,0,MAXA(L162+M162,M162+N162,L162+N162,L162,M162,N162)) -> 39 | P162: 20 | Q162: 22 | R162: 24 | S162: =IF(MAXA(P162+Q162,Q162+R162,P162+R162,P162,Q162,R162)<=0,0,MAXA(P162+Q162,Q162+R162,P162+R162,P162,Q162,R162)) -> 46 | T162: =IF(H162="","",IF(OR(O162=0,S162=0),0,O162+S162)) -> 85 | U162: =IF(I162="","",IF(A162="H",10^(0.794358141*LOG(I162/174.393)^2)*T162,IF(A162="F",10^(0.89726074 * LOG(I162/148.026)^2)*T162,""))) -> 111.7257265 | V162: =SUM(T162-I162) -> 13.4 | X162: =IF(A162="F",(IF(OR(H162>2001,H162<2004),VLOOKUP(I162,Feuil1!$G$11:$H$25,2))),IF(A162="H",(IF(OR(H162>2001,H162<2004),VLOOKUP(I162,Feuil1!$A$11:$F$29,2))))) -> M77 | Z162: =T162-HLOOKUP(X162,#REF!,2,FALSE) ->  | AA162: =T162-HLOOKUP(X162,#REF!,3,FALSE) ->  | AB162: =T162-HLOOKUP(X162,#REF!,4,FALSE) ->  | AC162: =T162-HLOOKUP(X162,#REF!,5,FALSE) ->  | AD162: =T162-HLOOKUP(X162,#REF!,6,FALSE) ->  | AE162: =T162-HLOOKUP(X162,#REF!,7,FALSE) ->  | AF162: =T162-HLOOKUP(X162,#REF!,8,FALSE) ->  | AG162: =T162-HLOOKUP(X162,#REF!,9,FALSE) ->  | AO162: =IF(AG162>=0,$AG$4,IF(AF162>=0,$AF$4,IF(AE162>=0,$AE$4,IF(AD162>=0,$AD$4,IF(AC162>=0,$AC$4,IF(AB162>=0,$AB$4,IF(AA162>=0,$AA$4,IF(Z162>=0,$Z$4,$AH$4)))))))) -> 
AB163: =T163-HLOOKUP(X163,[1]Feuil1!$C$1:$BL$10,2,FALSE) ->  | AC163: =T163-HLOOKUP(X163,[1]Feuil1!$C$1:$BL$10,3,FALSE) ->  | AD163: =T163-HLOOKUP(X163,[1]Feuil1!$C$1:$BL$10,4,FALSE) ->  | AE163: =T163-HLOOKUP(X163,[1]Feuil1!$C$1:$BL$10,5,FALSE) ->  | AF163: =T163-HLOOKUP(X163,[1]Feuil1!$C$1:$BL$10,6,FALSE) ->  | AG163: =T163-HLOOKUP(X163,[1]Feuil1!$C$1:$BL$10,7,FALSE) ->  | AH163: =T163-HLOOKUP(X163,[1]Feuil1!$C$1:$BL$10,8,FALSE) ->  | AI163: =T163-HLOOKUP(X163,[1]Feuil1!$C$1:$BL$10,9,FALSE) ->  | AJ163: =T163-HLOOKUP(X163,[1]Feuil1!$C$1:$BL$10,10,FALSE) ->  | AQ163: =IF(AJ163>=0,$AJ$4,IF(AI163>=0,$AI$4,IF(AH163>=0,$AH$4,IF(AG163>=0,$AG$4,IF(AF163>=0,$AF$4,IF(AE163>=0,$AE$4,IF(AD163>=0,$AD$4,IF(AC163>=0,$AC$4,$AB$4)))))))) -> 
A164: H | B164: NE | C164: ALS | D164: 1 | E164: 375934 | F164: BARD | G164: AXEL | H164: 2002 | I164: 84.9 | J164: SHC Haguenau | K164: F | L164: 33 | M164: 35 | N164: 37 | O164: =IF(MAXA(L164+M164,M164+N164,L164+N164,L164,M164,N164)<=0,0,MAXA(L164+M164,M164+N164,L164+N164,L164,M164,N164)) -> 72 | P164: 42 | Q164: 44 | R164: 46 | S164: =IF(MAXA(P164+Q164,Q164+R164,P164+R164,P164,Q164,R164)<=0,0,MAXA(P164+Q164,Q164+R164,P164+R164,P164,Q164,R164)) -> 90 | T164: =IF(H164="","",IF(OR(O164=0,S164=0),0,O164+S164)) -> 162 | U164: =IF(I164="","",IF(A164="H",10^(0.794358141*LOG(I164/174.393)^2)*T164,IF(A164="F",10^(0.89726074 * LOG(I164/148.026)^2)*T164,""))) -> 193.7087839 | V164: =SUM(T164-I164) -> 77.1 | X164: =IF(A164="F",(IF(OR(H164>2001,H164<2004),VLOOKUP(I164,Feuil1!$G$11:$H$25,2))),IF(A164="H",(IF(OR(H164>2001,H164<2004),VLOOKUP(I164,Feuil1!$A$11:$F$29,2))))) -> M+77 | Z164: =T164-HLOOKUP(X164,#REF!,2,FALSE) ->  | AA164: =T164-HLOOKUP(X164,#REF!,3,FALSE) ->  | AB164: =T164-HLOOKUP(X164,#REF!,4,FALSE) ->  | AC164: =T164-HLOOKUP(X164,#REF!,5,FALSE) ->  | AD164: =T164-HLOOKUP(X164,#REF!,6,FALSE) ->  | AE164: =T164-HLOOKUP(X164,#REF!,7,FALSE) ->  | AF164: =T164-HLOOKUP(X164,#REF!,8,FALSE) ->  | AG164: =T164-HLOOKUP(X164,#REF!,9,FALSE) ->  | AO164: =IF(AG164>=0,$AG$4,IF(AF164>=0,$AF$4,IF(AE164>=0,$AE$4,IF(AD164>=0,$AD$4,IF(AC164>=0,$AC$4,IF(AB164>=0,$AB$4,IF(AA164>=0,$AA$4,IF(Z164>=0,$Z$4,$AH$4)))))))) -> 
A165: H | B165: NORD | C165: NPC | D165: 2 | E165: 385701 | F165: BAILLEUL | G165: Maxime | H165: 2002 | I165: 82.74 | J165: ST POL/MER | K165: F | L165: 31 | M165: 33 | N165: 35 | O165: =IF(MAXA(L165+M165,M165+N165,L165+N165,L165,M165,N165)<=0,0,MAXA(L165+M165,M165+N165,L165+N165,L165,M165,N165)) -> 68 | P165: 44 | Q165: 46 | R165: 47 | S165: =IF(MAXA(P165+Q165,Q165+R165,P165+R165,P165,Q165,R165)<=0,0,MAXA(P165+Q165,Q165+R165,P165+R165,P165,Q165,R165)) -> 93 | T165: =IF(H165="","",IF(OR(O165=0,S165=0),0,O165+S165)) -> 161 | U165: =IF(I165="","",IF(A165="H",10^(0.794358141*LOG(I165/174.393)^2)*T165,IF(A165="F",10^(0.89726074 * LOG(I165/148.026)^2)*T165,""))) -> 195.0376523 | V165: =SUM(T165-I165) -> 78.26 | X165: =IF(A165="F",(IF(OR(H165>2001,H165<2004),VLOOKUP(I165,Feuil1!$G$11:$H$25,2))),IF(A165="H",(IF(OR(H165>2001,H165<2004),VLOOKUP(I165,Feuil1!$A$11:$F$29,2))))) -> M+77 | Z165: =T165-HLOOKUP(X165,#REF!,2,FALSE) ->  | AA165: =T165-HLOOKUP(X165,#REF!,3,FALSE) ->  | AB165: =T165-HLOOKUP(X165,#REF!,4,FALSE) ->  | AC165: =T165-HLOOKUP(X165,#REF!,5,FALSE) ->  | AD165: =T165-HLOOKUP(X165,#REF!,6,FALSE) ->  | AE165: =T165-HLOOKUP(X165,#REF!,7,FALSE) ->  | AF165: =T165-HLOOKUP(X165,#REF!,8,FALSE) ->  | AG165: =T165-HLOOKUP(X165,#REF!,9,FALSE) ->  | AO165: =IF(AG165>=0,$AG$4,IF(AF165>=0,$AF$4,IF(AE165>=0,$AE$4,IF(AD165>=0,$AD$4,IF(AC165>=0,$AC$4,IF(AB165>=0,$AB$4,IF(AA165>=0,$AA$4,IF(Z165>=0,$Z$4,$AH$4)))))))) -> 
A166: H | B166: ZCO | C166: BRE | D166: 3 | E166: 380277 | F166: COATMEN | G166: Maxime | H166: 2002 | I166: 85.44 | J166: AL QUIMPER | K166: F | L166: 32 | M166: 34 | N166: -36 | O166: =IF(MAXA(L166+M166,M166+N166,L166+N166,L166,M166,N166)<=0,0,MAXA(L166+M166,M166+N166,L166+N166,L166,M166,N166)) -> 66 | P166: 43 | Q166: 45 | R166: -47 | S166: =IF(MAXA(P166+Q166,Q166+R166,P166+R166,P166,Q166,R166)<=0,0,MAXA(P166+Q166,Q166+R166,P166+R166,P166,Q166,R166)) -> 88 | T166: =IF(H166="","",IF(OR(O166=0,S166=0),0,O166+S166)) -> 154 | U166: =IF(I166="","",IF(A166="H",10^(0.794358141*LOG(I166/174.393)^2)*T166,IF(A166="F",10^(0.89726074 * LOG(I166/148.026)^2)*T166,""))) -> 183.5665086 | V166: =SUM(T166-I166) -> 68.56 | X166: =IF(A166="F",(IF(OR(H166>2001,H166<2004),VLOOKUP(I166,Feuil1!$G$11:$H$25,2))),IF(A166="H",(IF(OR(H166>2001,H166<2004),VLOOKUP(I166,Feuil1!$A$11:$F$29,2))))) -> M+77 | Z166: =T166-HLOOKUP(X166,#REF!,2,FALSE) ->  | AA166: =T166-HLOOKUP(X166,#REF!,3,FALSE) ->  | AB166: =T166-HLOOKUP(X166,#REF!,4,FALSE) ->  | AC166: =T166-HLOOKUP(X166,#REF!,5,FALSE) ->  | AD166: =T166-HLOOKUP(X166,#REF!,6,FALSE) ->  | AE166: =T166-HLOOKUP(X166,#REF!,7,FALSE) ->  | AF166: =T166-HLOOKUP(X166,#REF!,8,FALSE) ->  | AG166: =T166-HLOOKUP(X166,#REF!,9,FALSE) ->  | AO166: =IF(AG166>=0,$AG$4,IF(AF166>=0,$AF$4,IF(AE166>=0,$AE$4,IF(AD166>=0,$AD$4,IF(AC166>=0,$AC$4,IF(AB166>=0,$AB$4,IF(AA166>=0,$AA$4,IF(Z166>=0,$Z$4,$AH$4)))))))) -> 
A167: H | B167: ZCO | C167: CEN | D167: 4 | E167: 327171 | F167: BENBOUCHTA | G167: Nassim | H167: 2002 | I167: 93.8 | J167: AAJ BLOIS | K167: F | L167: 30 | M167: 32 | N167: 34 | O167: =IF(MAXA(L167+M167,M167+N167,L167+N167,L167,M167,N167)<=0,0,MAXA(L167+M167,M167+N167,L167+N167,L167,M167,N167)) -> 66 | P167: 40 | Q167: 42 | R167: 44 | S167: =IF(MAXA(P167+Q167,Q167+R167,P167+R167,P167,Q167,R167)<=0,0,MAXA(P167+Q167,Q167+R167,P167+R167,P167,Q167,R167)) -> 86 | T167: =IF(H167="","",IF(OR(O167=0,S167=0),0,O167+S167)) -> 152 | U167: =IF(I167="","",IF(A167="H",10^(0.794358141*LOG(I167/174.393)^2)*T167,IF(A167="F",10^(0.89726074 * LOG(I167/148.026)^2)*T167,""))) -> 173.5655915 | V167: =SUM(T167-I167) -> 58.2 | X167: =IF(A167="F",(IF(OR(H167>2001,H167<2004),VLOOKUP(I167,Feuil1!$G$11:$H$25,2))),IF(A167="H",(IF(OR(H167>2001,H167<2004),VLOOKUP(I167,Feuil1!$A$11:$F$29,2))))) -> M+77 | Z167: =T167-HLOOKUP(X167,#REF!,2,FALSE) ->  | AA167: =T167-HLOOKUP(X167,#REF!,3,FALSE) ->  | AB167: =T167-HLOOKUP(X167,#REF!,4,FALSE) ->  | AC167: =T167-HLOOKUP(X167,#REF!,5,FALSE) ->  | AD167: =T167-HLOOKUP(X167,#REF!,6,FALSE) ->  | AE167: =T167-HLOOKUP(X167,#REF!,7,FALSE) ->  | AF167: =T167-HLOOKUP(X167,#REF!,8,FALSE) ->  | AG167: =T167-HLOOKUP(X167,#REF!,9,FALSE) ->  | AO167: =IF(AG167>=0,$AG$4,IF(AF167>=0,$AF$4,IF(AE167>=0,$AE$4,IF(AD167>=0,$AD$4,IF(AC167>=0,$AC$4,IF(AB167>=0,$AB$4,IF(AA167>=0,$AA$4,IF(Z167>=0,$Z$4,$AH$4)))))))) -> 
A168: H | B168: NE | C168: ALS | D168: 5 | E168: 327057 | F168: LAEMLIN | G168: JULES | H168: 2003 | I168: 80.6 | J168: US Wittenheim | K168: F | L168: 27 | M168: 29 | N168: 31 | O168: =IF(MAXA(L168+M168,M168+N168,L168+N168,L168,M168,N168)<=0,0,MAXA(L168+M168,M168+N168,L168+N168,L168,M168,N168)) -> 60 | P168: 31 | Q168: 33 | R168: 35 | S168: =IF(MAXA(P168+Q168,Q168+R168,P168+R168,P168,Q168,R168)<=0,0,MAXA(P168+Q168,Q168+R168,P168+R168,P168,Q168,R168)) -> 68 | T168: =IF(H168="","",IF(OR(O168=0,S168=0),0,O168+S168)) -> 128 | U168: =IF(I168="","",IF(A168="H",10^(0.794358141*LOG(I168/174.393)^2)*T168,IF(A168="F",10^(0.89726074 * LOG(I168/148.026)^2)*T168,""))) -> 157.2027345 | V168: =SUM(T168-I168) -> 47.4 | X168: =IF(A168="F",(IF(OR(H168>2001,H168<2004),VLOOKUP(I168,Feuil1!$G$11:$H$25,2))),IF(A168="H",(IF(OR(H168>2001,H168<2004),VLOOKUP(I168,Feuil1!$A$11:$F$29,2))))) -> M+77 | Z168: =T168-HLOOKUP(X168,#REF!,2,FALSE) ->  | AA168: =T168-HLOOKUP(X168,#REF!,3,FALSE) ->  | AB168: =T168-HLOOKUP(X168,#REF!,4,FALSE) ->  | AC168: =T168-HLOOKUP(X168,#REF!,5,FALSE) ->  | AD168: =T168-HLOOKUP(X168,#REF!,6,FALSE) ->  | AE168: =T168-HLOOKUP(X168,#REF!,7,FALSE) ->  | AF168: =T168-HLOOKUP(X168,#REF!,8,FALSE) ->  | AG168: =T168-HLOOKUP(X168,#REF!,9,FALSE) ->  | AO168: =IF(AG168>=0,$AG$4,IF(AF168>=0,$AF$4,IF(AE168>=0,$AE$4,IF(AD168>=0,$AD$4,IF(AC168>=0,$AC$4,IF(AB168>=0,$AB$4,IF(AA168>=0,$AA$4,IF(Z168>=0,$Z$4,$AH$4)))))))) -> 
AB169: =T169-HLOOKUP(X169,[1]Feuil1!$C$1:$BL$10,2,FALSE) ->  | AC169: =T169-HLOOKUP(X169,[1]Feuil1!$C$1:$BL$10,3,FALSE) ->  | AD169: =T169-HLOOKUP(X169,[1]Feuil1!$C$1:$BL$10,4,FALSE) ->  | AE169: =T169-HLOOKUP(X169,[1]Feuil1!$C$1:$BL$10,5,FALSE) ->  | AF169: =T169-HLOOKUP(X169,[1]Feuil1!$C$1:$BL$10,6,FALSE) ->  | AG169: =T169-HLOOKUP(X169,[1]Feuil1!$C$1:$BL$10,7,FALSE) ->  | AH169: =T169-HLOOKUP(X169,[1]Feuil1!$C$1:$BL$10,8,FALSE) ->  | AI169: =T169-HLOOKUP(X169,[1]Feuil1!$C$1:$BL$10,9,FALSE) ->  | AJ169: =T169-HLOOKUP(X169,[1]Feuil1!$C$1:$BL$10,10,FALSE) ->  | AQ169: =IF(AJ169>=0,$AJ$4,IF(AI169>=0,$AI$4,IF(AH169>=0,$AH$4,IF(AG169>=0,$AG$4,IF(AF169>=0,$AF$4,IF(AE169>=0,$AE$4,IF(AD169>=0,$AD$4,IF(AC169>=0,$AC$4,$AB$4)))))))) -> 
Y665: J69 | Z665: J77 | AA665: J85 | AB665: J94 | AC665: J105 | AD665: J+105 | AF665: J56 | AG665: J62 | AH665: J69 | AI665: J77 | AJ665: J85 | AK665: J94 | AL665: J105 | AM665: J+105 | AO665: S56 | AP665: S62 | AQ665: S69 | AR665: S77 | AS665: S85 | AT665: S94 | AU665: S105 | AV665: S+105
Y666: 130 | Z666: 145 | AA666: 160 | AB666: 170 | AC666: 180 | AD666: 190 | AF666: 100 | AG666: 115 | AH666: 130 | AI666: 145 | AJ666: 160 | AK666: 170 | AL666: 180 | AM666: 190 | AO666: 115 | AP666: 135 | AQ666: 150 | AR666: 165 | AS666: 180 | AT666: 190 | AU666: 200 | AV666: 210
Y667: 150 | Z667: 165 | AA667: 180 | AB667: 190 | AC667: 200 | AD667: 210 | AF667: 115 | AG667: 135 | AH667: 150 | AI667: 165 | AJ667: 180 | AK667: 190 | AL667: 200 | AM667: 210 | AO667: 130 | AP667: 150 | AQ667: 165 | AR667: 185 | AS667: 200 | AT667: 210 | AU667: 220 | AV667: 230
Y668: 165 | Z668: 185 | AA668: 200 | AB668: 210 | AC668: 220 | AD668: 230 | AF668: 130 | AG668: 150 | AH668: 165 | AI668: 185 | AJ668: 200 | AK668: 210 | AL668: 220 | AM668: 230 | AO668: 145 | AP668: 165 | AQ668: 180 | AR668: 200 | AS668: 220 | AT668: 230 | AU668: 240 | AV668: 250
Y669: 180 | Z669: 200 | AA669: 220 | AB669: 230 | AC669: 240 | AD669: 250 | AF669: 145 | AG669: 165 | AH669: 180 | AI669: 200 | AJ669: 220 | AK669: 230 | AL669: 240 | AM669: 250 | AO669: 175 | AP669: 195 | AQ669: 215 | AR669: 235 | AS669: 250 | AT669: 260 | AU669: 275 | AV669: 280
Y670: 215 | Z670: 235 | AA670: 250 | AB670: 260 | AC670: 275 | AD670: 280 | AF670: 175 | AG670: 195 | AH670: 215 | AI670: 235 | AJ670: 250 | AK670: 260 | AL670: 275 | AM670: 280 | AO670: 210 | AP670: 230 | AQ670: 250 | AR670: 270 | AS670: 290 | AT670: 300 | AU670: 310 | AV670: 325
Y671: 250 | Z671: 270 | AA671: 290 | AB671: 300 | AC671: 310 | AD671: 325 | AF671: 210 | AG671: 230 | AH671: 250 | AI671: 270 | AJ671: 290 | AK671: 300 | AL671: 310 | AM671: 325 | AO671: 230 | AP671: 255 | AQ671: 275 | AR671: 300 | AS671: 315 | AT671: 335 | AU671: 345 | AV671: 355
Y672: 295 | Z672: 320 | AA672: 335 | AB672: 355 | AC672: 370 | AD672: 380 | AF672: 245 | AG672: 270 | AH672: 295 | AI672: 320 | AJ672: 335 | AK672: 355 | AL672: 370 | AM672: 380 | AO672: 245 | AP672: 270 | AQ672: 295 | AR672: 320 | AS672: 335 | AT672: 355 | AU672: 370 | AV672: 380

Sheet Feuil1 (hidden)
C1: FC1 44 | D1: FC1 48 | E1: FC1 53 | F1: FC1 58 | G1: FC1 63 | H1: FC1 69 | I1: FC1 +69 | J1: FC2 44 | K1: FC2 48 | L1: FC2 53 | M1: FC2 58 | N1: FC2 63 | O1: FC2 69 | P1: FC2 +69 | Q1: FJ48 | R1: FJ53 | S1: FJ58 | T1: FJ63 | U1: FJ69 | V1: FJ75 | W1: FJ+75 | X1: FS48 | Y1: FS53 | Z1: FS58 | AA1: FS63 | AB1: FS69 | AC1: FS75 | AD1: FS+75 | AE1: C1 50 | AF1: C1 56 | AG1: C1 62 | AH1: C1 69 | AI1: C1 77 | AJ1: C1 85 | AK1: C1 94 | AL1: C1 +94 | AM1: C2 50 | AN1: C2 56 | AO1: C2 62 | AP1: C2 69 | AQ1: C2 77 | AR1: C2 85 | AS1: C2 94 | AT1: C2 +94 | AU1: J56 | AV1: J62 | AW1: J69 | AX1: J77 | AY1: J85 | AZ1: J94 | BA1: J105 | BB1: J+105 | BC1: S56 | BD1: S62 | BE1: S69 | BF1: S77 | BG1: S85 | BH1: S94 | BI1: S105 | BJ1: S+105
B2: DEBUTANT | C2: 25 | D2: 25 | E2: 35 | F2: 40 | G2: 45 | H2: 50 | I2: 60 | J2: 30 | K2: 35 | L2: 45 | M2: 40 | N2: 55 | O2: 60 | P2: 70 | Q2: 45 | R2: 55 | S2: 60 | T2: 65 | U2: 70 | V2: 80 | W2: 90 | X2: 55 | Y2: 65 | Z2: 70 | AA2: 75 | AB2: 80 | AC2: 95 | AD2: 100 | AE2: 40 | AF2: 50 | AG2: 75 | AH2: 85 | AI2: 90 | AJ2: 100 | AK2: 110 | AL2: 120 | AM2: 45 | AN2: 65 | AO2: 85 | AP2: 95 | AQ2: 110 | AR2: 120 | AS2: 125 | AT2: 135 | AU2: 80 | AV2: 90 | AW2: 110 | AX2: 130 | AY2: 145 | AZ2: 150 | BA2: 155 | BB2: 165 | BC2: 95 | BD2: 120 | BE2: 130 | BF2: 150 | BG2: 165 | BH2: 170 | BI2: 175 | BJ2: 185
B3: DEPARTEMENTAL | C3: 35 | D3: 35 | E3: 45 | F3: 50 | G3: 55 | H3: 60 | I3: 70 | J3: 40 | K3: 45 | L3: 55 | M3: 50 | N3: 65 | O3: 70 | P3: 80 | Q3: 55 | R3: 65 | S3: 70 | T3: 75 | U3: 80 | V3: 95 | W3: 100 | X3: 65 | Y3: 75 | Z3: 80 | AA3: 85 | AB3: 90 | AC3: 105 | AD3: 110 | AE3: 55 | AF3: 70 | AG3: 95 | AH3: 105 | AI3: 110 | AJ3: 120 | AK3: 130 | AL3: 140 | AM3: 65 | AN3: 85 | AO3: 105 | AP3: 115 | AQ3: 130 | AR3: 140 | AS3: 145 | AT3: 155 | AU3: 100 | AV3: 120 | AW3: 130 | AX3: 150 | AY3: 165 | AZ3: 170 | BA3: 175 | BB3: 185 | BC3: 115 | BD3: 135 | BE3: 150 | BF3: 170 | BG3: 185 | BH3: 190 | BI3: 195 | BJ3: 205
B4: REGIONAL | C4: 40 | D4: 45 | E4: 55 | F4: 60 | G4: 65 | H4: 70 | I4: 80 | J4: 50 | K4: 55 | L4: 65 | M4: 60 | N4: 75 | O4: 80 | P4: 95 | Q4: 65 | R4: 75 | S4: 80 | T4: 85 | U4: 90 | V4: 105 | W4: 110 | X4: 75 | Y4: 85 | Z4: 90 | AA4: 95 | AB4: 105 | AC4: 115 | AD4: 125 | AE4: 65 | AF4: 85 | AG4: 105 | AH4: 115 | AI4: 130 | AJ4: 140 | AK4: 145 | AL4: 155 | AM4: 80 | AN4: 100 | AO4: 120 | AP4: 130 | AQ4: 150 | AR4: 160 | AS4: 165 | AT4: 175 | AU4: 115 | AV4: 135 | AW4: 150 | AX4: 170 | AY4: 185 | AZ4: 190 | BA4: 195 | BB4: 205 | BC4: 130 | BD4: 150 | BE4: 170 | BF4: 190 | BG4: 205 | BH4: 215 | BI4: 220 | BJ4: 225
B5: INTERREGIONAL | C5: 50 | D5: 55 | E5: 65 | F5: 70 | G5: 75 | H5: 80 | I5: 95 | J5: 60 | K5: 65 | L5: 75 | M5: 70 | N5: 85 | O5: 90 | P5: 105 | Q5: 75 | R5: 85 | S5: 90 | T5: 95 | U5: 105 | V5: 115 | W5: 125 | X5: 85 | Y5: 95 | Z5: 100 | AA5: 110 | AB5: 120 | AC5: 130 | AD5: 140 | AE5: 80 | AF5: 100 | AG5: 120 | AH5: 130 | AI5: 150 | AJ5: 160 | AK5: 165 | AL5: 175 | AM5: 95 | AN5: 115 | AO5: 135 | AP5: 150 | AQ5: 170 | AR5: 180 | AS5: 185 | AT5: 195 | AU5: 130 | AV5: 150 | AW5: 170 | AX5: 190 | AY5: 205 | AZ5: 215 | BA5: 220 | BB5: 225 | BC5: 145 | BD5: 170 | BE5: 190 | BF5: 210 | BG5: 225 | BH5: 235 | BI5: 245 | BJ5: 250
B6: FEDERAL | C6: 60 | D6: 65 | E6: 75 | F6: 80 | G6: 85 | H6: 90 | I6: 105 | J6: 70 | K6: 75 | L6: 85 | M6: 80 | N6: 95 | O6: 105 | P6: 115 | Q6: 85 | R6: 95 | S6: 100 | T6: 110 | U6: 120 | V6: 130 | W6: 140 | X6: 95 | Y6: 105 | Z6: 115 | AA6: 125 | AB6: 135 | AC6: 145 | AD6: 150 | AE6: 95 | AF6: 115 | AG6: 135 | AH6: 150 | AI6: 170 | AJ6: 180 | AK6: 185 | AL6: 195 | AM6: 110 | AN6: 130 | AO6: 150 | AP6: 170 | AQ6: 185 | AR6: 200 | AS6: 210 | AT6: 220 | AU6: 145 | AV6: 170 | AW6: 190 | AX6: 210 | AY6: 225 | AZ6: 235 | BA6: 245 | BB6: 250 | BC6: 170 | BD6: 190 | BE6: 220 | BF6: 240 | BG6: 250 | BH6: 260 | BI6: 270 | BJ6: 280
B7: NATIONAL | C7: 70 | D7: 75 | E7: 85 | F7: 90 | G7: 95 | H7: 105 | I7: 115 | J7: 80 | K7: 85 | L7: 95 | M7: 90 | N7: 110 | O7: 120 | P7: 130 | Q7: 95 | R7: 105 | S7: 115 | T7: 125 | U7: 135 | V7: 145 | W7: 150 | X7: 110 | Y7: 120 | Z7: 130 | AA7: 140 | AB7: 150 | AC7: 160 | AD7: 170 | AE7: 110 | AF7: 130 | AG7: 150 | AH7: 170 | AI7: 185 | AJ7: 200 | AK7: 210 | AL7: 220 | AM7: 120 | AN7: 145 | AO7: 170 | AP7: 190 | AQ7: 200 | AR7: 220 | AS7: 225 | AT7: 235 | AU7: 170 | AV7: 190 | AW7: 220 | AX7: 240 | AY7: 250 | AZ7: 260 | BA7: 270 | BB7: 280 | BC7: 190 | BD7: 210 | BE7: 240 | BF7: 265 | BG7: 280 | BH7: 290 | BI7: 300 | BJ7: 310
B8: INTERNATIONAL B | C8: 80 | D8: 85 | E8: 95 | F8: 100 | G8: 110 | H8: 120 | I8: 130 | J8: 90 | K8: 95 | L8: 105 | M8: 100 | N8: 125 | O8: 135 | P8: 145 | Q8: 110 | R8: 120 | S8: 130 | T8: 140 | U8: 150 | V8: 160 | W8: 170 | X8: 125 | Y8: 140 | Z8: 150 | AA8: 160 | AB8: 170 | AC8: 180 | AD8: 190 | AE8: 120 | AF8: 145 | AG8: 170 | AH8: 190 | AI8: 200 | AJ8: 220 | AK8: 225 | AL8: 235 | AM8: 135 | AN8: 170 | AO8: 190 | AP8: 210 | AQ8: 220 | AR8: 240 | AS8: 250 | AT8: 260 | AU8: 190 | AV8: 210 | AW8: 240 | AX8: 260 | AY8: 280 | AZ8: 290 | BA8: 300 | BB8: 310 | BC8: 210 | BD8: 230 | BE8: 260 | BF8: 285 | BG8: 300 | BH8: 310 | BI8: 325 | BJ8: 330
B9: INTERNATIONAL A | C9: 90 | D9: 95 | E9: 105 | F9: 115 | G9: 125 | H9: 135 | I9: 145 | J9: 100 | K9: 110 | L9: 120 | M9: 115 | N9: 140 | O9: 150 | P9: 160 | Q9: 125 | R9: 135 | S9: 150 | T9: 160 | U9: 170 | V9: 180 | W9: 190 | X9: 140 | Y9: 160 | Z9: 170 | AA9: 180 | AB9: 190 | AC9: 195 | AD9: 210 | AE9: 135 | AF9: 170 | AG9: 190 | AH9: 210 | AI9: 220 | AJ9: 240 | AK9: 250 | AL9: 260 | AM9: 150 | AN9: 190 | AO9: 210 | AP9: 230 | AQ9: 250 | AR9: 260 | AS9: 280 | AT9: 280 | AU9: 210 | AV9: 230 | AW9: 250 | AX9: 285 | AY9: 300 | AZ9: 310 | BA9: 325 | BB9: 330 | BC9: 225 | BD9: 255 | BE9: 275 | BF9: 305 | BG9: 325 | BH9: 330 | BI9: 345 | BJ9: 355
B10: OLYMPIQUE | C10: 1000 | D10: 1000 | E10: 1000 | F10: 1000 | G10: 1000 | H10: 1000 | I10: 1000 | J10: 1000 | K10: 1000 | L10: 1000 | M10: 1000 | N10: 1000 | O10: 1000 | P10: 1000 | Q10: 1000 | R10: 1000 | S10: 1000 | T10: 1000 | U10: 1000 | V10: 1000 | W10: 1000 | X10: 155 | Y10: 175 | Z10: 190 | AA10: 200 | AB10: 205 | AC10: 210 | AD10: 225 | AE10: 1000 | AF10: 1000 | AG10: 1000 | AH10: 1000 | AI10: 1000 | AJ10: 10000 | AK10: 1000 | AL10: 1000 | AM10: 1000 | AN10: 1000 | AO10: 1000 | AP10: 1000 | AQ10: 1000 | AR10: 10000 | AS10: 1000 | AT10: 1000 | AU10: 1000 | AV10: 1000 | AW10: 1000 | AX10: 10000 | AY10: 1000 | AZ10: 1000 | BA10: 1000 | BB10: 10000 | BC10: 240 | BD10: 270 | BE10: 290 | BF10: 320 | BG10: 345 | BH10: 355 | BI10: 365 | BJ10: 375
B11: MINIME | C11: CADET | D11: CADET | E11: JUNIOR | F11: SENIOR | H11: MINIME | I11: CADETTE | J11: CADETTE | K11: JUNIOR | L11: SENIOR
A12: 20.01 | B12: M40 | C12: C1 50 | D12: C2 50 | E12: J56 | F12: S56 | G12: 20.01 | H12: FM36 | I12: FC1 44 | J12: FC2 44 | K12: FJ48 | L12: FS48
A13: 34.01 | B13: M40 | C13: C1 50 | D13: C2 50 | E13: J56 | F13: S56 | G13: 30.01 | H13: FM36 | I13: FC1 44 | J13: FC2 45 | K13: FJ48 | L13: FS48
A14: 38.01 | B14: M40 | C14: C1 50 | D14: C2 50 | E14: J56 | F14: S56 | G14: 35.01 | H14: FM36 | I14: FC1 44 | J14: FC2 46 | K14: FJ48 | L14: FS48
A15: 40.01 | B15: M45 | C15: C1 50 | D15: C2 50 | E15: J56 | F15: S56 | G15: 36.01 | H15: FM40 | I15: FC1 44 | J15: FC2 47 | K15: FJ48 | L15: FS48
A16: 45.01 | B16: M50 | C16: C1 50 | D16: C2 50 | E16: J56 | F16: S56 | G16: 40.01 | H16: FM44 | I16: FC1 44 | J16: FC2 48 | K16: FJ48 | L16: FS48
A17: 50.01 | B17: M56 | C17: C1 56 | D17: C2 56 | E17: J56 | F17: S56 | G17: 44.01 | H17: FM48 | I17: FC1 48 | J17: FC2 48 | K17: FJ48 | L17: FS48
A18: 52.05 | B18: M56 | C18: C1 56 | D18: C2 56 | E18: J56 | F18: S56 | G18: 48.01 | H18: FM53 | I18: FC1 53 | J18: FC2 53 | K18: FJ53 | L18: FS53
A19: 56.01 | B19: M62 | C19: C1 62 | D19: C2 62 | E19: J62 | F19: S62 | G19: 53.01 | H19: FM58 | I19: FC1 58 | J19: FC2 58 | K19: FJ58 | L19: FS58
A20: 62.01 | B20: M69 | C20: C1 69 | D20: C2 69 | E20: J69 | F20: S69 | G20: 58.01 | H20: FM+58 | I20: FC1 63 | J20: FC2 63 | K20: FJ63 | L20: FS63
A21: 69.01 | B21: M77 | C21: C1 77 | D21: C2 77 | E21: J77 | F21: S77 | G21: 63.01 | H21: FM+58 | I21: FC1 69 | J21: FC2 69 | K21: FJ69 | L21: FS69
A22: 77.01 | B22: M+77 | C22: C1 85 | D22: C2 85 | E22: J85 | F22: S85 | G22: 69.01 | H22: FM+58 | I22: FC1 +69 | J22: FC2 +69 | K22: FJ75 | L22: FS75
A23: 85.01 | B23: M+77 | C23: C1 94 | D23: C2 94 | E23: J94 | F23: S94 | G23: 75.01 | H23: FM+58 | I23: FC1 +69 | J23: FC2 +69 | K23: FJ+75 | L23: FS+75
A24: 94.01 | B24: M+77 | C24: C1 +94 | D24: C2 +94 | E24: J105 | F24: S105 | G24: 110 | H24: FM+58 | I24: FC1 +69 | J24: FC2 +69 | K24: FJ+75 | L24: FS+75
A25: 105.01 | B25: M+77 | C25: C1 +94 | D25: C2 +94 | E25: J+105 | F25: S+105 | G25: 140 | H25: FM+58 | I25: FC1 +69 | J25: FC2 +69 | K25: FJ+75 | L25: FS+75
A26: 110 | B26: M+77 | C26: C1 +94 | D26: C2 +94 | E26: J+105 | F26: S+105
A27: 120 | B27: M+77 | C27: C1 +94 | D27: C2 +94 | E27: J+105 | F27: S+105
A28: 130 | B28: M+77 | C28: C1 +94 | D28: C2 +94 | E28: J+105 | F28: S+105
A29: 140 | B29: M+77 | C29: C1 +94 | D29: C2 +94 | E29: J+105 | F29: S+105
